Transaction Reference,Supplier Name,Line Value,Department,Category,Transaction Date,Year/Period,SME,Costs split between Babergh and Mid Suffolk District Councils Y/N,% of transaction apportioned to Mid Suffolk District Council
0020027971,AARON SERVICES LTD,"20,912.08",Current Liabilities,Cert IBS Creditors Holding ac,27 Jun 2022,2223/04,SME,N,
0020027976,AARON SERVICES LTD,"19,447.03",Planned Maint - Heating,Property Servicing,13 Jul 2022,2223/04,SME,Y,0.1%
0020027984,AARON SERVICES LTD,385.25,Planned Maint - Heating,Property Servicing,27 Jun 2022,2223/04,SME,N,
0020027984,AARON SERVICES LTD,"15,125.86",Current Liabilities,Cert IBS Creditors Holding ac,27 Jun 2022,2223/04,SME,N,
0020027988,AARON SERVICES LTD,"7,222.19",Current Liabilities,Cert IBS Creditors Holding ac,20 Jul 2022,2223/04,SME,N,
0020027989,AARON SERVICES LTD,"7,187.51",Current Liabilities,Cert IBS Creditors Holding ac,27 Jul 2022,2223/04,SME,N,
0010049432,ACADEMY BUILDING CONTRACTS LTD,"3,323.37","Fences, Gates and Walls",BMBS Repairs Work,15 Jul 2022,2223/04,SME,N,
0010049433,ACADEMY BUILDING CONTRACTS LTD,821.65,"Fences, Gates and Walls",BMBS Repairs Work,15 Jul 2022,2223/04,SME,N,
0010049434,ACADEMY BUILDING CONTRACTS LTD,"1,252.14","Fences, Gates and Walls",BMBS Repairs Work,15 Jul 2022,2223/04,SME,N,
0010049435,ACADEMY BUILDING CONTRACTS LTD,"1,067.78","Fences, Gates and Walls",BMBS Repairs Work,15 Jul 2022,2223/04,SME,N,
0010049436,ACADEMY BUILDING CONTRACTS LTD,"1,669.52","Fences, Gates and Walls",BMBS Repairs Work,15 Jul 2022,2223/04,SME,N,
0010049437,ACADEMY BUILDING CONTRACTS LTD,695.64,"Fences, Gates and Walls",BMBS Repairs Work,15 Jul 2022,2223/04,SME,N,
0010049562,ADVANCED CONTROLS & MANAGEMENT SYSTEMS L,300.00,Kingfisher Leisure Centre,Repairs,14 Jul 2022,2223/04,SME,N,
0010049062,AE WHITE SURFACING,"11,011.00",Major Imps,Improvements,27 Jun 2022,2223/04,SME,N,
0010049185,AE WHITE SURFACING,"1,460.00",Major Imps,Improvements,30 Jun 2022,2223/04,SME,N,
0010049133,ALPHETON GARAGE LTD,400.00,Taxi & Private Hire Licensing,Contracted Services,29 Jun 2022,2223/04,SME,N,
0010049184,ANGLIAN WATER,"1,985.30",Sheltered Accommodation,Water Rates - Metered,28 Jun 2022,2223/04,LGE,N,
0010049443,ANGLIAN WATER,922.32,Water Sampling,Sampling & Analysis,23 May 2022,2223/04,LGE,N,
0010049608,ANGLIAN WATER,331.97,Temporary Accommodation,Water Rates - Other Charges,12 Jul 2022,2223/04,LGE,N,
0010049609,ANGLIAN WATER,325.98,Temporary Accommodation,Water Rates - Other Charges,12 Jul 2022,2223/04,LGE,N,
0010049611,ANGLIAN WATER,278.14,Temporary Accommodation,Water Rates - Other Charges,12 Jul 2022,2223/04,LGE,N,
0010049612,ANGLIAN WATER,351.85,Temporary Accommodation,Water Rates - Other Charges,12 Jul 2022,2223/04,LGE,N,
0010049614,ANGLIAN WATER,415.72,Temporary Accommodation,Water Rates - Other Charges,12 Jul 2022,2223/04,LGE,N,
0010049615,ANGLIAN WATER,329.63,Temporary Accommodation,Water Rates - Other Charges,12 Jul 2022,2223/04,LGE,N,
0010049618,ANGLIAN WATER,524.42,Temporary Accommodation,Water Rates - Other Charges,04 Jul 2022,2223/04,LGE,N,
0010049229,BEN BURGESS GARDEN EQUIPMENT,"3,201.23",Vehicle and Plant Renewals,Plant & Vehicle - Purchase,05 Jul 2022,2223/04,SME,N,
0010049282,BINDER LTD,311.00,Sewage Treatment Works,Contracted Services,30 Jun 2022,2223/04,SME,N,
0010049667,BINDER LTD,187.00,Sewage Treatment Works,Contracted Services,18 Jul 2022,2223/04,SME,N,
0010049667,BINDER LTD,132.00,Sewage Treatment Works,Repairs,18 Jul 2022,2223/04,SME,N,
0010049271,BORDER FLOORING,"1,299.25",Kingfisher Leisure Centre,Repairs,06 Jul 2022,2223/04,SME,N,
0010049205,BOTTOMLINE TECHNOLOGIES,701.21,ICT,Software Licnse (Line of Bus) ,30 Jun 2022,2223/04,LGE,Y,50%
0010049337,BOWER FULLER,467.75,Sheltered Accommodation,Fire Prevention,30 Jun 2022,2223/04,SME,N,
0010049338,BOWER FULLER,508.20,Sheltered Accommodation,Fire Prevention,30 Jun 2022,2223/04,SME,N,
0010049340,BOWER FULLER,514.20,Sheltered Accommodation,Fire Prevention,30 Jun 2022,2223/04,SME,N,
0010049561,BUTTON & TURNER LTD,443.22,Street & Major Road Cleansing,Plant & Vehicle - Other costs,29 Apr 2022,2223/04,SME,N,
0010049391,AQUASAMPLERS,355.00,Water Sampling,Sampling & Analysis,31 May 2022,2223/04,SME,N,
0010049495,AQUASAMPLERS,505.00,Water Sampling,Sampling & Analysis,30 Jun 2022,2223/04,SME,N,
0010049679,CASTONS,"8,646.85",Kingfisher LC Refurb,Prof & Consultancy Fees,06 Apr 2022,2223/04,SME,N,
0010049097,CHAMBERLIN HALL,290.00,Devt Management -Appeals,Room Hire,13 Jun 2022,2223/04,SME,N,
0010048694,CHIPSIDE LTD,391.34,C Parks General,Contracted Services,31 May 2022,2223/04,SME,N,
0010049192,CHIPSIDE LTD,356.33,C Parks General,Contracted Services,30 Jun 2022,2223/04,SME,N,
0010048356,CLARKE FENCING LTD,"25,097.37",Building Services,Repairs,24 May 2022,2223/04,SME,N,
0010049245,CLARKE FENCING LTD,"17,138.00",Public Realm TransitionProject,"Equipment, Tools & Materials",26 May 2022,2223/04,SME,N,
0010049324,CLARKES OF WALSHAM LTD,623.12,Building Services,Repairs,08 Jul 2022,2223/04,SME,N,
0010049118,D W ADAMS LTD,253.00,Disabled Facilities (Revenue),Repairs,30 Jun 2022,2223/04,SME,N,
0010049175,D W ADAMS LTD,"4,295.00",Council House Adaptions,Improvements,04 Jul 2022,2223/04,SME,N,
0010049333,D W ADAMS LTD,"5,142.00",Council House Adaptions,Improvements,11 Jul 2022,2223/04,SME,N,
0010049403,D W ADAMS LTD,"4,990.00",Council House Adaptions,Improvements,14 Jul 2022,2223/04,SME,N,
0010049084,DANCE EAST,"2,925.00",Grants & Contrbns,Grants,27 Jun 2022,2223/04,SME,N,
0010049705,DISTRICT COUNCILS' NETWORK,"2,457.00",Management Team,Subscriptions,28 Apr 2022,2223/04,LGE,N,
0010049126,DMA HEALTH AND SAFETY LTD,322.00,Planned Maint - Ext Painting,Prof & Consultancy Fees,30 Jun 2022,2223/04,SME,N,
0010049406,CIVICA ELECTION SERVICES,"2,210.18",Electoral Registration,Returning Officer Fees,11 May 2022,2223/04,LGE,N,
0010049295,ENER-G SWITCH2 LTD,201.23,Temporary Accommodation,Repairs,07 Jul 2022,2223/04,SME,N,
0010049295,ENER-G SWITCH2 LTD,161.59,Temporary Accommodation,Repairs,07 Jul 2022,2223/04,SME,N,
0010049322,ENER-G SWITCH2 LTD,255.00,Temporary Accommodation,Repairs,30 Jun 2022,2223/04,SME,N,
0010049151,ENVIROVENT LTD,460.00,Building Services,Repairs,29 Jun 2022,2223/04,SME,N,
0010049552,ENVIROVENT LTD,460.00,Stairlifts,Repairs,18 Jul 2022,2223/04,SME,N,
0010049003,FELGAINS CARE CENTRE,"1,359.00",Mand Disabled Facilities Grant,Grants,23 Jun 2022,2223/04,SME,N,
0010049060,FELLBRIDGE BUILDING SERVICES,"26,416.17",Council House Adaptions,Improvements,27 Jun 2022,2223/04,SME,N,
0010049121,FELLBRIDGE BUILDING SERVICES,377.65,Building Services,Repairs,30 Jun 2022,2223/04,SME,N,
0010049128,FELLBRIDGE BUILDING SERVICES,306.64,Building Services,Repairs,30 Jun 2022,2223/04,SME,N,
0010049203,FELLBRIDGE BUILDING SERVICES,958.25,Building Services,Repairs,04 Jul 2022,2223/04,SME,N,
0010049292,FELLBRIDGE BUILDING SERVICES,"2,871.19",Window & Door Rplcmts,Improvements,07 Jul 2022,2223/04,SME,N,
0010049356,FELLBRIDGE BUILDING SERVICES,"5,840.65",Building Services,Repairs,11 Jul 2022,2223/04,SME,N,
0010049357,FELLBRIDGE BUILDING SERVICES,325.15,Building Services,Repairs,11 Jul 2022,2223/04,SME,N,
0010049358,FELLBRIDGE BUILDING SERVICES,574.95,Building Services,Repairs,11 Jul 2022,2223/04,SME,N,
0010049359,FELLBRIDGE BUILDING SERVICES,361.12,Building Services,Repairs,11 Jul 2022,2223/04,SME,N,
0010049360,FELLBRIDGE BUILDING SERVICES,345.25,Building Services,Repairs,11 Jul 2022,2223/04,SME,N,
0010049361,FELLBRIDGE BUILDING SERVICES,574.95,Building Services,Repairs,11 Jul 2022,2223/04,SME,N,
0010049362,FELLBRIDGE BUILDING SERVICES,334.73,Building Services,Repairs,11 Jul 2022,2223/04,SME,N,
0010049363,FELLBRIDGE BUILDING SERVICES,330.28,Building Services,Repairs,11 Jul 2022,2223/04,SME,N,
0010049364,FELLBRIDGE BUILDING SERVICES,310.20,Building Services,Repairs,11 Jul 2022,2223/04,SME,N,
0010049365,FELLBRIDGE BUILDING SERVICES,366.75,Building Services,Repairs,11 Jul 2022,2223/04,SME,N,
0010049366,FELLBRIDGE BUILDING SERVICES,832.86,Building Services,Repairs,11 Jul 2022,2223/04,SME,N,
0010049367,FELLBRIDGE BUILDING SERVICES,572.77,Building Services,Repairs,11 Jul 2022,2223/04,SME,N,
0010049408,FELLBRIDGE BUILDING SERVICES,449.56,Building Services,Repairs,14 Jul 2022,2223/04,SME,N,
0010049125,FORE-MOST GARAGE DOORS LTD,290.00,Building Services,Repairs,30 Jun 2022,2223/04,SME,N,
0010049138,G & G SIGNS,408.00,Street Naming & Numbering,Signs,30 Jun 2022,2223/04,SME,N,
0010049186,GB ADAPTIONS LTD,"6,042.00",Mand Disabled Facilities Grant,Grants,04 Jul 2022,2223/04,SME,N,
0010048872,GHB ROOFING,940.00,Building Services,Repairs,31 May 2022,2223/04,SME,N,
0010049116,GHB ROOFING,"9,442.50",Roofing,Improvements,30 Jun 2022,2223/04,SME,N,
0010049076,GO START COMMUNITY TRANSPORT,"2,000.00",Grants & Contrbns,Grants,27 Jun 2022,2223/04,SME,N,
0010049071,HAYES DIGGINS BUILDERS,"2,200.00",Building Services,Repairs,10 May 2022,2223/04,SME,N,
0010049209,HAYES DIGGINS BUILDERS,"1,100.00",Kingfisher Leisure Centre,Repairs,04 Jul 2022,2223/04,SME,N,
0010049210,HAYES DIGGINS BUILDERS,430.00,Kingfisher Leisure Centre,Repairs,04 Jul 2022,2223/04,SME,N,
0010049336,HAYES DIGGINS BUILDERS,760.00,Building Services,Repairs,11 Jul 2022,2223/04,SME,N,
0010049370,HAYES DIGGINS BUILDERS,580.00,Kingfisher Leisure Centre,Repairs,11 Jul 2022,2223/04,SME,N,
0010049371,HAYES DIGGINS BUILDERS,480.00,Hadleigh Pool,Repairs,11 Jul 2022,2223/04,SME,N,
0010049088,KEN GRIME & SON LTD,"1,223.90",Building Services,Repairs,29 Jun 2022,2223/04,SME,N,
0010049386,KEN GRIME & SON LTD,561.66,Building Services,Repairs,13 Jul 2022,2223/04,SME,N,
0010049293,KENDA-CLEAN,14.00,Chilton Depot,Window Cleaning,08 Jul 2022,2223/04,SME,Y,50%
0010049293,KENDA-CLEAN,954.00,Sheltered Accommodation,Window Cleaning,08 Jul 2022,2223/04,SME,N,
0010049293,KENDA-CLEAN,93.00,Temporary Accommodation,Window Cleaning,08 Jul 2022,2223/04,SME,N,
0010049293,KENDA-CLEAN,431.00,Tenancy Services,Window Cleaning,08 Jul 2022,2223/04,SME,N,
0010049027,KEYWAYS THE LOCKSMITHS LTD,460.00,Temporary Accommodation,Misc Premises Costs,24 Jun 2022,2223/04,SME,N,
0010048922,M & H CIVIL ENGINEERING LTD,595.30,Building Services,Repairs,20 Jun 2022,2223/04,SME,N,
0010049546,M & H CIVIL ENGINEERING LTD,386.40,Building Services,Repairs,20 Jul 2022,2223/04,SME,N,
0010049283,MB TREES (EAST ANGLIA) LTD,720.00,Public Tree Programme,Tree felling/maintenance,07 Jul 2022,2223/04,SME,N,
0010049528,MB TREES (EAST ANGLIA) LTD,720.00,Amenity Areas,Tree felling/maintenance,14 Jul 2022,2223/04,SME,N,
0010049529,MB TREES (EAST ANGLIA) LTD,780.00,Amenity Areas,Tree felling/maintenance,14 Jul 2022,2223/04,SME,N,
0010049296,MERCURY BUILDING SERVICES LTD,"13,186.00",Pld Maint/Enhncmts-Kingfisher,Improvements,07 Jul 2022,2223/04,SME,N,
0010049381,MERCURY BUILDING SERVICES LTD,"8,387.00",Kingfisher Leisure Centre,Repairs,12 Jul 2022,2223/04,SME,N,
0010049382,MERCURY BUILDING SERVICES LTD,"4,082.00",Kingfisher Leisure Centre,Repairs,12 Jul 2022,2223/04,SME,N,
0010049387,MERCURY BUILDING SERVICES LTD,"3,032.00",Pld Maint/Enhncmts-Kingfisher,Improvements,13 Jul 2022,2223/04,SME,N,
0010049461,MERCURY BUILDING SERVICES LTD,"4,990.00",Pld Maint/Enhncmts-Kingfisher,Repairs,14 Jul 2022,2223/04,SME,N,
0010049461,MERCURY BUILDING SERVICES LTD,"2,641.00",Kingfisher Leisure Centre,Repairs,14 Jul 2022,2223/04,SME,N,
0010049461,MERCURY BUILDING SERVICES LTD,778.00,Hadleigh Pool,Repairs,14 Jul 2022,2223/04,SME,N,
0010049660,MONTHIND CLEAN LTD,665.83,Jnt Waste Contract,General Cleaning,15 Jul 2022,2223/04,LGE,Y,50%
0010049101,PRO-FLAT SPECIALIST SERVICES LTD,"13,360.00",Roofing,Improvements,29 Jun 2022,2223/04,SME,N,
0010049137,PRO-FLAT SPECIALIST SERVICES LTD,"1,552.00",Building Services,Repairs,30 Jun 2022,2223/04,SME,N,
0010049145,PRO-FLAT SPECIALIST SERVICES LTD,"13,796.00",Roofing,Improvements,30 Jun 2022,2223/04,SME,N,
0010049146,PRO-FLAT SPECIALIST SERVICES LTD,436.00,Roofing,Improvements,30 Jun 2022,2223/04,SME,N,
0010049173,PRO-FLAT SPECIALIST SERVICES LTD,"1,495.00",Building Services,Repairs,30 Jun 2022,2223/04,SME,N,
0010049174,PRO-FLAT SPECIALIST SERVICES LTD,840.00,Building Services,Repairs,30 Jun 2022,2223/04,SME,N,
0010049492,PRO-FLAT SPECIALIST SERVICES LTD,"11,808.00",Roofing,Improvements,18 Jul 2022,2223/04,SME,N,
0010049588,REID PLUMBING & HEATING CONTRACTORS LTD,"9,582.66",Central Heating,Major Contracts,08 Jun 2022,2223/04,SME,N,
0010049589,REID PLUMBING & HEATING CONTRACTORS LTD,"24,239.36",Central Heating,Major Contracts,16 Jun 2022,2223/04,SME,N,
0010049590,REID PLUMBING & HEATING CONTRACTORS LTD,"15,005.37",Central Heating,Major Contracts,22 Jun 2022,2223/04,SME,N,
0010049591,REID PLUMBING & HEATING CONTRACTORS LTD,"15,368.11",Central Heating,Major Contracts,28 Jun 2022,2223/04,SME,N,
0010049592,REID PLUMBING & HEATING CONTRACTORS LTD,"9,258.87",Central Heating,Major Contracts,04 Jul 2022,2223/04,SME,N,
0010049593,REID PLUMBING & HEATING CONTRACTORS LTD,"9,165.66",Central Heating,Major Contracts,06 Jul 2022,2223/04,SME,N,
0010049594,REID PLUMBING & HEATING CONTRACTORS LTD,"9,988.23",Central Heating,Major Contracts,11 Jul 2022,2223/04,SME,N,
0010049595,REID PLUMBING & HEATING CONTRACTORS LTD,"17,748.90",Central Heating,Major Contracts,12 Jul 2022,2223/04,SME,N,
0010049596,REID PLUMBING & HEATING CONTRACTORS LTD,"14,739.09",Central Heating,Major Contracts,19 Jul 2022,2223/04,SME,N,
0010049046,SEAGER HOME SOLUTIONS,"7,329.22",Building Services,Repairs,24 Jun 2022,2223/04,SME,N,
0010049086,SEAGER HOME SOLUTIONS,"22,317.63",Building Services,Repairs,28 Jun 2022,2223/04,SME,N,
0010049657,SPALDINGS LTD,340.90,Street & Major Road Cleansing,"Equipment, Tools & Materials",22 Jul 2022,2223/04,SME,N,
0010049657,SPALDINGS LTD,340.89,Open Spaces,"Equipment, Tools & Materials",22 Jul 2022,2223/04,SME,N,
0010049412,SUREFIX,800.00,Building Services,Repairs,05 Jun 2022,2223/04,SME,N,
0010049413,SUREFIX,800.00,Building Services,Repairs,06 Jul 2022,2223/04,SME,N,
0010049414,SUREFIX,850.00,Major Imps,Repairs,30 Jun 2022,2223/04,SME,N,
0010049415,SUREFIX,"1,463.70",Major Imps,Repairs,22 Jun 2022,2223/04,SME,N,
0010049416,SUREFIX,"1,000.00",Council House Adaptions,Improvements,20 Jun 2022,2223/04,SME,N,
0010049417,SUREFIX,900.00,Major Imps,Repairs,21 Jun 2022,2223/04,SME,N,
0010049418,SUREFIX,"2,805.48",Major Imps,Improvements,20 Jun 2022,2223/04,SME,N,
0010049419,SUREFIX,316.44,Building Services,Repairs,20 Jun 2022,2223/04,SME,N,
0010049420,SUREFIX,"1,006.44",Major Imps,Repairs,20 Jun 2022,2223/04,SME,N,
0010049423,SUREFIX,620.00,Window & Door Rplcmts,Improvements,01 Jul 2022,2223/04,SME,N,
0010049429,SUREFIX,350.00,Building Services,Repairs,22 Jun 2022,2223/04,SME,N,
0010049430,SUREFIX,"1,500.00",Major Imps,Improvements,07 Jul 2022,2223/04,SME,N,
0010049445,SUREFIX,"1,250.00",Major Imps,Repairs,14 Jul 2022,2223/04,SME,N,
0010049448,SUREFIX,415.00,Window & Door Rplcmts,Improvements,14 Jul 2022,2223/04,SME,N,
0010049449,SUREFIX,"1,250.00",Major Imps,Improvements,13 Jul 2022,2223/04,SME,N,
0010049456,SUREFIX,"1,000.00",Major Imps,Improvements,15 Jul 2022,2223/04,SME,N,
0010049163,TANKCHANGE LTD,"2,375.00",Central Heating,Improvements,20 Jun 2022,2223/04,SME,N,
0010049227,THERMATECH,650.00,Tenancy Services,Fire Prevention,05 Jul 2022,2223/04,SME,N,
0010049463,THERMATECH,710.00,Sheltered Accommodation,Fire Prevention,15 Jul 2022,2223/04,SME,N,
0010049548,THOMPSON COOPER LTD,994.58,Street & Major Road Cleansing,"Equipment, Tools & Materials",20 Jul 2022,2223/04,SME,N,
0010049515,TRUCKEAST LTD,576.97,Street & Major Road Cleansing,Plant & Vehicle - Other costs,19 Jul 2022,2223/04,LGE,N,
0010045739,VALUATION OFFICE AGENCY,500.00,Devt Management -Applications,Viability,02 Feb 2022,2223/04,LGE,N,
0010049655,VODAFONE CORPORATE LTD,465.00,ICT,Telephone Costs,24 Jul 2022,2223/04,LGE,N,
0010049147,WEST END REHOMING,400.60,Dog Control,Collection Charges,01 Jul 2022,2223/04,SME,N,
0010049490,WINDIMAN LTD,325.00,Window & Door Rplcmts,Improvements,07 Jul 2022,2223/04,SME,N,
0010049520,WINDIMAN LTD,"1,200.00",Major Imps,Improvements,19 Jul 2022,2223/04,SME,N,
0010049554,WINDIMAN LTD,"2,500.00",Window & Door Rplcmts,Improvements,19 Jul 2022,2223/04,SME,N,
0010049180,ARCHANT COMMUNITY MEDIA LTD,665.40,Devt Management -Applications,Advertising&mkting (non-staff),30 Jun 2022,2223/04,LGE,N,
0010049273,ARCHANT COMMUNITY MEDIA LTD,686.00,Devt Management -Applications,Advertising&mkting (non-staff),25 Jun 2022,2223/04,LGE,N,
0010049373,ARCHANT COMMUNITY MEDIA LTD,778.70,Devt Management -Applications,Advertising&mkting (non-staff),09 Jul 2022,2223/04,LGE,N,
0010049498,ARCHANT COMMUNITY MEDIA LTD,531.50,Devt Management -Applications,Advertising&mkting (non-staff),16 Jul 2022,2223/04,LGE,N,
0010049736,ARCHANT COMMUNITY MEDIA LTD,531.50,Devt Management -Applications,Advertising&mkting (non-staff),23 Jul 2022,2223/04,LGE,N,
0010048651,ESSEX COUNTY COUNCIL,873.60,Pre App Charging,Ecology Consultancy,07 Jun 2022,2223/04,LGE,N,
0010049269,ESSEX COUNTY COUNCIL,861.00,Conservation,Prof & Consultancy Fees,06 Jul 2022,2223/04,LGE,N,
0010049684,ESSEX COUNTY COUNCIL,710.00,Pre App Charging,Ecology Consultancy,25 Jul 2022,2223/04,LGE,N,
0010049697,ESSEX COUNTY COUNCIL,"1,032.00",Pre App Charging,Landscape Consultancy,26 Jul 2022,2223/04,LGE,N,
0010049698,ESSEX COUNTY COUNCIL,"6,280.00",Devt Management -Applications,Landscape Consultancy,26 Jul 2022,2223/04,LGE,N,
0010049369,IDOX SOFTWARE LTD,"100,000.00",ICT,Software Licnse (Line of Bus) ,11 Jul 2022,2223/04,SME,Y,50%
0010049136,BUILDBASE,310.20,Assets & Development,Repairs,30 Jun 2022,2223/04,LGE,N,
0010049315,IPSWICH BOROUGH COUNCIL,"49,534.00",COVID Housing Fund,Misc Supplies & Services Costs,01 Jul 2022,2223/04,LGE,N,
0020027969,EDF ENERGY,900.47,C Parks General,Electricity,25 Jun 2022,2223/04,LGE,N,
0020027969,EDF ENERGY,"1,031.08",Chilton Depot,Electricity,25 Jun 2022,2223/04,LGE,Y,50%
0020027969,EDF ENERGY,"5,565.13",Hadleigh Pool,Electricity,25 Jun 2022,2223/04,LGE,N,
0020027969,EDF ENERGY,"8,419.00",Kingfisher Leisure Centre,Electricity,25 Jun 2022,2223/04,LGE,N,
0020027969,EDF ENERGY,922.82,Sheltered Accommodation,Electricity,25 Jun 2022,2223/04,LGE,N,
0020027969,EDF ENERGY,"5,048.32",Tenancy Services,Electricity,25 Jun 2022,2223/04,LGE,N,
0020027980,GPC BARCLAYS,"7,455.41",Current Assets,Barclaycard Control,16 Jul 2022,2223/04,LGE,Y,24%
0010049531,STANNAH STAIRLIFTS LTD,312.86,Sheltered Accommodation,Repairs,19 Jul 2022,2223/04,LGE,N,
0020027978,COMPUTERSHARE ,636.00,Current Assets,ChildCare Vouchers-Control,25 Jul 2022,2223/04,LGE,N,
0010049087,ALPHETON PARISH COUNCIL,500.00,Grants & Contrbns,Contributions & Donations,28 Jun 2022,2223/04,SME,N,
0010049582,BENTLEY PARISH COUNCIL,"5,706.00",CIL Funded REFCUS,Grants,22 Jul 2022,2223/04,SME,N,
0010049517,GREAT WALDINGFIELD BOWLS & SOCIAL CLUB,500.00,Grants & Contrbns,Contributions & Donations,19 Jul 2022,2223/04,SME,N,
0010049082,IPSWICH & DISTRICT CITIZENS ADVICE BUREA,"7,673.00",Grants & Contrbns,Grants,27 Jun 2022,2223/04,SME,N,
0010049521,TATTINGSTONE PARISH COUNCIL,500.00,Grants & Contrbns,Contributions & Donations,19 Jul 2022,2223/04,SME,N,
0010049077,THE BRIDGE PROJECT SUDBURY,"7,200.00",Grants & Contrbns,Grants,27 Jun 2022,2223/04,SME,N,
0010049099,SUFFOLK COUNTY COUNCIL,261.01,ICT,Software Licences (Corporate) ,28 Jun 2022,2223/04,LGE,Y,50%
0010049100,SUFFOLK COUNTY COUNCIL,658.52,ICT,Desktop Software,28 Jun 2022,2223/04,LGE,Y,50%
0010049219,SUFFOLK COUNTY COUNCIL,276.89,ICT,Desktop Software,04 Jul 2022,2223/04,LGE,Y,50%
0010049220,SUFFOLK COUNTY COUNCIL,"4,594.84",ICT,Photocopying,04 Jul 2022,2223/04,LGE,Y,50%
0010049243,SUFFOLK COUNTY COUNCIL,"1,475.00",Land Chgs,Contracted Services,05 Jul 2022,2223/04,LGE,N,
0010049280,SUFFOLK COUNTY COUNCIL,"9,852.62",Domestic Waste,MRF Disposal,06 Jul 2022,2223/04,LGE,N,
0010049280,SUFFOLK COUNTY COUNCIL,"18,261.18",Garden Waste,Garden Waste Disposal,06 Jul 2022,2223/04,LGE,N,
0010049487,SUFFOLK COUNTY COUNCIL,"1,225.69",ICT,Desktop Software,15 Jul 2022,2223/04,LGE,Y,50%
0010049558,SUFFOLK COUNTY COUNCIL,"31,562.00",AONB Contributions,Contributions & Donations,20 Jul 2022,2223/04,LGE,N,
0010049738,SUFFOLK COUNTY COUNCIL,261.01,ICT,Software Licences (Corporate) ,28 Jun 2022,2223/04,LGE,Y,50%
0010049075,FENN WRIGHT LLP,450.00,General/Supervision & Mgmt,Prof & Consultancy Fees,28 Jun 2022,2223/04,SME,N,
0010049160,REED SPECIALIST RECRUITMENT LTD,711.42,Financial Servs,Agency Staff,24 Jun 2022,2223/04,LGE,Y,50%
0010049327,REED SPECIALIST RECRUITMENT LTD,440.88,Financial Servs,Agency Staff,01 Jul 2022,2223/04,LGE,Y,50%
0010049465,REED SPECIALIST RECRUITMENT LTD,691.38,Financial Servs,Agency Staff,08 Jul 2022,2223/04,LGE,Y,50%
0010049485,REED SPECIALIST RECRUITMENT LTD,442.03,Financial Servs,Agency Staff,08 Jul 2022,2223/04,LGE,Y,50%
0010049527,REED SPECIALIST RECRUITMENT LTD,"3,680.00",Financial Servs,Agency Staff,19 Jul 2022,2223/04,LGE,Y,50%
0010049651,REED SPECIALIST RECRUITMENT LTD,721.44,Financial Servs,Agency Staff,15 Jul 2022,2223/04,LGE,Y,50%
0010049699,TELEFONICA UK LIMITED - O2,339.46,ICT,Telephone Costs,27 Jul 2022,2223/04,LGE,Y,50%
0010049285,EAST OF ENGLAND CO-OPERATIVE SOCIETY LTD,"1,000.00",Events & Awards,Misc Supplies & Services Costs,24 May 2022,2223/04,LGE,Y,50%
0020027982,GAZPROM ENERGY,92.60,Belle Vue House,Gas,21 Jul 2022,2223/04,SME,N,
0020027982,GAZPROM ENERGY,68.89,HQ Energy,Gas,21 Jul 2022,2223/04,SME,N,
0020027982,GAZPROM ENERGY,"3,165.84",Sheltered Accommodation,Gas,21 Jul 2022,2223/04,SME,N,
0020027982,GAZPROM ENERGY,107.78,Temporary Accommodation,Gas,21 Jul 2022,2223/04,SME,N,
0010049543,THE QUAY THEATRE AT SUDBURY,"7,040.00",Holiday Activity Funding,"Equipment, Tools & Materials",20 Jul 2022,2223/04,SME,N,
0010048912,WHYBROW PROPERTY SOLUTIONS LTD,"8,556.76",Kitchens/Bathrooms,Improvements,14 Jun 2022,2223/04,SME,N,
0010049223,WHYBROW PROPERTY SOLUTIONS LTD,"6,000.00",Council House Adaptions,Improvements,05 Jul 2022,2223/04,SME,N,
0010049237,WHYBROW PROPERTY SOLUTIONS LTD,"5,028.00",Building Services,Repairs,05 Jul 2022,2223/04,SME,N,
0010049238,WHYBROW PROPERTY SOLUTIONS LTD,"10,000.00",Building Services,Repairs,05 Jul 2022,2223/04,SME,N,
0010049343,WHYBROW PROPERTY SOLUTIONS LTD,"10,680.80",Building Services,Repairs,11 Jul 2022,2223/04,SME,N,
0010049353,WHYBROW PROPERTY SOLUTIONS LTD,"6,774.60",Council House Adaptions,Improvements,11 Jul 2022,2223/04,SME,N,
0010049354,WHYBROW PROPERTY SOLUTIONS LTD,"10,000.00",Building Services,Repairs,11 Jul 2022,2223/04,SME,N,
0010049565,WHYBROW PROPERTY SOLUTIONS LTD,"11,156.50",Council House Adaptions,Improvements,21 Jul 2022,2223/04,SME,N,
0010049090,L A C CLEANING CONTRACTORS LIMITED,921.90,Wenham Depot TDP,General Cleaning,28 Jun 2022,2223/04,SME,Y,50%
0010049091,L A C CLEANING CONTRACTORS LIMITED,648.48,Sheltered Accommodation,General Cleaning,28 Jun 2022,2223/04,SME,N,
0010049569,L A C CLEANING CONTRACTORS LIMITED,345.50,Other Temp Accommodation,General Cleaning,19 Jul 2022,2223/04,SME,N,
0010049576,L A C CLEANING CONTRACTORS LIMITED,648.48,Sheltered Accommodation,General Cleaning,25 Jul 2022,2223/04,SME,N,
0010049577,L A C CLEANING CONTRACTORS LIMITED,696.00,Wenham Depot TDP,General Cleaning,18 Jul 2022,2223/04,SME,Y,50%
0010049587,RA INFORMATION SYSTEMS ,"4,413.00",Public Tree Programme,Tree felling/maintenance,22 Jul 2022,2223/04,SME,Y,50%
0010049124,CADCORP,"1,800.00",ICT,Software Licences (Corporate) ,30 Jun 2022,2223/04,SME,Y,64%
0010048087,TUDOR ENVIRONMENTAL,573.65,Open Spaces,Grounds & Site Maintenance,11 May 2022,2223/04,SME,N,
0010049388,STOWE VETERINARY GROUP,292.02,Animal Welfare Licensing,Prof & Consultancy Fees,13 Jul 2022,2223/04,SME,N,
0010049131,COMMUNITY ACTION SUFFOLK,"1,328.00",Community Housing Fund,Grants,29 Jun 2022,2223/04,SME,N,
0010049350,OPUS PEOPLE SOLUTIONS LTD,150.30,Governance,Agency Staff,30 Jun 2022,2223/04,SME,N,
0010049350,OPUS PEOPLE SOLUTIONS LTD,254.87,Housing Standards,Agency Staff,30 Jun 2022,2223/04,SME,N,
0010049351,OPUS PEOPLE SOLUTIONS LTD,147.17,Governance,Agency Staff,07 Jul 2022,2223/04,SME,N,
0010049351,OPUS PEOPLE SOLUTIONS LTD,168.93,Housing Standards,Agency Staff,07 Jul 2022,2223/04,SME,N,
0010049287,CORNERSTONE BARRISTERS,"10,100.00",Planning Enforcement,Legal Expenses,23 Jun 2022,2223/04,SME,N,
0010049678,CORNERSTONE BARRISTERS,"2,500.00",Devt Management -Appeals,Legal ex - Appeal related,25 Jul 2022,2223/04,SME,N,
0010049493,ANNETTE FEENEY,650.00,Devt Policy & Local Plans,Prof & Consultancy Fees,17 May 2022,2223/04,ST,Y,50%
0010049140,VERTAS GROUP LTD,"12,304.83",Central Postal Serv,Postage,01 Jul 2022,2223/04,SME,Y,50%
0010049290,VERTAS GROUP LTD,"11,904.00",Unapportionable Central OHs,Security Systems,30 Jun 2022,2223/04,SME,N,
0010049525,VERTAS GROUP LTD,323.00,Organisational Devt,Corporate Training,18 Jul 2022,2223/04,SME,Y,50%
0010049057,COLLINS SKIP HIRE,550.00,Building Services,Waste Disposal,27 Jun 2022,2223/04,SME,Y,50%
0010049153,COLLINS SKIP HIRE,275.00,Building Services,Waste Disposal,30 Jun 2022,2223/04,SME,Y,50%
0010049332,COLLINS SKIP HIRE,"1,115.00",Building Services,Waste Disposal,11 Jul 2022,2223/04,SME,Y,50%
0010049477,COLLINS SKIP HIRE,825.00,Building Services,Waste Disposal,18 Jul 2022,2223/04,SME,Y,50%
0010049297,POSTURITE LTD,776.80,Health & Safety,"Equipment, Tools & Materials",07 Jul 2022,2223/04,SME,Y,50%
0010049328,POSTURITE LTD,286.91,Health & Safety,"Equipment, Tools & Materials",08 Jul 2022,2223/04,SME,Y,50%
0010049182,4PRINCIPLES CONSTRUCTION LTD,"7,354.02",Mand Disabled Facilities Grant,Grants,04 Jul 2022,2223/04,SME,N,
0010049148,SUFFOLK MARKET EVENTS,"1,435.66",BRRP-MarketTownVision&Invest,Prof & Consultancy Fees,01 Jul 2022,2223/04,SME,Y,48%
0010049474,SUFFOLK MARKET EVENTS,650.00,Hadleigh Market,Contracted Services,15 Jul 2022,2223/04,SME,N,
0010049103,HAYS SPECIALIST RECRUITMENT LTD,"1,944.85",Financial Servs,Agency Staff,29 Jun 2022,2223/04,LGE,Y,50%
0010049262,HAYS SPECIALIST RECRUITMENT LTD,879.12,Organisational Devt,Agency Staff,06 Jul 2022,2223/04,LGE,Y,50%
0010049263,HAYS SPECIALIST RECRUITMENT LTD,879.12,Organisational Devt,Agency Staff,06 Jul 2022,2223/04,LGE,Y,50%
0010049264,HAYS SPECIALIST RECRUITMENT LTD,"1,555.88",Financial Servs,Agency Staff,06 Jul 2022,2223/04,LGE,Y,50%
0010049265,HAYS SPECIALIST RECRUITMENT LTD,879.12,Organisational Devt,Agency Staff,06 Jul 2022,2223/04,LGE,Y,50%
0010049266,HAYS SPECIALIST RECRUITMENT LTD,879.12,Organisational Devt,Agency Staff,06 Jul 2022,2223/04,LGE,Y,50%
0010049267,HAYS SPECIALIST RECRUITMENT LTD,"1,064.00",Financial Servs,Agency Staff,06 Jul 2022,2223/04,LGE,Y,50%
0010049267,HAYS SPECIALIST RECRUITMENT LTD,"1,596.00",HRA Accountancy,Agency Staff,06 Jul 2022,2223/04,LGE,Y,50%
0010049385,HAYS SPECIALIST RECRUITMENT LTD,"2,800.00",ICT - Finance System,Agency Staff,12 Jul 2022,2223/04,LGE,Y,50%
0010049499,HAYS SPECIALIST RECRUITMENT LTD,"1,400.00",ICT - Finance System,Agency Staff,18 Jul 2022,2223/04,LGE,Y,50%
0010049526,HAYS SPECIALIST RECRUITMENT LTD,936.00,Economy & Business,Agency Staff,19 Jul 2022,2223/04,LGE,Y,50%
0010049550,HAYS SPECIALIST RECRUITMENT LTD,"1,944.85",ICT - Finance System,Agency Staff,20 Jul 2022,2223/04,LGE,Y,50%
0010049551,HAYS SPECIALIST RECRUITMENT LTD,"1,555.88",ICT - Finance System,Agency Staff,20 Jul 2022,2223/04,LGE,Y,50%
0010049134,RICHARD UTTING ASSOCIATES LLP,"2,890.00",Bourne Hill Wherstead S106 acq,Prof & Consultancy Fees,30 Jun 2022,2223/04,SME,N,
0010049394,RICHARD UTTING ASSOCIATES LLP,"1,889.18",Waldingfield Rd S106 Andersons,Prof & Consultancy Fees,30 Jun 2022,2223/04,SME,N,
0010049713,NATHANIEL LICHFIELD & PARTNERS LTD,"5,802.88",Devt Policy & Local Plans,Prof & Consultancy Fees,27 Jul 2022,2223/04,SME,Y,50%
0010049107,PUBLIC SEWER SERVICES,448.63,Sewage Treatment Works,Repairs,29 Jun 2022,2223/04,SME,N,
0010049110,PUBLIC SEWER SERVICES,"2,180.66",Building Services,Repairs,29 Jun 2022,2223/04,SME,N,
0010049114,PUBLIC SEWER SERVICES,418.63,Sewage Treatment Works,Repairs,29 Jun 2022,2223/04,SME,N,
0010049167,PRIVATE LANDLORD,680.00,Guaranteed Rent Scheme,Rent Payable,04 Jul 2022,2223/04,SME,N,
0010049216,THE STOWMARKET GLASS COMPANY LTD,493.00,Building Services,Repairs,13 Jun 2022,2223/04,SME,N,
0010049468,THE OFFSHOOT FOUNDATION,"5,473.05",Holiday Activity Funding,"Equipment, Tools & Materials",17 Jul 2022,2223/04,SME,N,
0020027970,RIX PETROLEUM (EAST ANGLIA) LTD,"3,163.08",Open Spaces,Plant & Vehicle Fuel,04 Jul 2022,2223/04,SME,Y,50%
0020027970,RIX PETROLEUM (EAST ANGLIA) LTD,"3,886.85",Tenancy Services,Heating Oil,04 Jul 2022,2223/04,SME,N,
0010049080,GREAT CORNARD SPORTS CENTRE,"6,000.00",Grants & Contrbns,Grants,27 Jun 2022,2223/04,SME,N,
0010049316,STORETEC SERVICES LTD,455.41,ICT,"Equipment, Tools & Materials",30 Jun 2022,2223/04,SME,Y,50%
0010049032,GIPPING OCCUPATIONAL HEALTH LTD,"1,361.30",Health & Safety,Contracted Services,24 Jun 2022,2223/04,SME,Y,50%
0010049236,GIPPING OCCUPATIONAL HEALTH LTD,"1,005.75",Health & Safety,Contracted Services,30 Jun 2022,2223/04,SME,Y,50%
0010049144,AIRMAX REMOTE LTD,459.24,Building Services,Plant & Vehicle - Other costs,30 Jun 2022,2223/04,SME,Y,50%
0010049059,GRAVITAS RECRUITMENT GROUP LTD,"2,000.00",ICT,Agency Staff,27 Jun 2022,2223/04,LGE,Y,50%
0010049222,GRAVITAS RECRUITMENT GROUP LTD,"2,000.00",ICT,Agency Staff,05 Jul 2022,2223/04,LGE,Y,50%
0010049335,GRAVITAS RECRUITMENT GROUP LTD,"2,000.00",ICT,Agency Staff,11 Jul 2022,2223/04,LGE,Y,50%
0010049494,GRAVITAS RECRUITMENT GROUP LTD,"2,000.00",ICT,Agency Staff,18 Jul 2022,2223/04,LGE,Y,50%
0010049480,RESIDENTIALLY CHARTERED SURVEYORS,400.00,Nedging land adj 10CrowcroftRd,Prof & Consultancy Fees,11 Jul 2022,2223/04,SME,N,
0010049598,SUDBURYS,440.00,Guaranteed Rent Scheme,Rent Payable,25 Jul 2022,2223/04,SME,N,
0010049255,WILLIAM H BROWN ESTATE AGENTS - SUDBURY,725.00,Guaranteed Rent Scheme,Rent Payable,07 Jul 2022,2223/04,SME,N,
0010049643,ABBEYCROFT LEISURE,"1,500.00",Policy & Strategy (H & W),Contributions & Donations,22 Jul 2022,2223/04,LGE,N,
0010049644,ABBEYCROFT LEISURE,"14,160.00",Holiday Activity Funding,"Equipment, Tools & Materials",22 Jul 2022,2223/04,LGE,N,
0010049457,BELLWAY HOMES LIMITED (ESSEX DIVISION),"313,516.96",Bourne Hill Wherstead S106 acq,Prof & Consultancy Fees,12 Jul 2022,2223/04,LGE,N,
0010048978,A C LEIGH (NORWICH) LTD,300.00,Building Services,"Equipment, Tools & Materials",13 Jun 2022,2223/04,SME,N,
0010049542,DAVID STAGG & ASSOCIATES LTD T/A DSA ELE,"4,198.86",Rewiring,Major Contracts,30 Jun 2022,2223/04,SME,N,
0010049471,3 POINT PROPERTY MANAGEMENT LTD,550.00,Guaranteed Rent Scheme,Rent Payable,18 Jul 2022,2223/04,SME,N,
0010049395,NORSE EASTERN LTD,"1,950.00",Mand Disabled Facilities Grant,Grants,14 Jul 2022,2223/04,LGE,N,
0010049479,WEST SUFFOLK COUNCIL,"128,454.99",Legal,Contributions to other Bodies,18 Jul 2022,2223/04,LGE,Y,50%
0010049078,EAST SUFFOLK COUNCIL,500.00,Policy & Strategy (H & W),Contributions & Donations,28 Jun 2022,2223/04,LGE,Y,50%
0010049276,ANGLIA COMMERCIAL FLOORING LTD,349.82,Building Services,Repairs,07 Jul 2022,2223/04,SME,N,
0010049277,ANGLIA COMMERCIAL FLOORING LTD,327.96,Building Services,Repairs,07 Jul 2022,2223/04,SME,N,
0010049278,ANGLIA COMMERCIAL FLOORING LTD,489.85,Building Services,Repairs,07 Jul 2022,2223/04,SME,N,
0010049302,ANGLIA COMMERCIAL FLOORING LTD,612.19,Building Services,Repairs,07 Jul 2022,2223/04,SME,N,
0010049306,ANGLIA COMMERCIAL FLOORING LTD,321.03,Building Services,Repairs,07 Jul 2022,2223/04,SME,N,
0010049307,ANGLIA COMMERCIAL FLOORING LTD,534.61,Building Services,Repairs,07 Jul 2022,2223/04,SME,N,
0010049309,ANGLIA COMMERCIAL FLOORING LTD,388.80,Building Services,Repairs,07 Jul 2022,2223/04,SME,N,
0010049310,ANGLIA COMMERCIAL FLOORING LTD,285.36,Building Services,Repairs,07 Jul 2022,2223/04,SME,N,
0010049311,ANGLIA COMMERCIAL FLOORING LTD,278.23,Building Services,Repairs,07 Jul 2022,2223/04,SME,N,
0010049312,ANGLIA COMMERCIAL FLOORING LTD,584.86,Building Services,Repairs,07 Jul 2022,2223/04,SME,N,
0010049313,ANGLIA COMMERCIAL FLOORING LTD,912.85,Building Services,Repairs,07 Jul 2022,2223/04,SME,N,
0020027983,ANGLIAN WATER BUS (NAT) LTD T/A WAVE,54.44,Belle Vue House,Water Rates - Metered,12 Jul 2022,2223/04,LGE,N,
0020027983,ANGLIAN WATER BUS (NAT) LTD T/A WAVE,131.59,C Parks General,Water Rates - Metered,12 Jul 2022,2223/04,LGE,N,
0020027983,ANGLIAN WATER BUS (NAT) LTD T/A WAVE,693.68,Chilton Depot,Water Rates - Metered,12 Jul 2022,2223/04,LGE,Y,50%
0020027983,ANGLIAN WATER BUS (NAT) LTD T/A WAVE,3.97,Friars Meadow Sudb,Water Rates - Metered,12 Jul 2022,2223/04,LGE,N,
0020027983,ANGLIAN WATER BUS (NAT) LTD T/A WAVE,60.25,General Rechargeable Works,Misc Supplies & Services Costs,12 Jul 2022,2223/04,LGE,N,
0020027983,ANGLIAN WATER BUS (NAT) LTD T/A WAVE,-72.10,HQ Energy,Water Rates - Metered,12 Jul 2022,2223/04,LGE,N,
0020027983,ANGLIAN WATER BUS (NAT) LTD T/A WAVE,-281.35,Public Conveniences,Water Rates - Metered,12 Jul 2022,2223/04,LGE,N,
0020027983,ANGLIAN WATER BUS (NAT) LTD T/A WAVE,"3,650.22",Sheltered Accommodation,Water Rates - Metered,12 Jul 2022,2223/04,LGE,N,
0020027983,ANGLIAN WATER BUS (NAT) LTD T/A WAVE,129.60,Temporary Accommodation,Water Rates - Metered,12 Jul 2022,2223/04,LGE,N,
0020027983,ANGLIAN WATER BUS (NAT) LTD T/A WAVE,-49.43,Tenancy Services,Water Rates - Metered,12 Jul 2022,2223/04,LGE,N,
0020027983,ANGLIAN WATER BUS (NAT) LTD T/A WAVE,13.48,Tenancy Services,Water Rates - Unmetered,12 Jul 2022,2223/04,LGE,N,
0010049177,STUDLEY CAPITAL LIMITED,"4,275.00",Hamilton Road Regeneration,Prof & Consultancy Fees,04 Jul 2022,2223/04,ST,N,
0010049547,GREENACRE RECRUITMENT LTD,"1,272.00",Building Services,Prof & Consultancy Fees,13 Jul 2022,2223/04,SME,Y,50%
0010049624,GREENACRE RECRUITMENT LTD,"3,195.40",Building Services,Prof & Consultancy Fees,20 Jul 2022,2223/04,SME,Y,50%
0010049708,GREENACRE RECRUITMENT LTD,"3,189.55",Building Services,Prof & Consultancy Fees,27 Jul 2022,2223/04,SME,Y,50%
0010049142,TIAA LTD,"4,506.38",Internal Audit,Contracted Services,01 Jul 2022,2223/04,SME,Y,50%
0010049625,BYCHOICE LTD,950.00,Guaranteed Rent Scheme,Rent Payable,25 Jul 2022,2223/04,SME,N,
0010049549,LAND USE CONSULTANTS LTD,"11,079.00",Nghbrhd Plan Designations,Prof & Consultancy Fees,20 Jul 2022,2223/04,SME,N,
0010049633,REEFER PROPERTIES LTD,695.00,Guaranteed Rent Scheme,Rent Payable,25 Jul 2022,2223/04,SME,N,
0010049514,GRYPHON FIRST AID UNIT,"1,400.00",Grants & Contrbns,Contributions & Donations,19 Jul 2022,2223/04,SME,N,
0020027972,PRIVATE LANDLORD,515.00,Guaranteed Rent Scheme,Rent Payable,01 Jul 2022,2223/04,SME,N,
0010049249,PRIVATE LANDLORD,675.00,Guaranteed Rent Scheme,Rent Payable,07 Jul 2022,2223/04,ST,N,
0010049626,PRIVATE LANDLORD,675.00,Guaranteed Rent Scheme,Rent Payable,25 Jul 2022,2223/04,ST,N,
0010049500,PRIVATE LANDLORD,650.00,Guaranteed Rent Scheme,Rent Payable,19 Jul 2022,2223/04,SME,N,
0010049503,PRIVATE LANDLORD,"1,198.00",Guaranteed Rent Scheme,Rent Payable,19 Jul 2022,2223/04,ST,N,
0010049334,BUCHER MUNICIPAL LTD,818.48,Street & Major Road Cleansing,"Equipment, Tools & Materials",08 Jul 2022,2223/04,LGE,N,
0010049636,SEQUENCE UK LTD (WILLIAM H BROWN),700.00,Guaranteed Rent Scheme,Rent Payable,25 Jul 2022,2223/04,LGE,N,
0010049599,PRIVATE LANDLORD,550.00,Guaranteed Rent Scheme,Rent Payable,25 Jul 2022,2223/04,ST,N,
0010049632,PRIVATE LANDLORD,700.00,Guaranteed Rent Scheme,Rent Payable,25 Jul 2022,2223/04,ST,N,
0010049170,PRIVATE LANDLORD,"1,320.00",Guaranteed Rent Scheme,Rent Payable,04 Jul 2022,2223/04,SME,N,
0010049208,SUFFOLK DOORS & WINDOWS LTD,980.00,Major Imps,Improvements,05 Jul 2022,2223/04,SME,N,
0010049466,SUFFOLK DOORS & WINDOWS LTD,"7,250.00",Roofing,Improvements,15 Jul 2022,2223/04,SME,N,
0010049467,SUFFOLK DOORS & WINDOWS LTD,"7,250.00",Roofing,Improvements,15 Jul 2022,2223/04,SME,N,
0010049169,PRIVATE LANDLORD,786.50,Guaranteed Rent Scheme,Rent Payable,04 Jul 2022,2223/04,ST,N,
0010049248,PRIVATE LANDLORD,650.00,Guaranteed Rent Scheme,Rent Payable,07 Jul 2022,2223/04,ST,N,
0010049325,COUNTRYSTYLE RECYCLING LTD,"4,323.61",Bring Sites,Contracted Services,30 Jun 2022,2223/04,SME,N,
0010049168,PRIVATE LANDLORD,700.00,Guaranteed Rent Scheme,Rent Payable,04 Jul 2022,2223/04,ST,N,
0010049250,PRIVATE LANDLORD,800.00,Guaranteed Rent Scheme,Rent Payable,07 Jul 2022,2223/04,ST,N,
0010049231,CARE PLUS STAFFORDSHIRE LTD,"7,162.92",Sheltered General Mgmt,Community Alarm Costs,25 Jun 2022,2223/04,SME,N,
0010049231,CARE PLUS STAFFORDSHIRE LTD,63.67,Homelessness Private Sector,Telephone Costs,25 Jun 2022,2223/04,SME,N,
0010049231,CARE PLUS STAFFORDSHIRE LTD,541.20,Building Services,Telephone Costs,25 Jun 2022,2223/04,SME,N,
0010049231,CARE PLUS STAFFORDSHIRE LTD,63.67,Other Public Health Matters,Telephone Costs,25 Jun 2022,2223/04,SME,N,
0010049231,CARE PLUS STAFFORDSHIRE LTD,63.67,Bldg Control Commercial Income,Telephone Costs,25 Jun 2022,2223/04,SME,N,
0010049231,CARE PLUS STAFFORDSHIRE LTD,63.67,Civil Protection & Emerg Plg,Telephone Costs,25 Jun 2022,2223/04,SME,N,
0010049232,CARE PLUS STAFFORDSHIRE LTD,270.50,Sheltered General Mgmt,Community Alarm Costs,25 Jun 2022,2223/04,SME,N,
0010049232,CARE PLUS STAFFORDSHIRE LTD,2.40,Homelessness Private Sector,Telephone Costs,25 Jun 2022,2223/04,SME,N,
0010049232,CARE PLUS STAFFORDSHIRE LTD,20.44,Building Services,Telephone Costs,25 Jun 2022,2223/04,SME,N,
0010049232,CARE PLUS STAFFORDSHIRE LTD,2.40,Other Public Health Matters,Telephone Costs,25 Jun 2022,2223/04,SME,N,
0010049232,CARE PLUS STAFFORDSHIRE LTD,2.40,Bldg Control Commercial Income,Telephone Costs,25 Jun 2022,2223/04,SME,N,
0010049232,CARE PLUS STAFFORDSHIRE LTD,2.42,Civil Protection & Emerg Plg,Telephone Costs,25 Jun 2022,2223/04,SME,N,
0010049233,CARE PLUS STAFFORDSHIRE LTD,"7,433.42",Sheltered General Mgmt,Community Alarm Costs,01 Jul 2022,2223/04,SME,N,
0010049233,CARE PLUS STAFFORDSHIRE LTD,66.08,Homelessness Private Sector,Telephone Costs,01 Jul 2022,2223/04,SME,N,
0010049233,CARE PLUS STAFFORDSHIRE LTD,561.64,Building Services,Telephone Costs,01 Jul 2022,2223/04,SME,N,
0010049233,CARE PLUS STAFFORDSHIRE LTD,66.08,Other Public Health Matters,Telephone Costs,01 Jul 2022,2223/04,SME,N,
0010049233,CARE PLUS STAFFORDSHIRE LTD,66.08,Bldg Control Commercial Income,Telephone Costs,01 Jul 2022,2223/04,SME,N,
0010049233,CARE PLUS STAFFORDSHIRE LTD,66.06,Civil Protection & Emerg Plg,Telephone Costs,01 Jul 2022,2223/04,SME,N,
0010049234,CARE PLUS STAFFORDSHIRE LTD,"7,433.42",Sheltered General Mgmt,Community Alarm Costs,06 Jul 2022,2223/04,SME,N,
0010049234,CARE PLUS STAFFORDSHIRE LTD,66.08,Homelessness Private Sector,Telephone Costs,06 Jul 2022,2223/04,SME,N,
0010049234,CARE PLUS STAFFORDSHIRE LTD,561.64,Building Services,Telephone Costs,06 Jul 2022,2223/04,SME,N,
0010049234,CARE PLUS STAFFORDSHIRE LTD,66.08,Other Public Health Matters,Telephone Costs,06 Jul 2022,2223/04,SME,N,
0010049234,CARE PLUS STAFFORDSHIRE LTD,66.08,Bldg Control Commercial Income,Telephone Costs,06 Jul 2022,2223/04,SME,N,
0010049234,CARE PLUS STAFFORDSHIRE LTD,66.06,Civil Protection & Emerg Plg,Telephone Costs,06 Jul 2022,2223/04,SME,N,
0010049235,CARE PLUS STAFFORDSHIRE LTD,"7,433.44",Sheltered General Mgmt,Community Alarm Costs,01 Jan 2022,2223/04,SME,N,
0010049235,CARE PLUS STAFFORDSHIRE LTD,66.07,Homelessness Private Sector,Telephone Costs,01 Jan 2022,2223/04,SME,N,
0010049235,CARE PLUS STAFFORDSHIRE LTD,561.62,Building Services,Telephone Costs,01 Jan 2022,2223/04,SME,N,
0010049235,CARE PLUS STAFFORDSHIRE LTD,66.07,Other Public Health Matters,Telephone Costs,01 Jan 2022,2223/04,SME,N,
0010049235,CARE PLUS STAFFORDSHIRE LTD,66.07,Bldg Control Commercial Income,Telephone Costs,01 Jan 2022,2223/04,SME,N,
0010049235,CARE PLUS STAFFORDSHIRE LTD,66.09,Civil Protection & Emerg Plg,Telephone Costs,01 Jan 2022,2223/04,SME,N,
0010049326,CARE PLUS STAFFORDSHIRE LTD,"7,456.60",Sheltered General Mgmt,Community Alarm Costs,29 Jun 2022,2223/04,SME,N,
0010049326,CARE PLUS STAFFORDSHIRE LTD,66.28,Homelessness Private Sector,Telephone Costs,29 Jun 2022,2223/04,SME,N,
0010049326,CARE PLUS STAFFORDSHIRE LTD,563.39,Building Services,Telephone Costs,29 Jun 2022,2223/04,SME,N,
0010049326,CARE PLUS STAFFORDSHIRE LTD,66.28,Other Public Health Matters,Telephone Costs,29 Jun 2022,2223/04,SME,N,
0010049326,CARE PLUS STAFFORDSHIRE LTD,66.28,Bldg Control Commercial Income,Telephone Costs,29 Jun 2022,2223/04,SME,N,
0010049326,CARE PLUS STAFFORDSHIRE LTD,66.28,Civil Protection & Emerg Plg,Telephone Costs,29 Jun 2022,2223/04,SME,N,
0010049462,BSEVC,"1,000.00",Grants & Contrbns,Grants,15 Jul 2022,2223/04,SME,N,
0010049254,PRIVATE LANDLORD,800.00,Guaranteed Rent Scheme,Rent Payable,07 Jul 2022,2223/04,SME,N,
0010049061,ARAN INSULATION LTD,"2,063.06",Insulation Imps,Improvements,27 Jun 2022,2223/04,SME,N,
0010049275,ARAN INSULATION LTD,941.66,Insulation Imps,Improvements,07 Jul 2022,2223/04,SME,N,
0010049404,ARAN INSULATION LTD,"2,632.29",Insulation Imps,Improvements,14 Jul 2022,2223/04,SME,N,
0010049405,ARAN INSULATION LTD,"4,144.02",Insulation Imps,Improvements,14 Jul 2022,2223/04,SME,N,
0010049478,PRIVATE LANDLORD,580.00,Guaranteed Rent Scheme,Rent Payable,18 Jul 2022,2223/04,ST,N,
0010049489,ELENTEC LTD,"9,996.00",Pld Maint/Enhncmts-Kingfisher,Improvements,14 Jun 2022,2223/04,SME,N,
0010049396,IHASCO LTD,"3,800.00",Organisational Devt,Corporate Training,30 Jun 2022,2223/04,SME,Y,50%
0010049639,IHASCO LTD,"1,600.00",Organisational Devt,Training,25 Apr 2022,2223/04,SME,Y,50%
0010049314,SSE,655.53,Other Temp Accommodation,Gas,05 Jul 2022,2223/04,LGE,N,
0010049355,JACKSON LIFT SERVICES LTD,"1,041.65",Sheltered Accommodation,Plant Maintenance,07 Jul 2022,2223/04,LGE,N,
0010049252,DAVID BURR LETTINGS,700.00,Guaranteed Rent Scheme,Rent Payable,07 Jul 2022,2223/04,SME,N,
0010049083,FOURWAYS VEHICLE SOLUTIONS LTD,644.00,Building Services,Lease Cars - Payment,23 Jun 2022,2223/04,SME,Y,50%
0010049149,START AFRESH CLEANING LTD,565.67,Street & Major Road Cleansing,General Cleaning,30 Jun 2022,2223/04,SME,N,
0010049501,REGENCY GUARDING & EVENTS LTD,620.00,Open Spaces,Contracted Services,12 Jul 2022,2223/04,SME,N,
0010049246,PRIVATE LANDLORD,715.00,Guaranteed Rent Scheme,Rent Payable,07 Jul 2022,2223/04,SME,N,
0010049530,PIXEL FINANCIAL MANAGEMENT LTD,"1,050.00",Financial Servs,Subscriptions,18 Jul 2022,2223/04,SME,N,
0010049476,SHJ HOMES LTD,550.00,Guaranteed Rent Scheme,Rent Payable,18 Jul 2022,2223/04,SME,N,
0010049506,PRIVATE LANDLORD,500.00,Guaranteed Rent Scheme,Rent Payable,19 Jul 2022,2223/04,ST,N,
0010049693,ANGLIA SPORTS MANAGEMENT LTD,"6,000.00",Holiday Activity Funding,"Equipment, Tools & Materials",14 Jul 2022,2223/04,SME,N,
0010049189,NAGELS UK LTD,"1,360.00",C Parks General,Stationery,04 Jul 2022,2223/04,SME,N,
0010049673,PREMIER EDUCATION,986.63,Holiday Activity Funding,"Equipment, Tools & Materials",22 Jul 2022,2223/04,SME,N,
0010049674,PREMIER EDUCATION,"1,973.37",Holiday Activity Funding,"Equipment, Tools & Materials",22 Jul 2022,2223/04,SME,N,
0010049251,PRIVATE LANDLORD,675.00,Guaranteed Rent Scheme,Rent Payable,07 Jul 2022,2223/04,ST,N,
0010049247,PRIVATE LANDLORD,500.00,Guaranteed Rent Scheme,Rent Payable,07 Jul 2022,2223/04,ST,N,
0010049317,SHARPS ACOUSTICS LLP,930.00,Devt Management -Applications,Environmental  Consultancy,30 Jun 2022,2223/04,SME,N,
0010049253,PRIVATE LANDLORD,650.00,Guaranteed Rent Scheme,Rent Payable,07 Jul 2022,2223/04,ST,N,
0010049472,PRIVATE LANDLORD,650.00,Guaranteed Rent Scheme,Rent Payable,18 Jul 2022,2223/04,ST,N,
0010049458,MAXIM SPORTS COACHING,"2,240.00",Holiday Activity Funding,"Equipment, Tools & Materials",15 Jul 2022,2223/04,SME,N,
0010049581,MAXIM SPORTS COACHING,"1,120.00",Holiday Activity Funding,"Equipment, Tools & Materials",22 Jul 2022,2223/04,SME,N,
0010049475,PRIVATE LANDLORD,695.00,Guaranteed Rent Scheme,Rent Payable,18 Jul 2022,2223/04,ST,N,
0010049481,HAMILTON SMITH LETTINGS,670.00,Guaranteed Rent Scheme,Rent Payable,18 Jul 2022,2223/04,SME,N,
0010049256,JB PROPERTY SOLUTIONS (SUFFOLK) LTD T/A,455.00,Guaranteed Rent Scheme,Rent Payable,07 Jul 2022,2223/04,SME,N,
0010049537,FORK KITCHEN & DELI,525.00,Business Innovation Grants,Grants,20 Jul 2022,2223/04,SME,N,
0010049258,KBM HOUSE SHARE & PROPERTY MANAGEMENT LT,550.00,Guaranteed Rent Scheme,Rent Payable,07 Jul 2022,2223/04,SME,N,
0010049508,PAY 360 LIMITED,"1,292.14",Bank Chgs,Bank Charges,10 May 2022,2223/04,0,Y,50%
0010049509,PAY 360 LIMITED,"5,141.54",Bank Chgs,Bank Charges,11 May 2022,2223/04,0,N,
0010049510,PAY 360 LIMITED,"6,381.49",Bank Chgs,Bank Charges,09 Jun 2022,2223/04,0,N,
0010049511,PAY 360 LIMITED,"1,211.43",Bank Chgs,Bank Charges,13 Jun 2022,2223/04,0,Y,50%
0010049512,PAY 360 LIMITED,"1,145.62",Bank Chgs,Bank Charges,14 Jul 2022,2223/04,0,Y,50%
0010049513,PAY 360 LIMITED,"5,140.37",Bank Chgs,Bank Charges,18 Jul 2022,2223/04,0,N,
0010049257,PRIVATE LANDLORD,550.00,Guaranteed Rent Scheme,Rent Payable,07 Jul 2022,2223/04,SME,N,
0010049482,PRIVATE LANDLORD,885.00,Guaranteed Rent Scheme,Rent Payable,18 Jul 2022,2223/04,ST,N,
0020027964,PRIVATE LANDLORD,750.00,Guaranteed Rent Scheme,Misc Supplies & Services Costs,28 Jun 2022,2223/04,ST,N,
0020027964,PRIVATE LANDLORD,150.48,Guaranteed Rent Scheme,Rent Payable,28 Jun 2022,2223/04,ST,N,
0010049132,BUILDING RESEARCH ESTABLISHMENT LTD,"1,000.00",Housing Standards,Line of Business Applications,30 Jun 2022,2223/04,LGE,Y,50%
0010049074,WEDNESDAYS CHILD,"2,500.00",Suffolk Community Restart Fund,Grants,27 Jun 2022,2223/04,SME,N,
0010049459,ROTARY CLUB OF SUDBURY - CRUCIAL CREW,"1,000.00",Grants & Contrbns,Grants,15 Jul 2022,2223/04,SME,N,
0010049440,HADLEIGH GRAND FEOFFMENT CHARITY,"3,078.00",Renovation/Home Repair Grants,Grants,15 Jul 2022,2223/04,SME,N,
0010049441,HADLEIGH GRAND FEOFFMENT CHARITY,"3,078.00",Renovation/Home Repair Grants,Grants,15 Jul 2022,2223/04,SME,N,
0010049516,SHOTLEY RANGERS FOOTBALL CLUB,440.00,Grants & Contrbns,Contributions & Donations,19 Jul 2022,2223/04,SME,N,
0010049553,FRESH START CHARITY,"3,413.34",Holiday Activity Funding,"Equipment, Tools & Materials",21 Jul 2022,2223/04,SME,N,
0010049772,HOLBROOK SOCIETY,406.00,Grants & Contrbns,Contributions & Donations,29 Jul 2022,2223/04,SME,N,
0020027981,CASTONS,-50.56,Kingfisher LC Refurb,Prof & Consultancy Fees,25 Jul 2022,2223/04,SME,N,
0000001024,CLARKE FENCING LTD,"-25,097.37",Building Services,Repairs,11 Jul 2022,2223/04,SME,N,
0010049056,GIPPING OCCUPATIONAL HEALTH LTD,-45.00,Health & Safety,Contracted Services,27 Jun 2022,2223/04,SME,N,
0010049378,GIPPING OCCUPATIONAL HEALTH LTD,-252.08,Health & Safety,Contracted Services,30 Jun 2022,2223/04,SME,Y,50%
0010049379,GIPPING OCCUPATIONAL HEALTH LTD,-22.92,Health & Safety,Contracted Services,29 Jun 2022,2223/04,SME,N,
0020027963,GIPPING OCCUPATIONAL HEALTH LTD,-144.00,Health & Safety,Contracted Services,27 Jun 2022,2223/04,SME,Y,50%
0010049690,AARON SERVICES LTD,"27,286.09",Planned Maint - Heating,Property Servicing,30 Jun 2022,2223/05,SME,N,
0010050214,AARON SERVICES LTD,"27,286.09",Planned Maint - Heating,Property Servicing,25 Jul 2022,2223/05,SME,N,
0020028003,AARON SERVICES LTD,"3,969.19",Current Liabilities,Cert IBS Creditors Holding ac,05 Aug 2022,2223/05,SME,N,
0020028006,AARON SERVICES LTD,"1,944.01",Current Liabilities,Cert IBS Creditors Holding ac,15 Aug 2022,2223/05,SME,N,
0010049619,ACADEMY BUILDING CONTRACTS LTD,"6,126.71","Fences, Gates and Walls",Improvements,22 Jul 2022,2223/05,SME,N,
0010049620,ACADEMY BUILDING CONTRACTS LTD,"1,542.15","Fences, Gates and Walls",BMBS Repairs Work,22 Jul 2022,2223/05,SME,N,
0010049621,ACADEMY BUILDING CONTRACTS LTD,"3,072.62",Building Services,Repairs,22 Jul 2022,2223/05,SME,N,
0010049622,ACADEMY BUILDING CONTRACTS LTD,"1,542.15","Fences, Gates and Walls",BMBS Repairs Work,22 Jul 2022,2223/05,SME,N,
0010049804,ACADEMY BUILDING CONTRACTS LTD,"1,182.58","Fences, Gates and Walls",BMBS Repairs Work,29 Jul 2022,2223/05,SME,N,
0010049805,ACADEMY BUILDING CONTRACTS LTD,834.76,"Fences, Gates and Walls",BMBS Repairs Work,29 Jul 2022,2223/05,SME,N,
0010049806,ACADEMY BUILDING CONTRACTS LTD,310.07,Building Services,Repairs,29 Jul 2022,2223/05,SME,N,
0010049807,ACADEMY BUILDING CONTRACTS LTD,871.76,"Fences, Gates and Walls",BMBS Repairs Work,29 Jul 2022,2223/05,SME,N,
0010049808,ACADEMY BUILDING CONTRACTS LTD,"2,933.42","Fences, Gates and Walls",BMBS Repairs Work,29 Jul 2022,2223/05,SME,N,
0010050148,ACADEMY BUILDING CONTRACTS LTD,"4,753.82","Fences, Gates and Walls",BMBS Repairs Work,12 Aug 2022,2223/05,SME,N,
0010050149,ACADEMY BUILDING CONTRACTS LTD,"2,933.42","Fences, Gates and Walls",BMBS Repairs Work,12 Aug 2022,2223/05,SME,N,
0010050150,ACADEMY BUILDING CONTRACTS LTD,"2,643.41","Fences, Gates and Walls",BMBS Repairs Work,12 Aug 2022,2223/05,SME,N,
0010050151,ACADEMY BUILDING CONTRACTS LTD,"4,666.86","Fences, Gates and Walls",BMBS Repairs Work,12 Aug 2022,2223/05,SME,N,
0010050152,ACADEMY BUILDING CONTRACTS LTD,"1,820.41","Fences, Gates and Walls",BMBS Repairs Work,12 Aug 2022,2223/05,SME,N,
0010050153,ACADEMY BUILDING CONTRACTS LTD,429.14,"Fences, Gates and Walls",BMBS Repairs Work,12 Aug 2022,2223/05,SME,N,
0010050236,ACADEMY BUILDING CONTRACTS LTD,"1,194.34","Fences, Gates and Walls",BMBS Repairs Work,18 Aug 2022,2223/05,SME,N,
0010050237,ACADEMY BUILDING CONTRACTS LTD,261.97,"Fences, Gates and Walls",BMBS Repairs Work,18 Aug 2022,2223/05,SME,N,
0010049563,ADVANCED CONTROLS & MANAGEMENT SYSTEMS L,"2,491.43",Pld Maint/Enhncmts-Kingfisher,Improvements,05 Jul 2022,2223/05,SME,N,
0010048951,AE WHITE SURFACING,"1,000.00",Public Sector Decarbonisation,Prof & Consultancy Fees,20 Jun 2022,2223/05,SME,N,
0010049846,AE WHITE SURFACING,398.57,Insurance Claims,Misc Premises Costs,30 Jun 2022,2223/05,SME,N,
0010049924,AE WHITE SURFACING,411.85,Insurance Claims,Misc Premises Costs,31 Jul 2022,2223/05,SME,N,
0010049970,ANGLIAN WATER,710.93,Water Sampling,Sampling & Analysis,27 Jun 2022,2223/05,LGE,N,
0010050432,ANGLIAN WATER,"2,064.97",Temporary Accommodation,Water Rates - Other Charges,02 Aug 2022,2223/05,LGE,N,
0010049770,BINDER LTD,976.19,Sewage Treatment Works,Contracted Services,28 Jul 2022,2223/05,SME,N,
0010049797,BINDER LTD,946.00,Sewage Treatment Works,Contracted Services,18 Jul 2022,2223/05,SME,N,
0010049797,BINDER LTD,88.47,Sewage Treatment Works,Repairs,18 Jul 2022,2223/05,SME,N,
0010049931,BINDER LTD,217.50,Sewage Treatment Works,Contracted Services,29 Jul 2022,2223/05,SME,N,
0010049931,BINDER LTD,93.50,Sewage Treatment Works,Contracted Services,29 Jul 2022,2223/05,SME,N,
0010050093,BLUE FLAME (COLCHESTER) LTD,"9,195.00",Central Heating,Improvements,26 Jul 2022,2223/05,SME,N,
0010050094,BLUE FLAME (COLCHESTER) LTD,"9,760.00",Central Heating,Improvements,26 Jul 2022,2223/05,SME,N,
0010050103,BLUE FLAME (COLCHESTER) LTD,"9,295.00",Central Heating,Improvements,11 Aug 2022,2223/05,SME,N,
0010050104,BLUE FLAME (COLCHESTER) LTD,"9,514.00",Central Heating,Improvements,11 Aug 2022,2223/05,SME,N,
0010050105,BLUE FLAME (COLCHESTER) LTD,"9,295.00",Central Heating,Improvements,11 Aug 2022,2223/05,SME,N,
0010050194,BLUE FLAME (COLCHESTER) LTD,"9,295.00",Central Heating,Improvements,12 Aug 2022,2223/05,SME,N,
0010050195,BLUE FLAME (COLCHESTER) LTD,"9,295.00",Central Heating,Improvements,12 Aug 2022,2223/05,SME,N,
0010050202,BLUE FLAME (COLCHESTER) LTD,"9,295.00",Central Heating,Improvements,05 Jul 2022,2223/05,SME,N,
0010050203,BLUE FLAME (COLCHESTER) LTD,"9,295.00",Central Heating,Improvements,05 Jul 2022,2223/05,SME,N,
0010050204,BLUE FLAME (COLCHESTER) LTD,"9,145.00",Central Heating,Improvements,16 Jun 2022,2223/05,SME,N,
0010050205,BLUE FLAME (COLCHESTER) LTD,"9,295.00",Central Heating,Improvements,24 May 2022,2223/05,SME,N,
0010050206,BLUE FLAME (COLCHESTER) LTD,"8,500.00",Central Heating,Improvements,24 May 2022,2223/05,SME,N,
0010050207,BLUE FLAME (COLCHESTER) LTD,"9,620.00",Central Heating,Improvements,17 May 2022,2223/05,SME,N,
0010050208,BLUE FLAME (COLCHESTER) LTD,"9,295.00",Central Heating,Improvements,03 May 2022,2223/05,SME,N,
0010050209,BLUE FLAME (COLCHESTER) LTD,"9,860.00",Central Heating,Improvements,28 Apr 2022,2223/05,SME,N,
0010049886,BOTTOMLINE TECHNOLOGIES,701.21,ICT,Software Licnse (Line of Bus) ,31 Jul 2022,2223/05,LGE,Y,50%
0010049898,BOWER FULLER,"8,196.90",Sheltered Units-Gen.Imp,Improvements,29 Jul 2022,2223/05,SME,N,
0010049900,BOWER FULLER,936.81,Building Services,Repairs,29 Jul 2022,2223/05,SME,N,
0010049905,BOWER FULLER,394.49,Assets & Development,Repairs,29 Jul 2022,2223/05,SME,N,
0010049922,BSI,633.00,Bldg Regs Chargeable Serv,Subscriptions,01 Aug 2022,2223/05,LGE,N,
0010050024,CAPITA BUSINESS SERVICES LTD,"1,150.00",Building Services,Contracted Services,08 Aug 2022,2223/05,LGE,Y,50%
0010050106,CHASSIS-CAB LTD,"1,182.04",Street & Major Road Cleansing,Plant & Vehicle - Other costs,11 Aug 2022,2223/05,SME,N,
0010050397,CHEQUERS HOTEL LTD,845.00,Homelessness Private Sector,B&B Costs,01 Aug 2022,2223/05,SME,N,
0010050398,CHEQUERS HOTEL LTD,617.50,Homelessness Private Sector,B&B Costs,01 Aug 2022,2223/05,SME,N,
0010050400,CHEQUERS HOTEL LTD,"1,950.00",Homelessness Private Sector,B&B Costs,01 Aug 2022,2223/05,SME,N,
0010050403,CHEQUERS HOTEL LTD,"1,462.50",Homelessness Private Sector,B&B Costs,04 Jul 2022,2223/05,SME,N,
0010050404,CHEQUERS HOTEL LTD,292.50,Homelessness Private Sector,B&B Costs,04 Jul 2022,2223/05,SME,N,
0010050407,CHEQUERS HOTEL LTD,260.00,Homelessness Private Sector,B&B Costs,04 Jul 2022,2223/05,SME,N,
0010050408,CHEQUERS HOTEL LTD,"1,137.50",Homelessness Private Sector,B&B Costs,04 Jul 2022,2223/05,SME,N,
0010050409,CHEQUERS HOTEL LTD,390.00,Homelessness Private Sector,B&B Costs,04 Jul 2022,2223/05,SME,N,
0010050189,CHIPSIDE LTD,762.34,C Parks General,Contracted Services,31 Jul 2022,2223/05,SME,N,
0010050033,CLARKE FENCING LTD,358.38,Street & Major Road Cleansing,Plant & Vehicle - Other costs,08 Aug 2022,2223/05,SME,N,
0010050275,CLARKES OF WALSHAM LTD,525.18,Building Services,Repairs,19 Aug 2022,2223/05,SME,N,
0010049731,D W ADAMS LTD,"4,952.00",Council House Adaptions,Improvements,28 Jul 2022,2223/05,SME,N,
0010049732,D W ADAMS LTD,265.00,Disabled Facilities (Revenue),Repairs,28 Jul 2022,2223/05,SME,N,
0010049989,D W ADAMS LTD,"1,081.00",Building Services,Repairs,08 Aug 2022,2223/05,SME,N,
0010049990,D W ADAMS LTD,622.00,Disabled Facilities (Revenue),Repairs,08 Aug 2022,2223/05,SME,N,
0010049991,D W ADAMS LTD,622.00,Building Services,Repairs,08 Aug 2022,2223/05,SME,N,
0010050073,D W ADAMS LTD,273.00,Building Services,Repairs,10 Aug 2022,2223/05,SME,N,
0010050112,D W ADAMS LTD,"5,057.00",Council House Adaptions,Improvements,12 Aug 2022,2223/05,SME,N,
0010050281,D W ADAMS LTD,662.00,Building Services,Repairs,19 Aug 2022,2223/05,SME,N,
0010050282,D W ADAMS LTD,622.00,Building Services,Repairs,19 Aug 2022,2223/05,SME,N,
0010050283,D W ADAMS LTD,"6,659.00",Council House Adaptions,Improvements,19 Aug 2022,2223/05,SME,N,
0010049973,ENER-G SWITCH2 LTD,201.23,Temporary Accommodation,Repairs,05 Aug 2022,2223/05,SME,N,
0010049973,ENER-G SWITCH2 LTD,161.59,Temporary Accommodation,Repairs,05 Aug 2022,2223/05,SME,N,
0010049711,ENVIROVENT LTD,576.86,Building Services,Repairs,25 Jul 2022,2223/05,SME,N,
0010049727,ENVIROVENT LTD,349.00,Building Services,Repairs,26 Jul 2022,2223/05,SME,N,
0010049728,ENVIROVENT LTD,460.00,Building Services,Repairs,26 Jul 2022,2223/05,SME,N,
0010049729,ENVIROVENT LTD,460.00,Building Services,Repairs,26 Jul 2022,2223/05,SME,N,
0010049769,ENVIROVENT LTD,709.00,Building Services,Repairs,27 Jul 2022,2223/05,SME,N,
0010050196,ENVIROVENT LTD,460.00,Building Services,Repairs,09 Aug 2022,2223/05,SME,N,
0010050197,ENVIROVENT LTD,460.00,Building Services,Repairs,09 Aug 2022,2223/05,SME,N,
0010050198,ENVIROVENT LTD,460.00,Stairlifts,Repairs,09 Aug 2022,2223/05,SME,N,
0010050253,ENVIROVENT LTD,958.00,Insulation Imps,Improvements,15 Aug 2022,2223/05,SME,N,
0010049730,FELLBRIDGE BUILDING SERVICES,"2,712.41",Major Imps,Improvements,28 Jul 2022,2223/05,SME,N,
0010049811,FORE-MOST GARAGE DOORS LTD,700.00,Building Services,Repairs,30 Jul 2022,2223/05,SME,N,
0010049848,GB ADAPTIONS LTD,"7,478.00",Mand Disabled Facilities Grant,Grants,02 Aug 2022,2223/05,SME,N,
0010049932,GB ADAPTIONS LTD,"7,753.93",Mand Disabled Facilities Grant,Grants,04 Aug 2022,2223/05,SME,N,
0010049602,G4S CASH SOLUTIONS LTD,330.24,C Parks General,Audit Fees,28 Feb 2022,2223/05,LGE,N,
0010049604,G4S CASH SOLUTIONS LTD,268.32,C Parks General,Audit Fees,31 May 2022,2223/05,LGE,N,
0010049605,G4S CASH SOLUTIONS LTD,433.44,C Parks General,Audit Fees,31 Jan 2022,2223/05,LGE,N,
0010049606,G4S CASH SOLUTIONS LTD,460.80,C Parks General,Audit Fees,31 Dec 2021,2223/05,LGE,N,
0010049949,G4S CASH SOLUTIONS LTD,516.00,C Parks General,Audit Fees,31 Jul 2022,2223/05,LGE,N,
0010049801,HAYES DIGGINS BUILDERS,"1,615.00",Stairlifts,Repairs,01 Aug 2022,2223/05,SME,N,
0010050005,HAYES DIGGINS BUILDERS,"11,551.00",Stairlifts,Repairs,08 Aug 2022,2223/05,SME,N,
0010050006,HAYES DIGGINS BUILDERS,"1,595.00",Building Services,Repairs,08 Aug 2022,2223/05,SME,N,
0010050089,HAYES DIGGINS BUILDERS,560.00,Building Services,Repairs,28 Jun 2022,2223/05,SME,N,
0010050111,HAYES DIGGINS BUILDERS,"1,390.00",Building Services,Repairs,20 Jun 2022,2223/05,SME,N,
0010049682,JMP SERVICES LTD,380.00,Street & Major Road Cleansing,Contracted Services,25 Jul 2022,2223/05,SME,N,
0010049700,KEN GRIME & SON LTD,"1,094.30",Building Services,Repairs,27 Jul 2022,2223/05,SME,N,
0010049983,KEN GRIME & SON LTD,"1,020.70",Building Services,Repairs,13 Jul 2022,2223/05,SME,N,
0010050274,KENDA-CLEAN,27.00,Chilton Depot,Window Cleaning,19 Aug 2022,2223/05,SME,Y,50%
0010050274,KENDA-CLEAN,"1,217.00",Sheltered Accommodation,Window Cleaning,19 Aug 2022,2223/05,SME,N,
0010050274,KENDA-CLEAN,123.00,Temporary Accommodation,Window Cleaning,19 Aug 2022,2223/05,SME,N,
0010050274,KENDA-CLEAN,771.00,Tenancy Services,Window Cleaning,19 Aug 2022,2223/05,SME,N,
0010049753,KEYWAYS THE LOCKSMITHS LTD,300.00,Other Temp Accommodation,Misc Premises Costs,29 Jul 2022,2223/05,SME,N,
0010050010,M & H CIVIL ENGINEERING LTD,597.00,Building Services,Repairs,08 Aug 2022,2223/05,SME,N,
0010049810,MATERIAL CHANGE COMPOSTING LTD,833.25,Open Spaces,Waste Disposal,31 Jul 2022,2223/05,LGE,N,
0010050223,MB TREES (EAST ANGLIA) LTD,"1,675.00",Tenancy Services,Tree felling/maintenance,16 Aug 2022,2223/05,SME,N,
0010050369,MB TREES (EAST ANGLIA) LTD,850.00,Tenancy Services,Tree felling/maintenance,23 Aug 2022,2223/05,SME,N,
0010049676,MERCURY BUILDING SERVICES LTD,"1,510.00",Borehamgate Shopping Centre,Legionella Testing,25 Jul 2022,2223/05,SME,N,
0010049813,MERCURY BUILDING SERVICES LTD,"1,365.00",Kingfisher Leisure Centre,Repairs,31 Jul 2022,2223/05,SME,N,
0010049813,MERCURY BUILDING SERVICES LTD,"1,340.00",Pld Maint/Enhncmts-Kingfisher,Improvements,31 Jul 2022,2223/05,SME,N,
0010050042,MERCURY BUILDING SERVICES LTD,524.00,Kingfisher Leisure Centre,Repairs,09 Aug 2022,2223/05,SME,N,
0010049722,MIXBROW LTD,"11,496.64",Council House Adaptions,Improvements,01 Jun 2022,2223/05,SME,N,
0010049723,MIXBROW LTD,"8,184.61",Council House Adaptions,Improvements,29 Jun 2022,2223/05,SME,N,
0010050225,MONTHIND CLEAN LTD,665.83,Jnt Waste Contract,General Cleaning,15 Aug 2022,2223/05,LGE,Y,50%
0010049164,ORWELL HOUSING ASSOCIATION LTD,"59,911.00",Sheltered Accommodation,Contracted Services,30 Jun 2022,2223/05,LGE,N,
0010049165,ORWELL HOUSING ASSOCIATION LTD,"59,157.00",Sheltered Accommodation,Contracted Services,30 Jun 2022,2223/05,LGE,N,
0010049648,ORWELL HOUSING ASSOCIATION LTD,"4,375.00",Other Temp Accommodation,Contracted Services,22 Jul 2022,2223/05,LGE,N,
0010049649,ORWELL HOUSING ASSOCIATION LTD,"4,375.00",Other Temp Accommodation,Contracted Services,22 Jul 2022,2223/05,LGE,N,
0010049780,ORWELL HOUSING ASSOCIATION LTD,575.80,Sheltered Accommodation,Contracted Services,22 Jul 2022,2223/05,LGE,N,
0010049781,ORWELL HOUSING ASSOCIATION LTD,431.85,Sheltered Accommodation,Contracted Services,22 Jul 2022,2223/05,LGE,N,
0010049782,ORWELL HOUSING ASSOCIATION LTD,575.80,Sheltered Accommodation,Contracted Services,22 Jul 2022,2223/05,LGE,N,
0010050012,PITMAN BROTHERS (DECORATORS) LTD,"2,250.00",Building Services,Repairs,08 Aug 2022,2223/05,SME,N,
0010050170,PITMAN BROTHERS (DECORATORS) LTD,"2,300.00",Chilton Depot,Grounds & Site Maintenance,15 Aug 2022,2223/05,SME,Y,50%
0010049642,PRO-FLAT SPECIALIST SERVICES LTD,"2,216.00",Window & Door Rplcmts,Improvements,21 Jul 2022,2223/05,SME,N,
0010049766,PRO-FLAT SPECIALIST SERVICES LTD,"2,160.00",Major Imps,Improvements,28 Jul 2022,2223/05,SME,N,
0010049597,REID PLUMBING & HEATING CONTRACTORS LTD,"18,411.93",Central Heating,Major Contracts,20 Jul 2022,2223/05,SME,N,
0010049683,REID PLUMBING & HEATING CONTRACTORS LTD,"9,229.06",Central Heating,Major Contracts,25 Jul 2022,2223/05,SME,N,
0010049709,REID PLUMBING & HEATING CONTRACTORS LTD,"5,322.32",Central Heating,Major Contracts,27 Jul 2022,2223/05,SME,N,
0010049972,RICOH UK LTD,265.72,ICT,Photocopying,04 Aug 2022,2223/05,LGE,Y,50%
0010050193,RICOH UK LTD,665.97,ICT,Photocopying,04 Aug 2022,2223/05,LGE,Y,50%
0010049929,SHELTON DEVELOPMENT SEVICES LTD,"1,268.12",ICT,Desktop Software,05 Jul 2022,2223/05,SME,Y,50%
0010049533,SEAGER HOME SOLUTIONS,"11,519.21",Building Services,Repairs,19 Jul 2022,2223/05,SME,N,
0010049746,SEAGER HOME SOLUTIONS,"16,000.03",Building Services,Repairs,27 Jul 2022,2223/05,SME,N,
0010049747,SEAGER HOME SOLUTIONS,"9,328.58",Building Services,Repairs,27 Jul 2022,2223/05,SME,N,
0010049704,SOLUTIONS ON SECURITY SERVICES,"3,002.68",Sheltered Accommodation,Repairs,25 Jul 2022,2223/05,SME,N,
0010050238,SOLUTIONS ON SECURITY SERVICES,253.51,Sheltered Accommodation,Repairs,17 Aug 2022,2223/05,SME,N,
0010049750,SPALDINGS LTD,487.32,Open Spaces,"Equipment, Tools & Materials",28 Jul 2022,2223/05,SME,N,
0010050210,SPALDINGS LTD,415.94,Open Spaces,"Equipment, Tools & Materials",15 Aug 2022,2223/05,SME,N,
0010050102,SSI SCHAEFER LTD,"13,395.60",Bins,Bins,08 Sep 2021,2223/05,SME,Y,50%
0010050314,SUFFOLK TREE SERVICES LTD,650.00,Public Tree Programme,Tree felling/maintenance,22 Aug 2022,2223/05,SME,N,
0010049427,SUREFIX,"3,920.00",Window & Door Rplcmts,Improvements,06 Jul 2022,2223/05,SME,N,
0010049740,SUREFIX,900.00,Major Imps,Repairs,28 Jul 2022,2223/05,SME,N,
0010049741,SUREFIX,372.67,Building Services,Repairs,22 Jul 2022,2223/05,SME,N,
0010049742,SUREFIX,525.00,Major Imps,Improvements,26 Jul 2022,2223/05,SME,N,
0010049745,SUREFIX,251.60,Building Services,Repairs,28 Jul 2022,2223/05,SME,N,
0010049953,SUREFIX,"1,825.00",Window & Door Rplcmts,Improvements,29 Jul 2022,2223/05,SME,N,
0010049954,SUREFIX,900.00,Major Imps,Improvements,18 Jul 2022,2223/05,SME,N,
0010049956,SUREFIX,283.48,Building Services,Repairs,18 Jul 2022,2223/05,SME,N,
0010049957,SUREFIX,494.44,Building Services,Repairs,18 Jul 2022,2223/05,SME,N,
0010049958,SUREFIX,335.00,Building Services,Repairs,29 Jul 2022,2223/05,SME,N,
0010049959,SUREFIX,425.22,Building Services,Repairs,01 Aug 2022,2223/05,SME,N,
0010050135,SUREFIX,770.00,Window & Door Rplcmts,Improvements,11 Aug 2022,2223/05,SME,N,
0010050136,SUREFIX,300.00,Building Services,Repairs,05 Aug 2022,2223/05,SME,N,
0010050140,SUREFIX,"1,700.00",Building Services,Repairs,17 Aug 2022,2223/05,SME,N,
0010050255,SUREFIX,618.10,Building Services,Repairs,17 Aug 2022,2223/05,SME,N,
0010049787,TANKCHANGE LTD,"2,445.00",Central Heating,Improvements,20 Jun 2022,2223/05,SME,N,
0010050220,TDT ENTERPRISES LTD,359.23,Wenham Depot,Repairs,16 Aug 2022,2223/05,SME,Y,50%
0010049823,THERMATECH,900.00,Sheltered Accommodation,Fire Prevention,01 Aug 2022,2223/05,SME,N,
0010050037,TRUCKEAST LTD,310.00,Street & Major Road Cleansing,Plant & Vehicle - Other costs,09 Aug 2022,2223/05,LGE,N,
0010049795,WEST END REHOMING,316.56,Dog Control,Collection Charges,01 Aug 2022,2223/05,SME,N,
0010049735,WINDIMAN LTD,980.40,Window & Door Rplcmts,Improvements,28 Jul 2022,2223/05,SME,N,
0010050108,WINDIMAN LTD,300.00,Window & Door Rplcmts,Improvements,11 Aug 2022,2223/05,SME,N,
0010049812,WORKWEAR (EAST ANGLIA) LTD,177.09,Open Spaces,Protective clothing,14 Jul 2022,2223/05,SME,N,
0010049812,WORKWEAR (EAST ANGLIA) LTD,177.08,Street & Major Road Cleansing,Protective clothing,14 Jul 2022,2223/05,SME,N,
0010049915,ARCHANT COMMUNITY MEDIA LTD,562.40,Devt Management -Applications,Advertising&mkting (non-staff),31 Jul 2022,2223/05,LGE,N,
0010050018,ARCHANT COMMUNITY MEDIA LTD,716.90,Devt Management -Applications,Advertising&mkting (non-staff),06 Aug 2022,2223/05,LGE,N,
0010050180,ARCHANT COMMUNITY MEDIA LTD,624.20,Devt Management -Applications,Advertising&mkting (non-staff),13 Aug 2022,2223/05,LGE,N,
0010050370,ARCHANT COMMUNITY MEDIA LTD,531.50,Devt Management -Applications,Advertising&mkting (non-staff),20 Aug 2022,2223/05,LGE,N,
0010049716,ESSEX COUNTY COUNCIL,513.00,Devt Management -Applications,Prof & Consultancy Fees,27 Jul 2022,2223/05,LGE,N,
0010050101,IDOX SOFTWARE LTD,"31,000.00",ICT,Desktop Software,11 Aug 2022,2223/05,SME,Y,50%
0010049840,BUILDBASE,296.10,Assets & Development,Repairs,31 Jul 2022,2223/05,LGE,N,
0010049675,IPSWICH BOROUGH COUNCIL,"7,125.59",Business Cont/Emergency Plan,Contributions to other Bodies,20 Jul 2022,2223/05,LGE,N,
0010050092,IPSWICH BOROUGH COUNCIL,"445,033.11",Shared Revenues Partnership,Major Contracts,10 Aug 2022,2223/05,LGE,N,
0020028001,EDF ENERGY,221.62,Belle Vue House,Electricity,01 Aug 2022,2223/05,LGE,N,
0020028001,EDF ENERGY,"1,837.85",C Parks General,Electricity,01 Aug 2022,2223/05,LGE,N,
0020028001,EDF ENERGY,14.56,Calais St Depot,Electricity,01 Aug 2022,2223/05,LGE,N,
0020028001,EDF ENERGY,"5,202.74",Chilton Depot,Electricity,01 Aug 2022,2223/05,LGE,Y,50%
0020028001,EDF ENERGY,938.06,Climate Change and Sustainabil,Electricity,01 Aug 2022,2223/05,LGE,N,
0020028001,EDF ENERGY,68.79,Hadleigh Market,Electricity,01 Aug 2022,2223/05,LGE,N,
0020028001,EDF ENERGY,"-5,565.13",Hadleigh Pool,Electricity,01 Aug 2022,2223/05,LGE,N,
0020028001,EDF ENERGY,33.16,Headquarters General,Electricity,01 Aug 2022,2223/05,LGE,N,
0020028001,EDF ENERGY,"4,586.85",HQ Energy,Electricity,01 Aug 2022,2223/05,LGE,N,
0020028001,EDF ENERGY,"83,884.77",Kingfisher Leisure Centre,Electricity,01 Aug 2022,2223/05,LGE,N,
0020028001,EDF ENERGY,"1,375.29",Public Conveniences,Electricity,01 Aug 2022,2223/05,LGE,N,
0020028001,EDF ENERGY,"1,228.29",Sewage Treatment Works,Electricity,01 Aug 2022,2223/05,LGE,N,
0020028001,EDF ENERGY,"43,874.47",Sheltered Accommodation,Electricity,01 Aug 2022,2223/05,LGE,N,
0020028001,EDF ENERGY,550.34,SP Comm Alarms (Non-SH),Electricity,01 Aug 2022,2223/05,LGE,N,
0020028001,EDF ENERGY,"1,774.32",Temporary Accommodation,Electricity,01 Aug 2022,2223/05,LGE,N,
0020028001,EDF ENERGY,"22,297.89",Tenancy Services,Electricity,01 Aug 2022,2223/05,LGE,N,
0020028001,EDF ENERGY,"1,444.64",Wenham Depot,Electricity,01 Aug 2022,2223/05,LGE,Y,50%
0020028002,EDF ENERGY,131.90,Sewage Treatment Works,Electricity,01 Aug 2022,2223/05,LGE,N,
0020028002,EDF ENERGY,115.78,Tenancy Services,Electricity,01 Aug 2022,2223/05,LGE,N,
0020028002,EDF ENERGY,959.63,Climate Change and Sustainabil,Electricity,01 Aug 2022,2223/05,LGE,N,
0010050383,J BREHENY CONTRACTORS LTD,"82,640.97","Schoolfield, Glemsford",Improvements,14 Jul 2022,2223/05,LGE,N,
0020028010,GPC BARCLAYS,"6,485.39",Current Assets,Barclaycard Control,16 Aug 2022,2223/05,LGE,Y,9%
0010049791,STANNAH STAIRLIFTS LTD,"6,879.00",Council House Adaptions,Improvements,31 Jul 2022,2223/05,LGE,N,
0010050014,STANNAH STAIRLIFTS LTD,"3,469.00",Council House Adaptions,Improvements,08 Aug 2022,2223/05,LGE,N,
0010049659,BUILDING ENERGY COMPLIANCE LTD,265.00,Hadleigh Pool,Repairs,29 Mar 2022,2223/05,SME,N,
0010049659,BUILDING ENERGY COMPLIANCE LTD,265.00,Kingfisher Leisure Centre,Repairs,29 Mar 2022,2223/05,SME,N,
0020028018,COMPUTERSHARE ,636.00,Current Assets,ChildCare Vouchers-Control,26 Aug 2022,2223/05,LGE,N,
0010049976,BENTLEY PARISH COUNCIL,"1,159.59",S106 Open Spaces Expenditure,Grants,05 Aug 2022,2223/05,SME,N,
0010050242,BOXFORD VILLAGE HALL,893.00,Grants & Contrbns,Contributions & Donations,17 Aug 2022,2223/05,SME,N,
0020027994,BURES ST MARY PARISH COUNCIL,370.50,Street & Major Road Cleansing,Contributions & Donations,05 Aug 2022,2223/05,SME,N,
0020027996,EAST BERGHOLT PARISH COUNCIL,"1,235.00",Street & Major Road Cleansing,Contributions & Donations,05 Aug 2022,2223/05,SME,N,
0010050091,HINTLESHAM & CHATTISHAM COMMUNITY COUNCI,"1,626.00",Comm Devt Grants,Grants,11 Aug 2022,2223/05,SME,N,
0020027997,HOLBROOK PARISH COUNCIL,802.75,Street & Major Road Cleansing,Contributions & Donations,05 Aug 2022,2223/05,SME,N,
0020027999,LAVENHAM PARISH COUNCIL,"2,593.50",Street & Major Road Cleansing,Contributions & Donations,05 Aug 2022,2223/05,SME,N,
0020028000,LONG MELFORD PARISH COUNCIL,"1,111.50",Street & Major Road Cleansing,Contributions & Donations,05 Aug 2022,2223/05,SME,N,
0020027998,STRATFORD ST MARY PARISH COUNCIL,308.75,Street & Major Road Cleansing,Contributions & Donations,05 Aug 2022,2223/05,SME,N,
0010050261,SUDBURY TOWN COUNCIL,"12,922.77",RHSSF,Prof & Consultancy Fees,18 Aug 2022,2223/05,SME,N,
0010049559,SUFFOLK COUNTY COUNCIL,"9,737.72",Domestic Waste,MRF Disposal,21 Jul 2022,2223/05,LGE,N,
0010049559,SUFFOLK COUNTY COUNCIL,"18,841.33",Garden Waste,Garden Waste Disposal,21 Jul 2022,2223/05,LGE,N,
0010049938,SUFFOLK COUNTY COUNCIL,"1,145.00",Land Chgs,Contracted Services,03 Aug 2022,2223/05,LGE,N,
0010049967,SUFFOLK COUNTY COUNCIL,"1,692.03",ICT,Computer Equpt Purchases,04 Aug 2022,2223/05,LGE,Y,50%
0010050071,SUFFOLK COUNTY COUNCIL,"2,046.78",Info Mgmt,Contracted Services,09 Aug 2022,2223/05,LGE,Y,50%
0010049809,FENN WRIGHT LLP,900.00,General/Supervision & Mgmt,Prof & Consultancy Fees,29 Jul 2022,2223/05,SME,N,
0010049784,REED SPECIALIST RECRUITMENT LTD,772.56,Financial Servs,Agency Staff,22 Jul 2022,2223/05,LGE,Y,50%
0010049982,REED SPECIALIST RECRUITMENT LTD,772.56,Financial Servs,Agency Staff,29 Jul 2022,2223/05,LGE,Y,50%
0010050292,REED SPECIALIST RECRUITMENT LTD,772.56,Financial Servs,Agency Staff,12 Aug 2022,2223/05,LGE,Y,50%
0010050462,TELEFONICA UK LIMITED - O2,338.65,ICT,Telephone Costs,27 Aug 2022,2223/05,LGE,Y,50%
0010050020,BT PAYMENT SERVICES,"5,142.58",ICT,Telephone Costs,04 Aug 2022,2223/05,LGE,Y,50%
0010050128,LEX AUTOLEASE,365.95,Building Services,Lease Cars - Payment,27 Jul 2022,2223/05,SME,Y,50%
0010050129,LEX AUTOLEASE,365.95,Building Services,Lease Cars - Payment,27 Jul 2022,2223/05,SME,Y,50%
0020028016,GAZPROM ENERGY,82.16,Belle Vue House,Gas,15 Aug 2022,2223/05,SME,N,
0020028016,GAZPROM ENERGY,71.18,HQ Energy,Gas,15 Aug 2022,2223/05,SME,N,
0020028016,GAZPROM ENERGY,"1,511.96",Sheltered Accommodation,Gas,15 Aug 2022,2223/05,SME,N,
0020028016,GAZPROM ENERGY,97.38,Temporary Accommodation,Gas,15 Aug 2022,2223/05,SME,N,
0010050100,SUDBURY & DISTRICT CAB,"18,375.00",Grants & Contrbns,Grants,11 Aug 2022,2223/05,SME,N,
0010049323,WHYBROW PROPERTY SOLUTIONS LTD,"2,410.11",Building Services,Repairs,05 Jul 2022,2223/05,SME,N,
0010049497,WHYBROW PROPERTY SOLUTIONS LTD,"5,000.00",Building Services,Repairs,18 Jul 2022,2223/05,SME,N,
0010049566,WHYBROW PROPERTY SOLUTIONS LTD,"10,000.00",Building Services,Repairs,21 Jul 2022,2223/05,SME,N,
0010049567,WHYBROW PROPERTY SOLUTIONS LTD,"13,000.00",Building Services,Repairs,21 Jul 2022,2223/05,SME,N,
0010049881,WHYBROW PROPERTY SOLUTIONS LTD,"5,000.00",Building Services,Repairs,02 Aug 2022,2223/05,SME,N,
0010049882,WHYBROW PROPERTY SOLUTIONS LTD,"10,000.00",Building Services,Repairs,02 Aug 2022,2223/05,SME,N,
0010049884,WHYBROW PROPERTY SOLUTIONS LTD,"6,295.00",Building Services,Repairs,02 Aug 2022,2223/05,SME,N,
0010049885,WHYBROW PROPERTY SOLUTIONS LTD,"5,620.50",Council House Adaptions,Improvements,02 Aug 2022,2223/05,SME,N,
0010049911,WHYBROW PROPERTY SOLUTIONS LTD,"10,911.89",Building Services,Repairs,21 Jun 2022,2223/05,SME,N,
0010050027,WHYBROW PROPERTY SOLUTIONS LTD,"11,223.66",Stairlifts,Repairs,18 Jul 2022,2223/05,SME,N,
0010050080,WHYBROW PROPERTY SOLUTIONS LTD,"11,158.50",Council House Adaptions,Improvements,09 Aug 2022,2223/05,SME,N,
0010050080,WHYBROW PROPERTY SOLUTIONS LTD,"2,040.00",Council House Adaptions,Improvements,09 Aug 2022,2223/05,SME,N,
0010050081,WHYBROW PROPERTY SOLUTIONS LTD,502.36,Building Services,Repairs,10 Aug 2022,2223/05,SME,N,
0010050082,WHYBROW PROPERTY SOLUTIONS LTD,395.00,Building Services,Repairs,10 Aug 2022,2223/05,SME,N,
0010050083,WHYBROW PROPERTY SOLUTIONS LTD,"10,000.00",Building Services,Repairs,10 Aug 2022,2223/05,SME,N,
0010050084,WHYBROW PROPERTY SOLUTIONS LTD,"10,000.00",Building Services,Repairs,10 Aug 2022,2223/05,SME,N,
0010050234,WHYBROW PROPERTY SOLUTIONS LTD,"9,607.78",Kitchens/Bathrooms,Improvements,02 Aug 2022,2223/05,SME,N,
0010049555,L A C CLEANING CONTRACTORS LIMITED,565.50,Temporary Accommodation,General Cleaning,21 Jul 2022,2223/05,SME,N,
0010049818,ARMSTRONG YORK ASBESTOS ENVIRONMENTAL,"4,112.22",Asbestos Survey & Reinspection,Prof & Consultancy Fees,30 Jun 2022,2223/05,SME,N,
0010049910,ARMSTRONG YORK ASBESTOS ENVIRONMENTAL,"10,577.54",Asbestos Survey & Reinspection,Prof & Consultancy Fees,29 Jul 2022,2223/05,SME,N,
0010050068,TRADITION (UK) LTD,"9,972.60",Treasury Management,Prof & Consultancy Fees,29 Jul 2022,2223/05,LGE,N,
0010050168,OPUS PEOPLE SOLUTIONS LTD,261.60,Building Services,Agency Staff,11 Aug 2022,2223/05,SME,N,
0010050168,OPUS PEOPLE SOLUTIONS LTD,434.00,Governance,Agency Staff,11 Aug 2022,2223/05,SME,N,
0010050168,OPUS PEOPLE SOLUTIONS LTD,26.95,Housing Standards,Agency Staff,11 Aug 2022,2223/05,SME,N,
0010050374,OPUS PEOPLE SOLUTIONS LTD,343.75,Household Support Grant,Agency Staff,18 Aug 2022,2223/05,SME,N,
0010050374,OPUS PEOPLE SOLUTIONS LTD,306.56,Building Services,Agency Staff,18 Aug 2022,2223/05,SME,N,
0010050374,OPUS PEOPLE SOLUTIONS LTD,144.66,Governance,Agency Staff,18 Aug 2022,2223/05,SME,N,
0010050374,OPUS PEOPLE SOLUTIONS LTD,168.95,Housing Standards,Agency Staff,18 Aug 2022,2223/05,SME,N,
0010049702,ROSE BUILDERS LTD,"39,189.31",Structural Works,Major Contracts,30 Jun 2022,2223/05,SME,N,
0010050008,ROSE BUILDERS LTD,"50,950.13",Structural Works,Major Contracts,31 Jul 2022,2223/05,SME,N,
0010050271,ECOSYSTEMS TREE & GROUNDS CARE,"2,300.00",Amenity Areas,Tree felling/maintenance,19 Aug 2022,2223/05,SME,N,
0010050272,ECOSYSTEMS TREE & GROUNDS CARE,"1,400.00",Amenity Areas,Tree felling/maintenance,19 Aug 2022,2223/05,SME,N,
0010050273,ECOSYSTEMS TREE & GROUNDS CARE,"1,100.00",Amenity Areas,Tree felling/maintenance,19 Aug 2022,2223/05,SME,N,
0010049920,CORNERSTONE BARRISTERS,"2,475.00",Devt Policy & Local Plans,Misc Legal Expenses,02 Aug 2022,2223/05,SME,Y,50%
0010049853,VERTAS GROUP LTD,"6,913.90",Central Postal Serv,Postage,31 Jul 2022,2223/05,SME,Y,50%
0010049943,VERTAS GROUP LTD,"11,532.00",Assets & Development,Repairs,31 Jul 2022,2223/05,SME,N,
0010049661,COLLINS SKIP HIRE,"1,100.00",Building Services,Waste Disposal,25 Jul 2022,2223/05,SME,Y,50%
0010049816,COLLINS SKIP HIRE,825.00,Building Services,Waste Disposal,31 Jul 2022,2223/05,SME,Y,50%
0010050172,COLLINS SKIP HIRE,550.00,Building Services,Waste Disposal,15 Aug 2022,2223/05,SME,Y,50%
0010050212,COLLINS SKIP HIRE,275.00,Building Services,Waste Disposal,15 Aug 2022,2223/05,SME,Y,50%
0010049984,POSTURITE LTD,579.56,Health & Safety,"Equipment, Tools & Materials",05 Aug 2022,2223/05,SME,Y,50%
0010050057,POSTURITE LTD,856.15,Health & Safety,"Equipment, Tools & Materials",09 Aug 2022,2223/05,SME,Y,50%
0010050264,POSTURITE LTD,856.55,Health & Safety,"Equipment, Tools & Materials",18 Aug 2022,2223/05,SME,Y,50%
0010050375,POSTURITE LTD,344.02,Health & Safety,"Equipment, Tools & Materials",23 Aug 2022,2223/05,SME,Y,50%
0010050428,POSTURITE LTD,382.28,Health & Safety,"Equipment, Tools & Materials",26 Aug 2022,2223/05,SME,Y,50%
0010049796,4PRINCIPLES CONSTRUCTION LTD,"5,792.45",Mand Disabled Facilities Grant,Grants,01 Aug 2022,2223/05,SME,N,
0010049892,MATT ALLMAN LTD T/A MOVEITCLEARITFINDIT,975.00,Tenancy Services,Contracted Services,29 Jul 2022,2223/05,SME,N,
0010050307,BIRKETTS LLP,"2,583.00",Organisational Devt,Professional Subs (Staff),22 Jul 2022,2223/05,LGE,Y,50%
0010050164,PENNA PLC,"5,280.00",Management Team,Agency Staff,11 Aug 2022,2223/05,SME,Y,50%
0010049826,SUFFOLK MARKET EVENTS,"1,393.90",BRRP-MarketTownVision&Invest,Prof & Consultancy Fees,01 Aug 2022,2223/05,SME,Y,48%
0010049891,ADVANCE SUPPLIES,380.04,Sheltered Accommodation,Cleaning Materials,02 Aug 2022,2223/05,SME,N,
0010050445,PRESTON ST MARY VILLAGE HALL COMMITTEE,"4,732.92",CIL Funded REFCUS,Grants,26 Aug 2022,2223/05,SME,N,
0010049749,HAYS SPECIALIST RECRUITMENT LTD,"1,120.00",Financial Servs,Agency Staff,28 Jul 2022,2223/05,LGE,Y,50%
0010049749,HAYS SPECIALIST RECRUITMENT LTD,"1,680.00",HRA Accountancy,Agency Staff,28 Jul 2022,2223/05,LGE,Y,50%
0010049887,HAYS SPECIALIST RECRUITMENT LTD,896.00,Financial Servs,Agency Staff,02 Aug 2022,2223/05,LGE,Y,50%
0010049887,HAYS SPECIALIST RECRUITMENT LTD,"1,344.00",HRA Accountancy,Agency Staff,02 Aug 2022,2223/05,LGE,Y,50%
0010050022,HAYS SPECIALIST RECRUITMENT LTD,"1,120.00",Financial Servs,Agency Staff,08 Aug 2022,2223/05,LGE,Y,50%
0010050022,HAYS SPECIALIST RECRUITMENT LTD,"1,680.00",HRA Accountancy,Agency Staff,08 Aug 2022,2223/05,LGE,Y,50%
0010050052,HAYS SPECIALIST RECRUITMENT LTD,344.52,Organisational Devt,Agency Staff,09 Aug 2022,2223/05,LGE,Y,50%
0010050053,HAYS SPECIALIST RECRUITMENT LTD,879.12,Organisational Devt,Agency Staff,09 Aug 2022,2223/05,LGE,Y,50%
0010050054,HAYS SPECIALIST RECRUITMENT LTD,879.12,Organisational Devt,Agency Staff,09 Aug 2022,2223/05,LGE,Y,50%
0010050055,HAYS SPECIALIST RECRUITMENT LTD,879.12,Organisational Devt,Agency Staff,09 Aug 2022,2223/05,LGE,Y,50%
0010050085,HAYS SPECIALIST RECRUITMENT LTD,"1,944.85",ICT - Finance System,Agency Staff,10 Aug 2022,2223/05,LGE,Y,50%
0010050086,HAYS SPECIALIST RECRUITMENT LTD,"1,555.88",ICT - Finance System,Agency Staff,10 Aug 2022,2223/05,LGE,Y,50%
0010050087,HAYS SPECIALIST RECRUITMENT LTD,760.32,Organisational Devt,Agency Staff,10 Aug 2022,2223/05,LGE,Y,50%
0010050201,HAYS SPECIALIST RECRUITMENT LTD,"1,120.00",Financial Servs,Agency Staff,15 Aug 2022,2223/05,LGE,Y,50%
0010050201,HAYS SPECIALIST RECRUITMENT LTD,"1,680.00",HRA Accountancy,Agency Staff,15 Aug 2022,2223/05,LGE,Y,50%
0010050247,HAYS SPECIALIST RECRUITMENT LTD,"1,033.88",Financial Servs,Agency Staff,17 Aug 2022,2223/05,LGE,Y,50%
0010050247,HAYS SPECIALIST RECRUITMENT LTD,522.00,ICT - Finance System,Agency Staff,17 Aug 2022,2223/05,LGE,Y,50%
0010050262,HAYS SPECIALIST RECRUITMENT LTD,"1,169.36",Assets & Development,Agency Staff,18 Aug 2022,2223/05,LGE,Y,50%
0010050262,HAYS SPECIALIST RECRUITMENT LTD,292.34,General/Supervision & Mgmt,Agency Staff,18 Aug 2022,2223/05,LGE,Y,50%
0010050263,HAYS SPECIALIST RECRUITMENT LTD,467.74,Assets & Development,Agency Staff,18 Aug 2022,2223/05,LGE,Y,50%
0010050263,HAYS SPECIALIST RECRUITMENT LTD,116.94,General/Supervision & Mgmt,Agency Staff,18 Aug 2022,2223/05,LGE,Y,50%
0010050412,HAYS SPECIALIST RECRUITMENT LTD,"1,944.85",ICT - Finance System,Agency Staff,24 Aug 2022,2223/05,LGE,Y,50%
0010049895,RICHARD UTTING ASSOCIATES LLP,"2,890.00",Bourne Hill Wherstead S106 acq,Prof & Consultancy Fees,31 Jul 2022,2223/05,SME,N,
0010050051,RICHARD UTTING ASSOCIATES LLP,"1,889.18",Waldingfield Rd S106 Andersons,Prof & Consultancy Fees,31 Jul 2022,2223/05,SME,N,
0010049564,PUBLIC SEWER SERVICES,390.07,Building Services,Repairs,21 Jul 2022,2223/05,SME,N,
0010050067,PUBLIC SEWER SERVICES,"9,642.83",Lavenham C Parks,Repairs,08 Aug 2022,2223/05,SME,N,
0010050270,PUBLIC SEWER SERVICES,800.00,Building Services,Repairs,19 Aug 2022,2223/05,SME,N,
0010049777,PRIVATE LANDLORD,680.00,Guaranteed Rent Scheme,Rent Payable,01 Aug 2022,2223/05,SME,N,
0010050419,PRIVATE LANDLORD,680.00,Guaranteed Rent Scheme,Rent Payable,25 Aug 2022,2223/05,SME,N,
0010050173,CHARISMA SPATIAL PLANNING LTD T/A ANN SK,"8,062.80",Nghbrhd Plan Designations,Prof & Consultancy Fees,15 Aug 2022,2223/05,SME,N,
0010049870,THE STOWMARKET GLASS COMPANY LTD,379.11,Building Services,Repairs,05 Jul 2022,2223/05,SME,N,
0010049872,THE STOWMARKET GLASS COMPANY LTD,339.30,Building Services,Repairs,11 Jul 2022,2223/05,SME,N,
0010049875,THE STOWMARKET GLASS COMPANY LTD,429.51,Building Services,Repairs,11 Jul 2022,2223/05,SME,N,
0010049876,THE STOWMARKET GLASS COMPANY LTD,267.31,Building Services,Repairs,11 Jul 2022,2223/05,SME,N,
0010049974,ASPECT CONTRACTS LTD,"5,645.00",Asbestos,Improvements,31 Jul 2022,2223/05,LGE,N,
0010049977,ASPECT CONTRACTS LTD,"3,724.00",Asbestos,Improvements,30 Jun 2022,2223/05,LGE,N,
0020028021,SUDBURY RUGBY UNION FOOTBALL CLUB,360.00,General Elections,Room Hire,30 Aug 2022,2223/05,SME,N,
0010049786,SUPERSTRUCTURES LTD,850.00,Structural Works,Repairs,29 Jul 2022,2223/05,SME,N,
0010049914,RIX PETROLEUM (EAST ANGLIA) LTD,"1,083.88",Open Spaces,Plant & Vehicle Fuel,02 Aug 2022,2223/05,SME,Y,50%
0010049832,NORTHUMBRIAN WATER LTD,69.51,Chilton Depot,Legionella Testing,28 Jul 2022,2223/05,LGE,Y,50%
0010049832,NORTHUMBRIAN WATER LTD,37.70,HQ Energy,Legionella Testing,28 Jul 2022,2223/05,LGE,N,
0010049832,NORTHUMBRIAN WATER LTD,293.68,Sheltered Accommodation,Legionella Testing,28 Jul 2022,2223/05,LGE,N,
0010049832,NORTHUMBRIAN WATER LTD,101.37,Temporary Accommodation,Legionella Testing,28 Jul 2022,2223/05,LGE,N,
0010049832,NORTHUMBRIAN WATER LTD,254.87,Tenancy Services,Legionella Testing,28 Jul 2022,2223/05,LGE,N,
0010049832,NORTHUMBRIAN WATER LTD,31.86,Wenham Depot,Legionella Testing,28 Jul 2022,2223/05,LGE,Y,50%
0010049833,NORTHUMBRIAN WATER LTD,69.51,Chilton Depot,Legionella Testing,28 Jul 2022,2223/05,LGE,Y,50%
0010049833,NORTHUMBRIAN WATER LTD,37.70,HQ Energy,Legionella Testing,28 Jul 2022,2223/05,LGE,N,
0010049833,NORTHUMBRIAN WATER LTD,293.68,Sheltered Accommodation,Legionella Testing,28 Jul 2022,2223/05,LGE,N,
0010049833,NORTHUMBRIAN WATER LTD,101.37,Temporary Accommodation,Legionella Testing,28 Jul 2022,2223/05,LGE,N,
0010049833,NORTHUMBRIAN WATER LTD,254.87,Tenancy Services,Legionella Testing,28 Jul 2022,2223/05,LGE,N,
0010049833,NORTHUMBRIAN WATER LTD,31.86,Wenham Depot,Legionella Testing,28 Jul 2022,2223/05,LGE,Y,50%
0010049834,NORTHUMBRIAN WATER LTD,69.51,Chilton Depot,Legionella Testing,28 Jul 2022,2223/05,LGE,Y,50%
0010049834,NORTHUMBRIAN WATER LTD,37.70,HQ Energy,Legionella Testing,28 Jul 2022,2223/05,LGE,N,
0010049834,NORTHUMBRIAN WATER LTD,293.68,Sheltered Accommodation,Legionella Testing,28 Jul 2022,2223/05,LGE,N,
0010049834,NORTHUMBRIAN WATER LTD,101.37,Temporary Accommodation,Legionella Testing,28 Jul 2022,2223/05,LGE,N,
0010049834,NORTHUMBRIAN WATER LTD,254.87,Tenancy Services,Legionella Testing,28 Jul 2022,2223/05,LGE,N,
0010049834,NORTHUMBRIAN WATER LTD,31.86,Wenham Depot,Legionella Testing,28 Jul 2022,2223/05,LGE,Y,50%
0010049835,NORTHUMBRIAN WATER LTD,69.51,Chilton Depot,Legionella Testing,28 Jul 2022,2223/05,LGE,Y,50%
0010049835,NORTHUMBRIAN WATER LTD,37.70,HQ Energy,Legionella Testing,28 Jul 2022,2223/05,LGE,N,
0010049835,NORTHUMBRIAN WATER LTD,293.68,Sheltered Accommodation,Legionella Testing,28 Jul 2022,2223/05,LGE,N,
0010049835,NORTHUMBRIAN WATER LTD,101.37,Temporary Accommodation,Legionella Testing,28 Jul 2022,2223/05,LGE,N,
0010049835,NORTHUMBRIAN WATER LTD,254.87,Tenancy Services,Legionella Testing,28 Jul 2022,2223/05,LGE,N,
0010049835,NORTHUMBRIAN WATER LTD,31.86,Wenham Depot,Legionella Testing,28 Jul 2022,2223/05,LGE,Y,50%
0010050031,STORETEC SERVICES LTD,715.95,ICT,"Equipment, Tools & Materials",31 Jul 2022,2223/05,SME,Y,50%
0010049814,AIRMAX REMOTE LTD,480.60,Building Services,Plant & Vehicle - Other costs,31 Jul 2022,2223/05,SME,Y,50%
0010049820,GRAVITAS RECRUITMENT GROUP LTD,"2,000.00",ICT,Agency Staff,01 Aug 2022,2223/05,LGE,Y,50%
0010050019,GRAVITAS RECRUITMENT GROUP LTD,"2,000.00",ICT,Agency Staff,08 Aug 2022,2223/05,LGE,Y,50%
0010050217,JOHN FORD GROUP LTD,"7,042.50",Mand Disabled Facilities Grant,Grants,16 Aug 2022,2223/05,SME,N,
0010049921,RESIDENTIALLY CHARTERED SURVEYORS,375.00,"Melford Rd, Lavenham S106",Prof & Consultancy Fees,31 Jul 2022,2223/05,SME,N,
0010050319,KLH ARCHITECTS LTD,"17,250.00",Hamilton Road Regeneration,Prof & Consultancy Fees,10 Aug 2022,2223/05,SME,N,
0010050308,SUDBURYS,440.00,Guaranteed Rent Scheme,Rent Payable,22 Aug 2022,2223/05,SME,N,
0010050002,WILLIAM H BROWN ESTATE AGENTS - SUDBURY,725.00,Guaranteed Rent Scheme,Rent Payable,08 Aug 2022,2223/05,SME,N,
0010050218,AQUAM WATER SERVICES LTD,"1,300.00",Open Spaces,Electricity,02 Aug 2022,2223/05,SME,N,
0010050291,ABBEYCROFT LEISURE,"17,762.50",Hadleigh Pool,Major Contracts,07 Jul 2022,2223/05,LGE,N,
0010050291,ABBEYCROFT LEISURE,"8,047.50",New Hadl Pl & Leisure Centre,Major Contracts,07 Jul 2022,2223/05,LGE,N,
0010050291,ABBEYCROFT LEISURE,"34,925.00",Kingfisher Leisure Centre,Major Contracts,07 Jul 2022,2223/05,LGE,N,
0010049686,A C LEIGH (NORWICH) LTD,394.74,Building Services,"Equipment, Tools & Materials",21 Jul 2022,2223/05,SME,N,
0010049935,A C LEIGH (NORWICH) LTD,406.48,Building Services,"Equipment, Tools & Materials",26 Jul 2022,2223/05,SME,N,
0010049936,A C LEIGH (NORWICH) LTD,331.18,Building Services,"Equipment, Tools & Materials",28 Jul 2022,2223/05,SME,N,
0010049965,A C LEIGH (NORWICH) LTD,571.28,Building Services,"Equipment, Tools & Materials",14 Jul 2022,2223/05,SME,N,
0010050096,A C LEIGH (NORWICH) LTD,413.50,Building Services,"Equipment, Tools & Materials",01 Aug 2022,2223/05,SME,N,
0010050097,A C LEIGH (NORWICH) LTD,"1,477.08",Building Services,"Equipment, Tools & Materials",03 Aug 2022,2223/05,SME,N,
0010049912,SUFFOLK POWER EQUIPMENT,"1,839.00",Open Spaces,"Equipment, Tools & Materials",01 Aug 2022,2223/05,ST,N,
0010050162,3 POINT PROPERTY MANAGEMENT LTD,550.00,Guaranteed Rent Scheme,Rent Payable,15 Aug 2022,2223/05,SME,N,
0010050249,DG ACCESSIBLE DESIGNS,600.00,Mand Disabled Facilities Grant,Grants,17 Aug 2022,2223/05,SME,N,
0010049712,HUGHES TRADE,355.68,Other Temp Accommodation,Furniture,27 Jul 2022,2223/05,LGE,N,
0010050296,HUGHES TRADE,266.67,Other Temp Accommodation,Furniture,22 Aug 2022,2223/05,LGE,N,
0010050130,APTL ENTERPRISES LTD,"6,137.50",PV Panels,Repairs,13 Jul 2022,2223/05,SME,N,
0010050133,APTL ENTERPRISES LTD,"4,648.00",PV Panels,Repairs,31 Jul 2022,2223/05,SME,N,
0010050134,APTL ENTERPRISES LTD,"4,648.00",PV Panels,Repairs,30 Jun 2022,2223/05,SME,N,
0010049383,MARDEN ESSEX LTD,"19,500.00",New Bld/acquisition,Purchase of Land & Buildings,07 Jul 2022,2223/05,SME,N,
0010049838,ANGLIA COMMERCIAL FLOORING LTD,283.74,Building Services,Repairs,27 Jul 2022,2223/05,SME,N,
0010049860,ANGLIA COMMERCIAL FLOORING LTD,302.66,Building Services,Repairs,27 Jul 2022,2223/05,SME,N,
0010050046,ANGLIA COMMERCIAL FLOORING LTD,557.62,Building Services,Repairs,04 Aug 2022,2223/05,SME,N,
0010050047,ANGLIA COMMERCIAL FLOORING LTD,344.57,Building Services,Repairs,04 Aug 2022,2223/05,SME,N,
0010050048,ANGLIA COMMERCIAL FLOORING LTD,559.31,Building Services,Repairs,04 Aug 2022,2223/05,SME,N,
0020028013,ANGLIAN WATER BUS (NAT) LTD T/A WAVE,125.57,C Parks General,Water Rates - Metered,12 Aug 2022,2223/05,LGE,N,
0020028013,ANGLIAN WATER BUS (NAT) LTD T/A WAVE,-474.76,Chilton Depot,Water Rates - Metered,12 Aug 2022,2223/05,LGE,Y,50%
0020028013,ANGLIAN WATER BUS (NAT) LTD T/A WAVE,4.10,Friars Meadow Sudb,Water Rates - Metered,12 Aug 2022,2223/05,LGE,N,
0020028013,ANGLIAN WATER BUS (NAT) LTD T/A WAVE,43.45,General Rechargeable Works,Misc Supplies & Services Costs,12 Aug 2022,2223/05,LGE,N,
0020028013,ANGLIAN WATER BUS (NAT) LTD T/A WAVE,41.06,HQ Energy,Water Rates - Metered,12 Aug 2022,2223/05,LGE,N,
0020028013,ANGLIAN WATER BUS (NAT) LTD T/A WAVE,698.49,Public Conveniences,Water Rates - Metered,12 Aug 2022,2223/05,LGE,N,
0020028013,ANGLIAN WATER BUS (NAT) LTD T/A WAVE,"2,272.75",Sheltered Accommodation,Water Rates - Metered,12 Aug 2022,2223/05,LGE,N,
0020028013,ANGLIAN WATER BUS (NAT) LTD T/A WAVE,672.45,Temporary Accommodation,Water Rates - Metered,12 Aug 2022,2223/05,LGE,N,
0020028013,ANGLIAN WATER BUS (NAT) LTD T/A WAVE,161.12,Tenancy Services,Water Rates - Metered,12 Aug 2022,2223/05,LGE,N,
0010049710,ABACUS FIRE & SECURITY LTD,"2,104.60",Building Services,"Equipment, Tools & Materials",27 Jul 2022,2223/05,SME,Y,50%
0020028012,IMSERV EUROPE LTD,59.91,Belle Vue House,Electricity,12 Aug 2022,2223/05,LGE,N,
0020028012,IMSERV EUROPE LTD,19.97,Climate Change and Sustainabil,Electricity,12 Aug 2022,2223/05,LGE,N,
0020028012,IMSERV EUROPE LTD,19.97,Headquarters General,Electricity,12 Aug 2022,2223/05,LGE,N,
0020028012,IMSERV EUROPE LTD,79.88,Public Conveniences,Electricity,12 Aug 2022,2223/05,LGE,N,
0020028012,IMSERV EUROPE LTD,19.97,Sewage Treatment Works,Electricity,12 Aug 2022,2223/05,LGE,N,
0020028012,IMSERV EUROPE LTD,99.85,Sheltered Accommodation,Electricity,12 Aug 2022,2223/05,LGE,N,
0020028012,IMSERV EUROPE LTD,19.97,SP Comm Alarms (Non-SH),Electricity,12 Aug 2022,2223/05,LGE,N,
0020028012,IMSERV EUROPE LTD,19.97,Temporary Accommodation,Electricity,12 Aug 2022,2223/05,LGE,N,
0020028012,IMSERV EUROPE LTD,958.56,Tenancy Services,Electricity,12 Aug 2022,2223/05,LGE,N,
0020028015,IMSERV EUROPE LTD,239.41,Climate Change and Sustainabil,Electricity,22 Aug 2022,2223/05,LGE,N,
0020028015,IMSERV EUROPE LTD,164.00,HQ Energy,Electricity,22 Aug 2022,2223/05,LGE,N,
0020028015,IMSERV EUROPE LTD,"1,197.05",Sheltered Accommodation,Electricity,22 Aug 2022,2223/05,LGE,N,
0020028015,IMSERV EUROPE LTD,192.61,Wenham Depot,Electricity,22 Aug 2022,2223/05,LGE,Y,50%
0020028017,IMSERV EUROPE LTD,307.80,Belle Vue House,Electricity,23 Aug 2022,2223/05,LGE,N,
0020028017,IMSERV EUROPE LTD,158.97,Climate Change and Sustainabil,Electricity,23 Aug 2022,2223/05,LGE,N,
0020028017,IMSERV EUROPE LTD,102.60,Headquarters General,Electricity,23 Aug 2022,2223/05,LGE,N,
0020028017,IMSERV EUROPE LTD,410.40,Public Conveniences,Electricity,23 Aug 2022,2223/05,LGE,N,
0020028017,IMSERV EUROPE LTD,102.60,Sewage Treatment Works,Electricity,23 Aug 2022,2223/05,LGE,N,
0020028017,IMSERV EUROPE LTD,897.45,Sheltered Accommodation,Electricity,23 Aug 2022,2223/05,LGE,N,
0020028017,IMSERV EUROPE LTD,102.60,SP Comm Alarms (Non-SH),Electricity,23 Aug 2022,2223/05,LGE,N,
0020028017,IMSERV EUROPE LTD,102.60,Temporary Accommodation,Electricity,23 Aug 2022,2223/05,LGE,N,
0020028017,IMSERV EUROPE LTD,"4,719.60",Tenancy Services,Electricity,23 Aug 2022,2223/05,LGE,N,
0010049817,EASTERN PLAY SERVICES LTD,740.00,Open Spaces,Repairs,29 Jul 2022,2223/05,SME,N,
0010049837,STUDLEY CAPITAL LIMITED,"3,325.00",Hamilton Road Regeneration,Prof & Consultancy Fees,01 Aug 2022,2223/05,ST,N,
0010049913,GREENACRE RECRUITMENT LTD,"3,224.65",Building Services,Prof & Consultancy Fees,03 Aug 2022,2223/05,SME,Y,50%
0010050060,GREENACRE RECRUITMENT LTD,"3,224.50",Building Services,Prof & Consultancy Fees,10 Aug 2022,2223/05,SME,Y,50%
0010050235,GREENACRE RECRUITMENT LTD,"3,212.50",Building Services,Prof & Consultancy Fees,17 Aug 2022,2223/05,SME,Y,50%
0010050240,GREENACRE RECRUITMENT LTD,"3,420.00",Management Team,Agency Staff,17 Aug 2022,2223/05,SME,Y,50%
0010050394,GREENACRE RECRUITMENT LTD,"3,231.70",Building Services,Prof & Consultancy Fees,24 Aug 2022,2223/05,SME,Y,50%
0010050396,GREENACRE RECRUITMENT LTD,"4,275.00",Management Team,Agency Staff,24 Aug 2022,2223/05,SME,Y,50%
0020028024,LITTLE CORNARD VILLAGE HALL,280.00,General Elections,Room Hire,31 Aug 2022,2223/05,SME,N,
0010049771,BABERGH GROWTH LTD,"1,199.00",Belle Vue Refurb/Rplcmt,Prof & Consultancy Fees,31 Jul 2022,2223/05,SME,N,
0010049825,TIAA LTD,"4,506.38",Internal Audit,Contracted Services,01 Aug 2022,2223/05,SME,Y,50%
0010049845,BYCHOICE LTD,"1,800.00","Wolsey Grange, Sproughton S106",Prof & Consultancy Fees,30 Jun 2022,2223/05,SME,N,
0010049854,BYCHOICE LTD,"1,800.00","Angel Court, Hadleigh",Prof & Consultancy Fees,31 Jul 2022,2223/05,SME,N,
0010049855,BYCHOICE LTD,"1,800.00","Angel Court, Hadleigh",Prof & Consultancy Fees,31 Jul 2022,2223/05,SME,N,
0010049856,BYCHOICE LTD,"1,800.00","Angel Court, Hadleigh",Prof & Consultancy Fees,31 Jul 2022,2223/05,SME,N,
0010050302,BYCHOICE LTD,950.00,Guaranteed Rent Scheme,Rent Payable,22 Aug 2022,2223/05,SME,N,
0010050181,LAND USE CONSULTANTS LTD,"3,500.00",Nghbrhd Plan Designations,Prof & Consultancy Fees,15 Aug 2022,2223/05,SME,N,
0010050362,REEFER PROPERTIES LTD,695.00,Guaranteed Rent Scheme,Rent Payable,23 Aug 2022,2223/05,SME,N,
0010050244,TOTALMOBILE LTD,"13,080.00",Tenancy Services,Software Licnse (Line of Bus) ,17 Aug 2022,2223/05,SME,Y,50%
0010049778,PRIVATE LANDLORD,515.00,Guaranteed Rent Scheme,Rent Payable,01 Aug 2022,2223/05,SME,N,
0010050418,PRIVATE LANDLORD,515.00,Guaranteed Rent Scheme,Rent Payable,25 Aug 2022,2223/05,SME,N,
0010049999,PRIVATE LANDLORD,675.00,Guaranteed Rent Scheme,Rent Payable,08 Aug 2022,2223/05,ST,N,
0010050413,PRIVATE LANDLORD,675.00,Guaranteed Rent Scheme,Rent Payable,25 Aug 2022,2223/05,ST,N,
0010050303,PRIVATE LANDLORD,700.00,Guaranteed Rent Scheme,Rent Payable,22 Aug 2022,2223/05,SME,N,
0010050517,STOREHOUSE FOOD BANK,"2,000.00",Household Support Grant,Misc Supplies & Services Costs,31 Aug 2022,2223/05,SME,N,
0010050313,PRIVATE LANDLORD,"1,198.00",Guaranteed Rent Scheme,Rent Payable,22 Aug 2022,2223/05,ST,N,
0010050036,BUCHER MUNICIPAL LTD,818.48,Street & Major Road Cleansing,"Equipment, Tools & Materials",09 Aug 2022,2223/05,LGE,N,
0010049948,CHURCHES CONSERVATION TRUST,"25,000.00",Comm Devt Grants,Grants,04 Aug 2022,2223/05,SME,N,
0010050416,SEQUENCE UK LTD (WILLIAM H BROWN),700.00,Guaranteed Rent Scheme,Rent Payable,25 Aug 2022,2223/05,LGE,N,
0010050316,PRIVATE LANDLORD,550.00,Guaranteed Rent Scheme,Rent Payable,22 Aug 2022,2223/05,ST,N,
0010050415,PRIVATE LANDLORD,700.00,Guaranteed Rent Scheme,Rent Payable,25 Aug 2022,2223/05,ST,N,
0010049775,PRIVATE LANDLORD,490.00,Guaranteed Rent Scheme,Rent Payable,01 Aug 2022,2223/05,SME,N,
0010049992,PRIVATE LANDLORD,"1,320.00",Guaranteed Rent Scheme,Rent Payable,08 Aug 2022,2223/05,SME,N,
0010050414,PRIVATE LANDLORD,490.00,Guaranteed Rent Scheme,Rent Payable,25 Aug 2022,2223/05,SME,N,
0010050216,SUFFOLK DOORS & WINDOWS LTD,650.00,Roofing,Improvements,16 Aug 2022,2223/05,SME,N,
0010049988,PRIVATE LANDLORD,786.50,Guaranteed Rent Scheme,Rent Payable,08 Aug 2022,2223/05,ST,N,
0010050159,PRIVATE LANDLORD,650.00,Guaranteed Rent Scheme,Rent Payable,15 Aug 2022,2223/05,ST,N,
0010049941,COUNTRYSTYLE RECYCLING LTD,"4,286.90",Bring Sites,Contracted Services,31 Jul 2022,2223/05,SME,N,
0010050041,ANDERSON DESIGN & BUILD LIMITED,"263,845.33",Waldingfield Rd S106 Andersons,Prof & Consultancy Fees,12 Jul 2022,2223/05,SME,N,
0010050379,HANDICARE ACCESSIBILITY LTD,"1,611.00",Mand Disabled Facilities Grant,Grants,24 Aug 2022,2223/05,SME,N,
0010049994,PRIVATE LANDLORD,700.00,Guaranteed Rent Scheme,Rent Payable,08 Aug 2022,2223/05,ST,N,
0010050001,PRIVATE LANDLORD,800.00,Guaranteed Rent Scheme,Rent Payable,08 Aug 2022,2223/05,ST,N,
0010049998,PRIVATE LANDLORD,800.00,Guaranteed Rent Scheme,Rent Payable,08 Aug 2022,2223/05,SME,N,
0010049721,ARAN INSULATION LTD,"1,345.74",Insulation Imps,Improvements,28 Jul 2022,2223/05,SME,N,
0010049942,ARAN INSULATION LTD,"4,027.36",Insulation Imps,Improvements,04 Aug 2022,2223/05,SME,N,
0010049995,ARAN INSULATION LTD,859.84,Insulation Imps,Improvements,08 Aug 2022,2223/05,SME,N,
0010050025,ARAN INSULATION LTD,"5,154.71",Insulation Imps,Improvements,09 Aug 2022,2223/05,SME,N,
0010050025,ARAN INSULATION LTD,918.65,Stairlifts,Repairs,09 Aug 2022,2223/05,SME,N,
0010050026,ARAN INSULATION LTD,"12,519.40",Insulation Imps,Improvements,09 Aug 2022,2223/05,SME,N,
0010049502,P TUCKWELL LTD,760.00,Open Spaces,"Equipment, Tools & Materials",18 Jul 2022,2223/05,SME,N,
0010049776,PRIVATE LANDLORD,500.00,Guaranteed Rent Scheme,Rent Payable,01 Aug 2022,2223/05,ST,N,
0010050301,PRIVATE LANDLORD,580.00,Guaranteed Rent Scheme,Rent Payable,22 Aug 2022,2223/05,ST,N,
0010049822,PRIVATE LANDLORD,575.00,Guaranteed Rent Scheme,Rent Payable,02 Aug 2022,2223/05,ST,N,
0010050421,PRIVATE LANDLORD,575.00,Guaranteed Rent Scheme,Rent Payable,25 Aug 2022,2223/05,ST,N,
0010050516,E.ON NEXT,750.00,Household Support Grant,Misc Supplies & Services Costs,31 Aug 2022,2223/05,LGE,N,
0010049824,IPSERV LTD,146.00,BRRP-MarketTownVision&Invest,Advertising&mkting (non-staff),01 Aug 2022,2223/05,SME,N,
0010049824,IPSERV LTD,593.13,Central Printing,Commercial Printing,01 Aug 2022,2223/05,SME,N,
0010049824,IPSERV LTD,"1,451.97",Communications,Commercial Printing,01 Aug 2022,2223/05,SME,N,
0010049917,IPSERV LTD,36.90,BRRP-Workspace&GrowonCommercia,Prof & Consultancy Fees,02 Aug 2022,2223/05,SME,N,
0010049917,IPSERV LTD,973.28,Central Printing,Commercial Printing,02 Aug 2022,2223/05,SME,N,
0010049917,IPSERV LTD,834.60,Communications,Commercial Printing,02 Aug 2022,2223/05,SME,N,
0010049767,BOND TURNER,"6,389.90",Building Services,Payments to Tenants,29 Jul 2022,2223/05,SME,N,
0010050023,DAVID BURR LETTINGS,700.00,Guaranteed Rent Scheme,Rent Payable,09 Aug 2022,2223/05,SME,N,
0010049755,FOURWAYS VEHICLE SOLUTIONS LTD,294.73,Building Services,Lease Cars - Payment,22 Jul 2022,2223/05,SME,Y,50%
0010049758,FOURWAYS VEHICLE SOLUTIONS LTD,570.50,Building Services,Lease Cars - Payment,21 Jul 2022,2223/05,SME,Y,50%
0010049896,START AFRESH CLEANING LTD,515.67,Street & Major Road Cleansing,General Cleaning,31 Jul 2022,2223/05,SME,N,
0010050161,PRIVATE LANDLORD,715.00,Guaranteed Rent Scheme,Rent Payable,15 Aug 2022,2223/05,SME,N,
0010049774,THE PLANNING INSPECTORATE,"3,798.22",Devt Policy & Local Plans,Prof & Consultancy Fees,27 Jul 2022,2223/05,LGE,N,
0010049774,THE PLANNING INSPECTORATE,"3,798.23",Local Plans,Prof & Consultancy Fees,27 Jul 2022,2223/05,LGE,Y,100%
0010050157,SHJ HOMES LTD,550.00,Guaranteed Rent Scheme,Rent Payable,15 Aug 2022,2223/05,SME,N,
0010050317,PRIVATE LANDLORD,500.00,Guaranteed Rent Scheme,Rent Payable,22 Aug 2022,2223/05,ST,N,
0010050158,PRIVATE LANDLORD,675.00,Guaranteed Rent Scheme,Rent Payable,15 Aug 2022,2223/05,ST,N,
0010049996,PRIVATE LANDLORD,500.00,Guaranteed Rent Scheme,Rent Payable,08 Aug 2022,2223/05,ST,N,
0010049628,SWECO CONSULTING ENGINEERS LTD,"4,193.34",Sheltered Units-Gen.Imp,Prof & Consultancy Fees,29 Jun 2022,2223/05,LGE,N,
0010050156,PRIVATE LANDLORD,650.00,Guaranteed Rent Scheme,Rent Payable,15 Aug 2022,2223/05,ST,N,
0010050315,PRIVATE LANDLORD,650.00,Guaranteed Rent Scheme,Rent Payable,22 Aug 2022,2223/05,ST,N,
0010050160,PRIVATE LANDLORD,695.00,Guaranteed Rent Scheme,Rent Payable,15 Aug 2022,2223/05,ST,N,
0010050009,PRIVATE LANDLORD,312.50,Homeless Prevention Fund,Misc Supplies & Services Costs,08 Aug 2022,2223/05,ST,N,
0010049641,GB GEOTECHNICS LTD,"10,275.00",Kingfisher Leisure Centre,Repairs,21 Jul 2022,2223/05,SME,N,
0010050154,HAMILTON SMITH LETTINGS,670.00,Guaranteed Rent Scheme,Rent Payable,15 Aug 2022,2223/05,SME,N,
0010049919,BRITISH GAS TRADING LTD,261.02,Voids Maintenance,Electricity,23 Jul 2022,2223/05,LGE,N,
0010050013,BRITISH GAS TRADING LTD,590.48,Voids Maintenance,Gas,23 Jul 2022,2223/05,LGE,N,
0010050000,JB PROPERTY SOLUTIONS (SUFFOLK) LTD T/A,455.00,Guaranteed Rent Scheme,Rent Payable,08 Aug 2022,2223/05,SME,N,
0010050163,KBM HOUSE SHARE & PROPERTY MANAGEMENT LT,550.00,Guaranteed Rent Scheme,Rent Payable,08 Aug 2022,2223/05,SME,N,
0010049637,PAY 360 LIMITED,813.00,Bank Chgs,Bank Charges,20 Jul 2022,2223/05,LGE,Y,100%
0010049637,PAY 360 LIMITED,12.14,Current Assets,Receipts Control,20 Jul 2022,2223/05,LGE,N,100%
0010049819,PAY 360 LIMITED,"10,500.00",ICT,Software Licnse (Line of Bus) ,28 Jul 2022,2223/05,LGE,Y,50%
0010050069,PAY 360 LIMITED,"1,100.37",Bank Chgs,Bank Charges,09 Aug 2022,2223/05,LGE,Y,50%
0010050114,PAY 360 LIMITED,"4,602.32",Bank Chgs,Bank Charges,12 Aug 2022,2223/05,LGE,N,
0010050155,PRIVATE LANDLORD,550.00,Guaranteed Rent Scheme,Rent Payable,15 Aug 2022,2223/05,SME,N,
0010050310,PRIVATE LANDLORD,885.00,Guaranteed Rent Scheme,Rent Payable,22 Aug 2022,2223/05,ST,N,
0010050077,THE DISRUPTIVE HR AGENCY LTD,"1,500.00",Organisational Devt,Professional Subs (Staff),29 Jun 2022,2223/05,SME,Y,50%
0010049677,ABLE SKILLS LTD,"3,750.00",Building Services,Training,25 Jul 2022,2223/05,SME,Y,50%
0010049849,ABLE SKILLS LTD,"4,166.67",Building Services,Training,02 Aug 2022,2223/05,SME,Y,50%
0010049894,NO MORE WATER LEAKS LTD T/A ESSEX SKILLS,"1,483.33",Building Services,Training,01 Aug 2022,2223/05,SME,Y,50%
0010050076,A W & D HAMMOND LTD,"27,718.00",Vehicle and Plant Renewals,Plant & Vehicle - Purchase,21 Jul 2022,2223/05,LGE,N,
0010049858,EAST ANGLIA MEDICAL CARE LTD,395.00,Policy & Strategy (H & W),Misc Supplies & Services Costs,30 Jun 2022,2223/05,SME,N,
0010049928,SCOTTISH POWER,300.00,Household Support Grant,Misc Supplies & Services Costs,04 Aug 2022,2223/05,LGE,N,
0010050187,TCM LTD,300.00,Building Services,Repairs,15 Aug 2022,2223/05,SME,N,
0010049963,DTS EAST LTD T/A HUDSON SIGN SOLUTIONS,899.00,Innovate Local SIGIF,Misc Supplies & Services Costs,24 Jun 2022,2223/05,SME,N,
0010049971,PROFESSIONAL DEV GRP TA GOV EVENTS,319.20,Management Team,Conference Expenses,21 Jul 2022,2223/05,SME,Y,50%
0010050032,PRIVATE LANDLORD,"1,500.00",Guaranteed Rent Scheme,Misc Supplies & Services Costs,09 Aug 2022,2223/05,SME,N,
0020028005,PRIVATE LANDLORD,900.00,Guaranteed Rent Scheme,Rent Payable,11 Aug 2022,2223/05,SME,N,
0010050059,HENSTAN LOGISTICS,500.00,Guaranteed Rent Scheme,Misc Supplies & Services Costs,10 Aug 2022,2223/05,ST,N,
0010050250,HENSTAN LOGISTICS,800.00,Guaranteed Rent Scheme,Rents (voids),18 Aug 2022,2223/05,ST,N,
0010050177,PANACHE ICE CREAM LTD,"2,500.00",Business Innovation Grants,Grants,15 Aug 2022,2223/05,SME,N,
0020028009,REMOVAL TREE LTD,550.00,Homeless Prevention Fund,Removal Expenses,16 Aug 2022,2223/05,SME,N,
0020028014,PRIVATE LANDLORD,750.00,Guaranteed Rent Scheme,Rent Payable,17 Aug 2022,2223/05,ST,N,
0020028014,PRIVATE LANDLORD,"1,500.00",Guaranteed Rent Scheme,Misc Supplies & Services Costs,17 Aug 2022,2223/05,ST,N,
0010050410,RAYDON LUNCHCLUB,490.00,Grants & Contrbns,Contributions & Donations,24 Aug 2022,2223/05,SME,N,
0010050448,MARMAX RECYCLED PRODUCTS,600.00,CIL Funded REFCUS,Grants,26 Aug 2022,2223/05,SME,N,
0010050447,MUDCONTROL LTD,912.51,CIL Funded REFCUS,Grants,26 Aug 2022,2223/05,SME,N,
0020027981,CASTONS,-50.56,Kingfisher LC Refurb,Prof & Consultancy Fees,25 Jul 2022,2223/04,SME,N,
0000001024,CLARKE FENCING LTD,"-25,097.37",Building Services,Repairs,11 Jul 2022,2223/04,SME,N,
0010049056,GIPPING OCCUPATIONAL HEALTH LTD,-45.00,Health & Safety,Contracted Services,27 Jun 2022,2223/04,SME,N,
0010049378,GIPPING OCCUPATIONAL HEALTH LTD,-252.08,Health & Safety,Contracted Services,30 Jun 2022,2223/04,SME,Y,50%
0010049379,GIPPING OCCUPATIONAL HEALTH LTD,-22.92,Health & Safety,Contracted Services,29 Jun 2022,2223/04,SME,N,
0020027963,GIPPING OCCUPATIONAL HEALTH LTD,-144.00,Health & Safety,Contracted Services,27 Jun 2022,2223/04,SME,Y,50%
10050558,AARON SERVICES LTD,"27,286.09",Planned Maint - Heating,Property Servicing,31-Aug-22,2223/06,SME,N,
20028029,AARON SERVICES LTD,"1,895.15",Current Liabilities,Cert IBS Creditors Holding ac,22-Aug-22,2223/06,SME,N,
20028031,AARON SERVICES LTD,450.19,Current Liabilities,Cert IBS Creditors Holding ac,30-Aug-22,2223/06,SME,N,
20028044,AARON SERVICES LTD,"17,888.76",Current Liabilities,Cert IBS Creditors Holding ac,14-Sep-22,2223/06,SME,N,
20028046,AARON SERVICES LTD,"27,073.04",Current Liabilities,Cert IBS Creditors Holding ac,12-Sep-22,2223/06,SME,N,
20028051,AARON SERVICES LTD,"14,516.36",Current Liabilities,Cert IBS Creditors Holding ac,21-Sep-22,2223/06,SME,N,
10050449,ACADEMY BUILDING CONTRACTS LTD,"1,391.27","Fences, Gates and Walls",BMBS Repairs Work,26-Aug-22,2223/06,SME,N,
10050450,ACADEMY BUILDING CONTRACTS LTD,"3,145.48","Fences, Gates and Walls",Improvements,26-Aug-22,2223/06,SME,N,
10050452,ACADEMY BUILDING CONTRACTS LTD,"1,460.83","Fences, Gates and Walls",BMBS Repairs Work,26-Aug-22,2223/06,SME,N,
10050526,ACADEMY BUILDING CONTRACTS LTD,320.33,Building Services,Repairs,26-Aug-22,2223/06,SME,N,
10050590,ACADEMY BUILDING CONTRACTS LTD,252.72,"Fences, Gates and Walls",BMBS Repairs Work,02-Sep-22,2223/06,SME,N,
10050591,ACADEMY BUILDING CONTRACTS LTD,"1,137.80","Fences, Gates and Walls",BMBS Repairs Work,02-Sep-22,2223/06,SME,N,
10050592,ACADEMY BUILDING CONTRACTS LTD,"2,086.91","Fences, Gates and Walls",BMBS Repairs Work,02-Sep-22,2223/06,SME,N,
10050593,ACADEMY BUILDING CONTRACTS LTD,262.03,Building Services,Repairs,02-Sep-22,2223/06,SME,N,
10050594,ACADEMY BUILDING CONTRACTS LTD,"1,263.90",Building Services,Repairs,02-Sep-22,2223/06,SME,N,
10050561,AE WHITE SURFACING,411.85,Insurance Claims,Misc Premises Costs,31-Aug-22,2223/06,SME,N,
10050646,AE WHITE SURFACING,"2,000.00",Estate Imps/parking areas,Improvements,06-May-22,2223/06,SME,N,
10050475,ANGLIAN WATER,884.19,Water Sampling,Sampling & Analysis,26-Aug-22,2223/06,LGE,N,
10050548,ANGLIAN WATER,448.76,Water Sampling,Sampling & Analysis,22-Jul-22,2223/06,LGE,N,
10050549,ANGLIAN WATER,412.91,Water Sampling,Sampling & Analysis,27-Jul-22,2223/06,LGE,N,
10050756,ANGLIAN WATER,428.54,Tenancy Services,Water Rates - Metered,31-Aug-22,2223/06,LGE,N,
10050983,ANGLIAN WATER,"1,424.65",Sheltered Accommodation,Water Rates - Metered,12-Sep-22,2223/06,LGE,N,
10051168,ANGLIAN WATER,772.13,Water Sampling,Sampling & Analysis,26-Sep-22,2223/06,LGE,N,
10050760,BINDER LTD,"1,812.25",Sewage Treatment Works,Contracted Services,31-Aug-22,2223/06,SME,N,
10050921,BINDER LTD,74,Sewage Treatment Works,Contracted Services,09-Sep-22,2223/06,SME,N,
10050921,BINDER LTD,420.9,Sewage Treatment Works,Contracted Services,09-Sep-22,2223/06,SME,N,
10050607,BOTTOMLINE TECHNOLOGIES,701.21,ICT,Software Licnse (Line of Bus) ,31-Aug-22,2223/06,LGE,Y,50%
10051160,BOTTOMLINE TECHNOLOGIES,"1,122.67",ICT,Software Licnse (Line of Bus) ,26-Sep-22,2223/06,LGE,Y,50%
10049906,BOWER FULLER,284.19,Public Conveniences,Repairs,29-Jul-22,2223/06,SME,N,
10049909,BOWER FULLER,"5,411.04",Public Realm TransitionProject,"Equipment, Tools & Materials",29-Jul-22,2223/06,SME,N,
10050239,BOWER FULLER,"6,281.07",Sheltered Accommodation,Improvements,17-Aug-22,2223/06,SME,N,
10050829,BOWER FULLER,"1,437.49",Chilton Depot,Grounds & Site Maintenance,31-Aug-22,2223/06,SME,Y,50%
10050830,BOWER FULLER,"7,944.75",Sheltered Accommodation,Fire Prevention,31-Aug-22,2223/06,SME,N,
10050832,BOWER FULLER,268.08,Tenancy Services,Fire Prevention,31-Aug-22,2223/06,SME,N,
10050833,BOWER FULLER,473.73,Sheltered Accommodation,Repairs,31-Aug-22,2223/06,SME,N,
10051035,BOWER FULLER,277.29,Tenancy Services,Repairs,31-Aug-22,2223/06,SME,N,
10050513,AQUASAMPLERS,960,Water Sampling,Sampling & Analysis,31-Jul-22,2223/06,SME,N,
10051025,CENTRAL TYRE LTD,341,Street & Major Road Cleansing,Plant & Vehicle - Other costs,17-Aug-22,2223/06,SME,N,
10049844,CHAPPLE SIGNS LTD,342.33,Open Spaces,"Equipment, Tools & Materials",02-Aug-22,2223/06,SME,N,
10050874,CHEQUERS HOTEL LTD,325,Homelessness Private Sector,B&B Costs,05-Sep-22,2223/06,SME,N,
10050875,CHEQUERS HOTEL LTD,390,Homelessness Private Sector,B&B Costs,05-Sep-22,2223/06,SME,N,
10050876,CHEQUERS HOTEL LTD,"1,495.00",Homelessness Private Sector,B&B Costs,05-Sep-22,2223/06,SME,N,
10050877,CHEQUERS HOTEL LTD,390,Homelessness Private Sector,B&B Costs,05-Sep-22,2223/06,SME,N,
10050879,CHEQUERS HOTEL LTD,357.5,Homelessness Private Sector,B&B Costs,05-Sep-22,2223/06,SME,N,
10050880,CHEQUERS HOTEL LTD,455,Homelessness Private Sector,B&B Costs,05-Sep-22,2223/06,SME,N,
10050866,CHIPSIDE LTD,365.67,C Parks General,Contracted Services,31-Aug-22,2223/06,SME,N,
10050546,CLARKES OF WALSHAM LTD,"1,283.11",Building Services,Repairs,31-Aug-22,2223/06,SME,N,
10051103,CLARKES OF WALSHAM LTD,"1,283.11",Building Services,"Equipment, Tools & Materials",31-Aug-22,2223/06,SME,N,
10050493,D W ADAMS LTD,273,Building Services,Repairs,31-Aug-22,2223/06,SME,N,
10050494,D W ADAMS LTD,"1,679.00",Council House Adaptions,Improvements,31-Aug-22,2223/06,SME,N,
10050764,DMA HEALTH AND SAFETY LTD,435,Structural Works,Prof & Consultancy Fees,06-Sep-22,2223/06,SME,N,
10050559,EAST OF ENGLAND LGA,"2,000.00",Management Team,Prof & Consultancy Fees,30-Aug-22,2223/06,SME,N,
10050924,CIVICA ELECTION SERVICES,"1,647.85",Electoral Registration,Returning Officer Fees,22-Aug-22,2223/06,LGE,N,
10050925,CIVICA ELECTION SERVICES,"2,971.27",Electoral Registration,Returning Officer Fees,05-Sep-22,2223/06,LGE,N,
10051215,CIVICA ELECTION SERVICES,"1,006.44",Elections,Stationery,29-Jul-22,2223/06,LGE,N,
10050659,ENER-G SWITCH2 LTD,201.23,Temporary Accommodation,Repairs,05-Sep-22,2223/06,SME,N,
10050659,ENER-G SWITCH2 LTD,161.59,Temporary Accommodation,Repairs,05-Sep-22,2223/06,SME,N,
10050345,ENGLISH SECURITY,276.46,Sheltered Accommodation,Fire Prevention,29-Jul-22,2223/06,SME,N,
10050345,ENGLISH SECURITY,385.34,Tenancy Services,Fire Prevention,29-Jul-22,2223/06,SME,N,
10050357,ENGLISH SECURITY,"1,140.75",Sheltered Accommodation,Community Alarm Costs,17-Aug-22,2223/06,SME,N,
10050429,ENGLISH SECURITY,332.46,Sheltered Accommodation,Fire Prevention,26-Aug-22,2223/06,SME,N,
10050870,ENGLISH SECURITY,325.87,Temporary Accommodation,Fire Prevention,17-Aug-22,2223/06,SME,N,
10050963,ENGLISH SECURITY,103,Chilton Depot,Fire Prevention,14-Sep-22,2223/06,SME,Y,50%
10050963,ENGLISH SECURITY,"1,309.20",Sheltered Accommodation,Fire Prevention,14-Sep-22,2223/06,SME,N,
10050963,ENGLISH SECURITY,869.6,Temporary Accommodation,Fire Prevention,14-Sep-22,2223/06,SME,N,
10050963,ENGLISH SECURITY,133.9,Wenham Depot,Fire Prevention,14-Sep-22,2223/06,SME,Y,50%
10050589,ENVIROVENT LTD,460,Building Services,Repairs,31-Aug-22,2223/06,SME,N,
10050680,ENVIROVENT LTD,460,Insulation Imps,Improvements,02-Sep-22,2223/06,SME,N,
10050948,ENVIROVENT LTD,997.04,Building Services,Repairs,06-Sep-22,2223/06,SME,N,
10050953,ENVIROVENT LTD,460,Insulation Imps,Improvements,08-Sep-22,2223/06,SME,N,
10051075,FELGAINS CARE CENTRE,"1,270.00",Mand Disabled Facilities Grant,Grants,21-Sep-22,2223/06,SME,N,
10049129,FELLBRIDGE BUILDING SERVICES,"2,121.80",Building Services,Repairs,30-Jun-22,2223/06,SME,N,
10050380,FELLBRIDGE BUILDING SERVICES,803.84,Building Services,Repairs,06-Jun-22,2223/06,SME,N,
10050381,FELLBRIDGE BUILDING SERVICES,544.84,Building Services,Repairs,24-Aug-22,2223/06,SME,N,
10050382,FELLBRIDGE BUILDING SERVICES,852.79,Building Services,Repairs,24-Aug-22,2223/06,SME,N,
10050386,FELLBRIDGE BUILDING SERVICES,"1,990.08",Building Services,Repairs,24-Aug-22,2223/06,SME,N,
10050424,FELLBRIDGE BUILDING SERVICES,293.69,Building Services,Repairs,25-Aug-22,2223/06,SME,N,
10050430,FELLBRIDGE BUILDING SERVICES,"7,447.26",Building Services,Repairs,24-Aug-22,2223/06,SME,N,
10050465,FELLBRIDGE BUILDING SERVICES,325.2,Building Services,Repairs,29-Aug-22,2223/06,SME,N,
10050466,FELLBRIDGE BUILDING SERVICES,"9,940.78",Building Services,Repairs,29-Aug-22,2223/06,SME,N,
10050468,FELLBRIDGE BUILDING SERVICES,"9,050.25",Building Services,Repairs,29-Aug-22,2223/06,SME,N,
10050469,FELLBRIDGE BUILDING SERVICES,775.27,Building Services,Repairs,29-Aug-22,2223/06,SME,N,
10050648,FELLBRIDGE BUILDING SERVICES,783.31,Building Services,Repairs,05-Sep-22,2223/06,SME,N,
10050649,FELLBRIDGE BUILDING SERVICES,"5,462.58",Building Services,Repairs,05-Sep-22,2223/06,SME,N,
10050667,FELLBRIDGE BUILDING SERVICES,"1,254.10",Building Services,Repairs,29-Aug-22,2223/06,SME,N,
10050744,FELLBRIDGE BUILDING SERVICES,"1,524.74",Building Services,Repairs,07-Sep-22,2223/06,SME,N,
10050745,FELLBRIDGE BUILDING SERVICES,327.74,Building Services,Repairs,07-Sep-22,2223/06,SME,N,
10050746,FELLBRIDGE BUILDING SERVICES,"1,090.80",Building Services,Repairs,07-Sep-22,2223/06,SME,N,
10050747,FELLBRIDGE BUILDING SERVICES,"6,590.42",Building Services,Repairs,07-Sep-22,2223/06,SME,N,
10050804,FELLBRIDGE BUILDING SERVICES,621.71,Building Services,Repairs,12-Sep-22,2223/06,SME,N,
10050805,FELLBRIDGE BUILDING SERVICES,"9,281.97",Building Services,Repairs,12-Sep-22,2223/06,SME,N,
10050912,FELLBRIDGE BUILDING SERVICES,"11,915.45",Building Services,Repairs,13-Sep-22,2223/06,SME,N,
10050951,FELLBRIDGE BUILDING SERVICES,"7,280.33",Building Services,Repairs,15-Sep-22,2223/06,SME,N,
10050652,FORE-MOST GARAGE DOORS LTD,"3,090.00",Building Services,Repairs,31-Aug-22,2223/06,SME,N,
10050671,G4S CASH SOLUTIONS LTD,412.8,C Parks General,Audit Fees,31-Aug-22,2223/06,LGE,N,
10050185,HAYES DIGGINS BUILDERS,"1,595.00",Building Services,Repairs,15-Aug-22,2223/06,SME,N,
10050731,HAYES DIGGINS BUILDERS,"1,230.00",Kingfisher Leisure Centre,Repairs,05-Sep-22,2223/06,SME,N,
10050739,HAYES DIGGINS BUILDERS,950,Building Services,Repairs,09-Jul-22,2223/06,SME,N,
10050907,HAYES DIGGINS BUILDERS,965,Building Services,Repairs,12-Sep-22,2223/06,SME,N,
10050909,HAYES DIGGINS BUILDERS,"1,884.00",Building Services,Repairs,13-Sep-22,2223/06,SME,N,
10051084,HUDSON MEDIA PARTNERSHIP LTD,340,BRRP-MarketTownVision&Invest,Advertising&mkting (non-staff),22-Sep-22,2223/06,SME,N,
10050645,INSTITUTE OF LICENSING (EVENTS) LTD,414,Cost of Democracy,Training,04-Jul-22,2223/06,SME,Y,50%
10050476,JMP SERVICES LTD,600,Street & Major Road Cleansing,Contracted Services,30-Aug-22,2223/06,SME,N,
10050779,KEN GRIME & SON LTD,616.4,Building Services,Repairs,09-Sep-22,2223/06,SME,N,
10050780,KEN GRIME & SON LTD,"1,226.85",Building Services,Repairs,09-Sep-22,2223/06,SME,N,
10050843,KEN GRIME & SON LTD,"1,170.03",Building Services,Repairs,12-Sep-22,2223/06,SME,N,
10050534,KEYWAYS THE LOCKSMITHS LTD,396,Open Spaces,"Equipment, Tools & Materials",01-Sep-22,2223/06,SME,N,
10050478,M & H CIVIL ENGINEERING LTD,706.1,Building Services,Repairs,30-Aug-22,2223/06,SME,N,
10050950,M & H CIVIL ENGINEERING LTD,629.3,Building Services,Repairs,15-Sep-22,2223/06,SME,N,
10051023,M & H CIVIL ENGINEERING LTD,721.82,Building Services,Repairs,20-Sep-22,2223/06,SME,N,
10050544,MATERIAL CHANGE COMPOSTING LTD,"2,333.10",Open Spaces,Waste Disposal,31-Aug-22,2223/06,LGE,N,
10050954,MB TREES (EAST ANGLIA) LTD,"1,485.00",Tenancy Services,Tree felling/maintenance,15-Sep-22,2223/06,SME,N,
10050957,MB TREES (EAST ANGLIA) LTD,"2,480.75",Public Tree Programme,Tree felling/maintenance,15-Sep-22,2223/06,SME,N,
10051011,MONTHIND CLEAN LTD,665.83,Jnt Waste Contract,General Cleaning,15-Sep-22,2223/06,LGE,Y,50%
10050508,NEEDHAM MARKET AERIALS LTD,658,Tenancy Services,Repairs,30-Aug-22,2223/06,SME,N,
10050553,PLASUFIX LTD,"2,080.00",Roofing,Repairs,30-Jun-22,2223/06,SME,N,
10050554,PLASUFIX LTD,"1,980.00",Building Services,Repairs,30-Jun-22,2223/06,SME,N,
10050554,PLASUFIX LTD,"1,980.00",Building Services,Repairs,30-Jun-22,2223/06,SME,N,
10050260,PRO-FLAT SPECIALIST SERVICES LTD,"1,412.00",Roofing,Improvements,18-Aug-22,2223/06,SME,N,
10050588,PRO-FLAT SPECIALIST SERVICES LTD,"1,142.00",Building Services,Repairs,18-Aug-22,2223/06,SME,N,
10050765,PRO-FLAT SPECIALIST SERVICES LTD,790,Building Services,Repairs,31-Aug-22,2223/06,SME,N,
10050058,REID PLUMBING & HEATING CONTRACTORS LTD,"10,393.16",Central Heating,Major Contracts,10-Aug-22,2223/06,SME,N,
10050199,REID PLUMBING & HEATING CONTRACTORS LTD,"9,403.47",Central Heating,Major Contracts,15-Aug-22,2223/06,SME,N,
10050231,REID PLUMBING & HEATING CONTRACTORS LTD,"16,146.38",Central Heating,Major Contracts,17-Aug-22,2223/06,SME,N,
10050387,REID PLUMBING & HEATING CONTRACTORS LTD,"10,099.54",Central Heating,Major Contracts,03-Aug-22,2223/06,SME,N,
10050539,REID PLUMBING & HEATING CONTRACTORS LTD,"15,509.76",Central Heating,Major Contracts,01-Sep-22,2223/06,SME,N,
10050551,REID PLUMBING & HEATING CONTRACTORS LTD,"18,776.10",Central Heating,Major Contracts,01-Sep-22,2223/06,SME,N,
10050653,REID PLUMBING & HEATING CONTRACTORS LTD,"9,724.83",Central Heating,Major Contracts,05-Sep-22,2223/06,SME,N,
10050676,REID PLUMBING & HEATING CONTRACTORS LTD,"5,571.46",Central Heating,Major Contracts,06-Sep-22,2223/06,SME,N,
10050736,SEAGER HOME SOLUTIONS,"5,668.00",Council House Adaptions,Improvements,06-Sep-22,2223/06,SME,N,
10050767,SITEIMPROVE LTD,"1,195.56",ICT,Line of Business Applications,08-Sep-22,2223/06,SME,Y,50%
10050642,SOLUTIONS ON SECURITY SERVICES,"1,283.80",Hadleigh Pool,Repairs,05-Sep-22,2223/06,SME,N,
10050741,SUFFOLK TREE SERVICES LTD,"1,100.00",Amenity Areas,Tree felling/maintenance,01-Sep-22,2223/06,SME,N,
10049739,SUREFIX,"9,750.00",Major Imps,Improvements,28-Jul-22,2223/06,SME,N,
10050610,SUREFIX,"1,250.00",Council House Adaptions,Improvements,03-Aug-21,2223/06,SME,N,
10050611,SUREFIX,"1,150.00",Major Imps,Repairs,31-Aug-22,2223/06,SME,N,
10050612,SUREFIX,"4,432.63",Window & Door Rplcmts,Improvements,29-Aug-22,2223/06,SME,N,
10050613,SUREFIX,900,Major Imps,Repairs,26-Aug-22,2223/06,SME,N,
10050616,SUREFIX,527.4,Building Services,Repairs,15-Aug-22,2223/06,SME,N,
10050785,SUREFIX,"5,100.00",Window & Door Rplcmts,Improvements,07-Sep-22,2223/06,SME,N,
10050847,SUREFIX,"4,250.00",Window & Door Rplcmts,Improvements,07-Sep-22,2223/06,SME,N,
10050853,SUREFIX,"1,460.96",Major Imps,Improvements,05-Sep-22,2223/06,SME,N,
10050854,SUREFIX,316.44,Building Services,Repairs,06-Sep-22,2223/06,SME,N,
10050986,SUREFIX,"1,397.80",Building Services,Repairs,16-Sep-22,2223/06,SME,N,
10050988,SUREFIX,"1,265.76",Building Services,Repairs,13-Sep-22,2223/06,SME,N,
10050989,SUREFIX,"1,582.00",Building Services,Repairs,13-Sep-22,2223/06,SME,N,
10050991,SUREFIX,"1,763.70",Major Imps,Improvements,26-Aug-22,2223/06,SME,N,
10050994,SUREFIX,"3,350.00",Window & Door Rplcmts,Improvements,13-Sep-22,2223/06,SME,N,
10050995,SUREFIX,"1,800.00",Window & Door Rplcmts,Repairs,29-Aug-22,2223/06,SME,N,
10050996,SUREFIX,600,Building Services,Repairs,15-Sep-22,2223/06,SME,N,
10051114,SUREFIX,765,Window & Door Rplcmts,Improvements,22-Sep-22,2223/06,SME,N,
10050458,THERMATECH,900,Sheltered Accommodation,Fire Prevention,26-Aug-22,2223/06,SME,N,
10050514,THOMPSON COOPER LTD,994.5,Open Spaces,"Equipment, Tools & Materials",31-Aug-22,2223/06,SME,N,
10050900,THOMPSON COOPER LTD,994.5,Street & Major Road Cleansing,"Equipment, Tools & Materials",13-Sep-22,2223/06,SME,N,
10050576,WEST END REHOMING,552.72,Dog Control,Collection Charges,01-Sep-22,2223/06,SME,N,
10050487,WINDIMAN LTD,566.96,Building Services,Repairs,30-Aug-22,2223/06,SME,N,
10050552,WINDIMAN LTD,760,Major Imps,Improvements,30-Aug-22,2223/06,SME,N,
10050174,WORKWEAR (EAST ANGLIA) LTD,153.8,Open Spaces,Protective clothing,08-Aug-22,2223/06,SME,N,
10050174,WORKWEAR (EAST ANGLIA) LTD,153.8,Street & Major Road Cleansing,Protective clothing,08-Aug-22,2223/06,SME,N,
10050486,ARCHANT COMMUNITY MEDIA LTD,500.6,Devt Management -Applications,Advertising&mkting (non-staff),27-Aug-22,2223/06,LGE,N,
10050640,ARCHANT COMMUNITY MEDIA LTD,500.6,Devt Management -Applications,Advertising&mkting (non-staff),31-Aug-22,2223/06,LGE,N,
10050790,ARCHANT COMMUNITY MEDIA LTD,315.2,Devt Management -Applications,Advertising&mkting (non-staff),07-Sep-22,2223/06,LGE,N,
10050914,CHUBB FIRE & SECURITY LTD,251.84,Sheltered Accommodation,Fire Prevention,12-Sep-22,2223/06,LGE,N,
10050550,BUILDBASE,324.3,Assets & Development,Repairs,31-Aug-22,2223/06,LGE,N,
10050753,IPSWICH BOROUGH COUNCIL,"62,002.01",Civil Parking Enforcement,Contracted Services,31-Aug-22,2223/06,LGE,Y,31%
20028035,EDF ENERGY,98.14,Belle Vue House,Electricity,10-Sep-22,2223/06,LGE,N,
20028035,EDF ENERGY,610.32,C Parks General,Electricity,10-Sep-22,2223/06,LGE,N,
20028035,EDF ENERGY,"1,701.75",Chilton Depot,Electricity,10-Sep-22,2223/06,LGE,Y,50%
20028035,EDF ENERGY,851.03,Climate Change and Sustainabil,Electricity,10-Sep-22,2223/06,LGE,N,
20028035,EDF ENERGY,170.06,Community Safety-CCTV,Electricity,10-Sep-22,2223/06,LGE,N,
20028035,EDF ENERGY,22.71,Hadleigh Market,Electricity,10-Sep-22,2223/06,LGE,N,
20028035,EDF ENERGY,11.16,Headquarters General,Electricity,10-Sep-22,2223/06,LGE,N,
20028035,EDF ENERGY,"2,858.48",HQ Energy,Electricity,10-Sep-22,2223/06,LGE,N,
20028035,EDF ENERGY,340.72,Public Conveniences,Electricity,10-Sep-22,2223/06,LGE,N,
20028035,EDF ENERGY,174.25,Sewage Treatment Works,Electricity,10-Sep-22,2223/06,LGE,N,
20028035,EDF ENERGY,"13,092.84",Sheltered Accommodation,Electricity,10-Sep-22,2223/06,LGE,N,
20028035,EDF ENERGY,84.1,SP Comm Alarms (Non-SH),Electricity,10-Sep-22,2223/06,LGE,N,
20028035,EDF ENERGY,504.48,Temporary Accommodation,Electricity,10-Sep-22,2223/06,LGE,N,
20028035,EDF ENERGY,"7,240.39",Tenancy Services,Electricity,10-Sep-22,2223/06,LGE,N,
10050479,J BREHENY CONTRACTORS LTD,"99,822.51","Schoolfield, Glemsford",Improvements,25-Aug-22,2223/06,LGE,N,
10050997,ERNST & YOUNG LLP,"22,085.00",Ext Audit,Audit Fees,06-Sep-22,2223/06,LGE,N,
20028045,GPC BARCLAYS,"9,053.22",Current Assets,Barclaycard Control,16-Sep-22,2223/06,LGE,Y,17%
10050797,STANNAH STAIRLIFTS LTD,"2,373.00",Council House Adaptions,Improvements,12-Sep-22,2223/06,LGE,N,
10050798,STANNAH STAIRLIFTS LTD,"2,834.00",Council House Adaptions,Improvements,12-Sep-22,2223/06,LGE,N,
20028048,COMPUTERSHARE ,493,Current Assets,ChildCare Vouchers-Control,26-Sep-22,2223/06,LGE,N,
20028056,1ST BURES SCOUT GROUP,658.18,Bring Sites,Contributions & Donations,28-Sep-22,2223/06,SME,N,
20028053,BENTLEY VILLAGE HALL,283.93,Bring Sites,Contributions & Donations,28-Sep-22,2223/06,SME,N,
20028087,GREAT CORNARD PARISH COUNCIL,471.36,Bring Sites,Contributions & Donations,28-Sep-22,2223/06,SME,N,
20028088,GREAT WALDINGFIELD BOWLS & SOCIAL CLUB,345.89,Bring Sites,Contributions & Donations,28-Sep-22,2223/06,SME,N,
20028060,HITCHAM VILLAGE HALL,270.42,Bring Sites,Contributions & Donations,28-Sep-22,2223/06,SME,N,
20028063,LEAVENHEATH VILLAGE HALL,415.55,Bring Sites,Contributions & Donations,28-Sep-22,2223/06,SME,N,
10050690,LONG MELFORD PARISH COUNCIL,660.11,Grants & Contrbns,Grants,06-Sep-22,2223/06,SME,N,
20028064,LONG MELFORD PARISH COUNCIL,502.62,Bring Sites,Contributions & Donations,28-Sep-22,2223/06,SME,N,
10051036,NEW ANGLIA LOCAL ENTERPRISE PARTNERSHIP,"17,836.06",Enterprise Zones,Prof & Consultancy Fees,21-Jul-22,2223/06,SME,N,
20028091,NEWTON PARISH COUNCIL,251.23,Bring Sites,Contributions & Donations,28-Sep-22,2223/06,SME,N,
20028065,TEENAGE CANCER TRUST,277.1,Bring Sites,Contributions & Donations,28-Sep-22,2223/06,LGE,N,
10050691,THE WOOLVERSTONE PROJECT,"1,303.13",Suffolk Community Restart Fund,Grants,06-Sep-22,2223/06,SME,N,
10048798,SUFFOLK COUNTY COUNCIL,"2,817.68",Hamilton Road Regeneration,Prof & Consultancy Fees,13-Jun-22,2223/06,LGE,N,
10050392,SUFFOLK COUNTY COUNCIL,"1,239.34",General Rechargeable Works,Misc Supplies & Services Costs,23-May-22,2223/06,LGE,N,
10050393,SUFFOLK COUNTY COUNCIL,"67,379.41",Household Support Grant,Misc Supplies & Services Costs,24-Aug-22,2223/06,LGE,N,
10050444,SUFFOLK COUNTY COUNCIL,"64,139.89",Trade Waste,Trade Waste Disposal,25-Aug-22,2223/06,LGE,N,
10050509,SUFFOLK COUNTY COUNCIL,"1,430.71",Domestic Waste,MRF Disposal,30-Aug-22,2223/06,LGE,N,
10050509,SUFFOLK COUNTY COUNCIL,"11,295.68",Garden Waste,Garden Waste Disposal,30-Aug-22,2223/06,LGE,N,
10050512,SUFFOLK COUNTY COUNCIL,275.58,ICT,Desktop Software,30-Aug-22,2223/06,LGE,Y,50%
10050585,SUFFOLK COUNTY COUNCIL,"177,295.42",ICT,Major Contracts,01-Sep-22,2223/06,LGE,Y,50%
10050647,SUFFOLK COUNTY COUNCIL,"1,225.00",Land Chgs,Contracted Services,02-Sep-22,2223/06,LGE,N,
10050828,SUFFOLK COUNTY COUNCIL,425.14,ICT,Desktop Software,12-Sep-22,2223/06,LGE,Y,50%
10050999,SUFFOLK COUNTY COUNCIL,900,Homelessness Private Sector,Training,14-Sep-22,2223/06,LGE,Y,50%
10051186,SUFFOLK COUNTY COUNCIL,296.72,ICT,Desktop Software,26-Sep-22,2223/06,LGE,Y,50%
10051187,SUFFOLK COUNTY COUNCIL,"1,203.23",Domestic Waste,MRF Disposal,26-Sep-22,2223/06,LGE,N,
10051187,SUFFOLK COUNTY COUNCIL,"10,495.67",Garden Waste,Garden Waste Disposal,26-Sep-22,2223/06,LGE,N,
10051236,SUFFOLK COUNTY COUNCIL,"1,947.00",ICT,Software Licences (Corporate) ,27-Sep-22,2223/06,LGE,Y,50%
10050903,FENN WRIGHT LLP,400,Leaseholders,Prof & Consultancy Fees,13-Sep-22,2223/06,SME,N,
10050598,ROYAL MAIL,269.04,Central Postal Serv,Postage,18-Jul-22,2223/06,LGE,Y,50%
10051129,ROYAL MAIL,617.6,Electoral Registration,Postage,26-Sep-22,2223/06,LGE,Y,100%
10050169,REED SPECIALIST RECRUITMENT LTD,772.56,Financial Servs,Agency Staff,05-Aug-22,2223/06,LGE,Y,50%
10050459,REED SPECIALIST RECRUITMENT LTD,772.56,Financial Servs,Agency Staff,19-Aug-22,2223/06,LGE,Y,50%
10050608,REED SPECIALIST RECRUITMENT LTD,772.56,Financial Servs,Agency Staff,26-Aug-22,2223/06,LGE,Y,50%
10050792,REED SPECIALIST RECRUITMENT LTD,619.51,Financial Servs,Agency Staff,02-Sep-22,2223/06,LGE,Y,50%
10051006,REED SPECIALIST RECRUITMENT LTD,772.56,Financial Servs,Agency Staff,09-Sep-22,2223/06,LGE,Y,50%
10051127,REED SPECIALIST RECRUITMENT LTD,772.56,Financial Servs,Agency Staff,16-Sep-22,2223/06,LGE,Y,50%
10051166,REED SPECIALIST RECRUITMENT LTD,793.28,Financial Servs,Agency Staff,15-Jul-22,2223/06,LGE,Y,50%
10051163,TELEFONICA UK LIMITED - O2,339.05,ICT,Telephone Costs,27-Sep-22,2223/06,LGE,Y,50%
10051170,ZURICH MUNICIPAL,"17,951.36",Regen Fund - HQ Sites,Miscellaneous Insurances,22-Sep-22,2223/06,LGE,N,
10049979,EAST OF ENGLAND CO-OPERATIVE SOCIETY LTD,"1,800.00",Cost of Democracy,Room Hire,19-Jul-22,2223/06,LGE,N,
10050286,LEX AUTOLEASE,331.38,Building Services,Lease Cars - Payment,10-Aug-22,2223/06,SME,Y,50%
10050287,LEX AUTOLEASE,311.43,Building Services,Lease Cars - Payment,10-Aug-22,2223/06,SME,Y,50%
10050288,LEX AUTOLEASE,324.97,Building Services,Lease Cars - Payment,10-Aug-22,2223/06,SME,Y,50%
10050289,LEX AUTOLEASE,355.2,Building Services,Lease Cars - Payment,11-Aug-22,2223/06,SME,Y,50%
10050697,LEX AUTOLEASE,365.95,Building Services,Lease Cars - Payment,29-Aug-22,2223/06,SME,Y,50%
10050698,LEX AUTOLEASE,365.95,Building Services,Lease Cars - Payment,29-Aug-22,2223/06,SME,Y,50%
10050786,LEX AUTOLEASE,376.73,Building Services,Lease Cars - Payment,04-Sep-22,2223/06,SME,Y,50%
10050972,LEX AUTOLEASE,318.97,Building Services,Lease Cars - Payment,07-Sep-22,2223/06,SME,Y,50%
10050973,LEX AUTOLEASE,332.77,Building Services,Lease Cars - Payment,08-Sep-22,2223/06,SME,Y,50%
10050974,LEX AUTOLEASE,380.78,Building Services,Lease Cars - Payment,08-Sep-22,2223/06,SME,Y,50%
10050975,LEX AUTOLEASE,331.38,Building Services,Lease Cars - Payment,11-Sep-22,2223/06,SME,Y,50%
10050976,LEX AUTOLEASE,311.43,Building Services,Lease Cars - Payment,11-Sep-22,2223/06,SME,Y,50%
10050977,LEX AUTOLEASE,324.97,Building Services,Lease Cars - Payment,11-Sep-22,2223/06,SME,Y,50%
10050978,LEX AUTOLEASE,355.2,Building Services,Lease Cars - Payment,11-Sep-22,2223/06,SME,Y,50%
10050979,LEX AUTOLEASE,328.72,Building Services,Lease Cars - Payment,11-Sep-22,2223/06,SME,Y,50%
10050980,LEX AUTOLEASE,346.16,Building Services,Lease Cars - Payment,11-Sep-22,2223/06,SME,Y,50%
10050981,LEX AUTOLEASE,311.34,Building Services,Lease Cars - Payment,11-Sep-22,2223/06,SME,Y,50%
10050982,LEX AUTOLEASE,336.11,Building Services,Lease Cars - Payment,11-Sep-22,2223/06,SME,Y,50%
20028047,GAZPROM ENERGY,76.8,Belle Vue House,Gas,15-Sep-22,2223/06,SME,N,
20028047,GAZPROM ENERGY,71.18,HQ Energy,Gas,15-Sep-22,2223/06,SME,N,
20028047,GAZPROM ENERGY,"1,281.79",Sheltered Accommodation,Gas,15-Sep-22,2223/06,SME,N,
20028047,GAZPROM ENERGY,84.65,Temporary Accommodation,Gas,15-Sep-22,2223/06,SME,N,
10050630,INSTITUTE OF LICENSING LTD,414,Cost of Democracy,Training,23-Jun-22,2223/06,LGE,Y,50%
20028084,EAST BERGHOLT HIGH SCHOOL,382.7,Bring Sites,Contributions & Donations,28-Sep-22,2223/06,SME,N,
10050712,ERNEST DOE & SONS LTD,"1,120.00",Open Spaces,"Equipment, Tools & Materials",07-Sep-22,2223/06,LGE,N,
10051223,THE QUAY THEATRE AT SUDBURY,"3,520.00",Holiday Activity Funding,"Equipment, Tools & Materials",28-Sep-22,2223/06,SME,N,
10050318,WHYBROW PROPERTY SOLUTIONS LTD,"5,000.00",Building Services,Repairs,18-Aug-22,2223/06,SME,N,
10050453,WHYBROW PROPERTY SOLUTIONS LTD,"7,873.41",Council House Adaptions,Improvements,26-Aug-22,2223/06,SME,N,
10050454,WHYBROW PROPERTY SOLUTIONS LTD,"2,500.00",Structural Works,Improvements,26-Aug-22,2223/06,SME,N,
10050455,WHYBROW PROPERTY SOLUTIONS LTD,"10,000.00",Building Services,Repairs,26-Aug-22,2223/06,SME,N,
10050456,WHYBROW PROPERTY SOLUTIONS LTD,"3,791.04",Building Services,Repairs,26-Aug-22,2223/06,SME,N,
10050457,WHYBROW PROPERTY SOLUTIONS LTD,"10,000.00",Major Imps,Improvements,26-Aug-22,2223/06,SME,N,
10050573,WHYBROW PROPERTY SOLUTIONS LTD,"7,353.00",Major Imps,Improvements,02-Sep-22,2223/06,SME,N,
10050574,WHYBROW PROPERTY SOLUTIONS LTD,"10,876.14",Building Services,Repairs,02-Sep-22,2223/06,SME,N,
10050575,WHYBROW PROPERTY SOLUTIONS LTD,"2,160.86",Building Services,Repairs,02-Sep-22,2223/06,SME,N,
10050734,WHYBROW PROPERTY SOLUTIONS LTD,"4,332.65",Building Services,Repairs,05-Jul-22,2223/06,SME,N,
10050888,WHYBROW PROPERTY SOLUTIONS LTD,"8,791.62",Building Services,Repairs,12-Sep-22,2223/06,SME,N,
10050895,WHYBROW PROPERTY SOLUTIONS LTD,"5,076.50",Building Services,Repairs,12-Sep-22,2223/06,SME,N,
10050896,WHYBROW PROPERTY SOLUTIONS LTD,"1,058.00",Building Services,Repairs,12-Sep-22,2223/06,SME,N,
10051001,WHYBROW PROPERTY SOLUTIONS LTD,"9,980.00",Building Services,Repairs,16-Sep-22,2223/06,SME,N,
10051003,WHYBROW PROPERTY SOLUTIONS LTD,"4,320.52",Council House Adaptions,Improvements,16-Sep-22,2223/06,SME,N,
10051004,WHYBROW PROPERTY SOLUTIONS LTD,"2,947.19",Building Services,Repairs,16-Sep-22,2223/06,SME,N,
10051004,WHYBROW PROPERTY SOLUTIONS LTD,175,Building Services,Repairs,16-Sep-22,2223/06,SME,N,
10051004,WHYBROW PROPERTY SOLUTIONS LTD,175,Building Services,Repairs,16-Sep-22,2223/06,SME,N,
10051005,WHYBROW PROPERTY SOLUTIONS LTD,"2,185.31",Building Services,Repairs,16-Sep-22,2223/06,SME,N,
10050426,L A C CLEANING CONTRACTORS LIMITED,485.5,Tenancy Services,Grounds & Site Maintenance,25-Aug-22,2223/06,SME,N,
10050496,L A C CLEANING CONTRACTORS LIMITED,906.45,Wenham Depot TDP,General Cleaning,26-Aug-22,2223/06,SME,Y,50%
10050500,L A C CLEANING CONTRACTORS LIMITED,648.48,Sheltered Accommodation,General Cleaning,26-Aug-22,2223/06,SME,N,
10050669,L A C CLEANING CONTRACTORS LIMITED,295,Temporary Accommodation,General Cleaning,01-Sep-22,2223/06,SME,N,
10050959,L A C CLEANING CONTRACTORS LIMITED,800,Building Services,Repairs,15-Sep-22,2223/06,SME,N,
10051164,L A C CLEANING CONTRACTORS LIMITED,395.5,Tenancy Services,Contracted Services,23-Sep-22,2223/06,SME,N,
10050681,ARMSTRONG YORK ASBESTOS ENVIRONMENTAL,"7,198.48",Asbestos Survey & Reinspection,Prof & Consultancy Fees,31-Aug-22,2223/06,SME,N,
10050506,PLANNING JUNGLE LTD,300,Devt Management -Applications,Books & Periodicals,31-Aug-22,2223/06,SME,Y,55%
10051051,SUFFOLK CHAMBER OF COMMERCE,875,Management Team,Subscriptions,01-Jul-22,2223/06,SME,N,
20028090,LONG MELFORD ROYAL BRITISH LEGION,464.2,Bring Sites,Contributions & Donations,28-Sep-22,2223/06,LGE,N,
10050737,STOWE VETERINARY GROUP,370.69,Animal Welfare Licensing,Prof & Consultancy Fees,04-Aug-22,2223/06,SME,N,
20028070,ST HELENA HOSPICE,502.52,Bring Sites,Contributions & Donations,28-Sep-22,2223/06,SME,N,
10050655,COMMUNITY ACTION SUFFOLK,768,Community Safety-General,Contributions & Donations,05-Sep-22,2223/06,SME,N,
20028075,SUFFOLK COMMUNITY FOUNDATION,331.5,Bring Sites,Contributions & Donations,28-Sep-22,2223/06,SME,N,
20028094,SHOTLEY C P SCHOOL,424.66,Bring Sites,Contributions & Donations,28-Sep-22,2223/06,SME,N,
10050782,ORSIS UK LTD,"6,384.00",PV Panels,Contracted Services,09-Sep-22,2223/06,SME,N,
10049183,CARTER JONAS,"3,500.00","BRRP-Hamilton,Boreham&BelleVue",Prof & Consultancy Fees,04-Jul-22,2223/06,LGE,N,
10049183,CARTER JONAS,"3,500.00",Assets & Development,Prof & Consultancy Fees,04-Jul-22,2223/06,LGE,N,
10050778,OXBURY CHARTERED SURVEYORS,"2,250.00","Schoolfield, Glemsford",Prof & Consultancy Fees,29-Nov-21,2223/06,SME,N,
10050477,OPUS PEOPLE SOLUTIONS LTD,421.87,Household Support Grant,Agency Staff,25-Aug-22,2223/06,SME,N,
10050477,OPUS PEOPLE SOLUTIONS LTD,144.66,Governance,Agency Staff,25-Aug-22,2223/06,SME,N,
10050477,OPUS PEOPLE SOLUTIONS LTD,35.94,Housing Standards,Agency Staff,25-Aug-22,2223/06,SME,N,
10050889,OPUS PEOPLE SOLUTIONS LTD,750,Household Support Grant,Agency Staff,08-Sep-22,2223/06,SME,N,
10050889,OPUS PEOPLE SOLUTIONS LTD,144.66,Governance,Agency Staff,08-Sep-22,2223/06,SME,N,
10050889,OPUS PEOPLE SOLUTIONS LTD,132.55,Housing Standards,Agency Staff,08-Sep-22,2223/06,SME,N,
10050889,OPUS PEOPLE SOLUTIONS LTD,302.26,Business Cont/Emergency Plan,Agency Staff,08-Sep-22,2223/06,SME,N,
10050956,OPUS PEOPLE SOLUTIONS LTD,"4,906.81",Communications,Agency Staff,12-Sep-22,2223/06,SME,N,
10051022,OPUS PEOPLE SOLUTIONS LTD,241.11,Governance,Agency Staff,15-Sep-22,2223/06,SME,N,
10051022,OPUS PEOPLE SOLUTIONS LTD,304.48,Business Cont/Emergency Plan,Agency Staff,15-Sep-22,2223/06,SME,N,
10051137,OPUS PEOPLE SOLUTIONS LTD,"1,064.29",Household Support Grant,Agency Staff,22-Sep-22,2223/06,SME,N,
10051137,OPUS PEOPLE SOLUTIONS LTD,570.31,Governance,Agency Staff,22-Sep-22,2223/06,SME,N,
10051137,OPUS PEOPLE SOLUTIONS LTD,144.67,Housing Standards,Agency Staff,22-Sep-22,2223/06,SME,N,
10051137,OPUS PEOPLE SOLUTIONS LTD,35.94,Business Cont/Emergency Plan,Agency Staff,22-Sep-22,2223/06,SME,N,
10050808,ECOSYSTEMS TREE & GROUNDS CARE,313.37,Sheltered Accommodation,Grds Maint Contract,08-Sep-22,2223/06,SME,N,
10050809,ECOSYSTEMS TREE & GROUNDS CARE,600,Amenity Areas,Tree felling/maintenance,08-Sep-22,2223/06,SME,N,
10050812,ECOSYSTEMS TREE & GROUNDS CARE,275,Public Tree Programme,Tree felling/maintenance,08-Sep-22,2223/06,SME,N,
10050813,ECOSYSTEMS TREE & GROUNDS CARE,600,Public Tree Programme,Tree felling/maintenance,08-Sep-22,2223/06,SME,N,
10050814,ECOSYSTEMS TREE & GROUNDS CARE,"1,075.00",Public Tree Programme,Tree felling/maintenance,08-Sep-22,2223/06,SME,N,
10050815,ECOSYSTEMS TREE & GROUNDS CARE,325,Public Tree Programme,Tree felling/maintenance,08-Sep-22,2223/06,SME,N,
10050816,ECOSYSTEMS TREE & GROUNDS CARE,325,Amenity Areas,Tree felling/maintenance,08-Sep-22,2223/06,SME,N,
10050817,ECOSYSTEMS TREE & GROUNDS CARE,600,Amenity Areas,Tree felling/maintenance,08-Sep-22,2223/06,SME,N,
10050818,ECOSYSTEMS TREE & GROUNDS CARE,500,Tenancy Services,Tree felling/maintenance,08-Sep-22,2223/06,SME,N,
10050819,ECOSYSTEMS TREE & GROUNDS CARE,375,Public Tree Programme,Tree felling/maintenance,08-Sep-22,2223/06,SME,N,
10050820,ECOSYSTEMS TREE & GROUNDS CARE,750,Tenancy Services,Grounds & Site Maintenance,08-Sep-22,2223/06,SME,N,
10051204,ECOSYSTEMS TREE & GROUNDS CARE,850,Public Tree Programme,Tree felling/maintenance,25-Sep-22,2223/06,SME,N,
10051205,ECOSYSTEMS TREE & GROUNDS CARE,300,Public Tree Programme,Tree felling/maintenance,25-Sep-22,2223/06,SME,N,
10051206,ECOSYSTEMS TREE & GROUNDS CARE,300,Public Tree Programme,Tree felling/maintenance,27-Sep-22,2223/06,SME,N,
10051210,ECOSYSTEMS TREE & GROUNDS CARE,"1,590.00",Public Tree Programme,Tree felling/maintenance,27-Sep-22,2223/06,SME,N,
10051211,ECOSYSTEMS TREE & GROUNDS CARE,500,Amenity Areas,Tree felling/maintenance,27-Sep-22,2223/06,SME,N,
10051212,ECOSYSTEMS TREE & GROUNDS CARE,585,Amenity Areas,Tree felling/maintenance,27-Sep-22,2223/06,SME,N,
10050507,CORNERSTONE BARRISTERS,"1,200.00",Devt Management -Applications,Legal Expenses,23-Aug-22,2223/06,SME,N,
10050660,ANNETTE FEENEY,780,Devt Policy & Local Plans,Prof & Consultancy Fees,01-Sep-22,2223/06,ST,Y,50%
10050678,UNIVERSITY OF THE WEST OF ENGLAND,"4,000.00",Strategic Planning General,Conference Expenses,02-Sep-22,2223/06,LGE,Y,50%
10050939,UNIVERSITY OF THE WEST OF ENGLAND,"4,500.00",Nghbrhd Plan Designations,Training,09-Sep-22,2223/06,LGE,Y,50%
10050520,VERTAS GROUP LTD,"8,461.52",Central Postal Serv,Postage,31-Aug-22,2223/06,SME,Y,50%
10050702,VERTAS GROUP LTD,"7,951.50",Assets & Development,Repairs,31-Aug-22,2223/06,SME,N,
10050298,COLLINS SKIP HIRE,275,Building Services,Waste Disposal,22-Aug-22,2223/06,SME,Y,50%
10050473,COLLINS SKIP HIRE,825,Building Services,Waste Disposal,30-Aug-22,2223/06,SME,Y,50%
10050821,COLLINS SKIP HIRE,"1,375.00",Building Services,Waste Disposal,12-Sep-22,2223/06,SME,Y,50%
10051038,COLLINS SKIP HIRE,550,Building Services,Waste Disposal,20-Sep-22,2223/06,SME,Y,50%
10051155,4PRINCIPLES CONSTRUCTION LTD,"6,190.07",Mand Disabled Facilities Grant,Grants,26-Sep-22,2223/06,SME,N,
10049839,CIRRUS RESEARCH PLC,455,Environmental Protection,Sampling & Analysis,25-Jul-22,2223/06,SME,Y,50%
10050586,PENNA PLC,"15,840.00",Management Team,Agency Staff,02-Sep-22,2223/06,SME,Y,50%
10050942,PENNA PLC,"6,664.00",Management Team,Agency Staff,14-Sep-22,2223/06,SME,Y,50%
10050944,PENNA PLC,"14,994.00",Management Team,Agency Staff,14-Sep-22,2223/06,SME,Y,50%
10051037,"DUNCAN, CAMERON AND HUTCHINSON LTD",370,"11-12 Ipswich, Brantham",Repairs,18-May-22,2223/06,SME,N,
10050641,BROWNE JACOBSON LLP,"3,827.00",GF - Misc Capital Receipts,Legal Expenses,01-Sep-22,2223/06,SME,N,
20028022,BOYDENS,"1,153.00",Rent Deposit Scheme,Misc Premises Costs,24-Aug-22,2223/06,SME,N,
10050256,SUFFOLK MARKET EVENTS,650,Hadleigh Market,Contracted Services,15-Aug-22,2223/06,SME,N,
10050565,SUFFOLK MARKET EVENTS,"1,393.90",BRRP-MarketTownVision&Invest,Prof & Consultancy Fees,01-Sep-22,2223/06,SME,Y,48%
10050947,SUFFOLK MARKET EVENTS,650,Hadleigh Market,Contracted Services,14-Sep-22,2223/06,SME,N,
10051082,SAVILLS,700,Assets & Development,Prof & Consultancy Fees,21-Sep-22,2223/06,SME,N,
10051100,ADVANCE SUPPLIES,294.44,Sheltered Accommodation,Cleaning Materials,22-Sep-22,2223/06,SME,N,
10050248,HAYS SPECIALIST RECRUITMENT LTD,700.92,Organisational Devt,Agency Staff,17-Aug-22,2223/06,LGE,Y,50%
10050411,HAYS SPECIALIST RECRUITMENT LTD,700.92,Organisational Devt,Agency Staff,24-Aug-22,2223/06,LGE,Y,50%
10050427,HAYS SPECIALIST RECRUITMENT LTD,224,Financial Servs,Agency Staff,25-Aug-22,2223/06,LGE,Y,50%
10050427,HAYS SPECIALIST RECRUITMENT LTD,336,HRA Accountancy,Agency Staff,25-Aug-22,2223/06,LGE,Y,50%
10050530,HAYS SPECIALIST RECRUITMENT LTD,"1,555.88",ICT - Finance System,Agency Staff,31-Aug-22,2223/06,LGE,Y,50%
10050531,HAYS SPECIALIST RECRUITMENT LTD,712.8,Organisational Devt,Agency Staff,31-Aug-22,2223/06,LGE,Y,50%
10050571,HAYS SPECIALIST RECRUITMENT LTD,"6,169.48",Financial Servs,Recruitment,01-Sep-22,2223/06,LGE,Y,50%
10050661,HAYS SPECIALIST RECRUITMENT LTD,896,Financial Servs,Agency Staff,05-Sep-22,2223/06,LGE,Y,50%
10050661,HAYS SPECIALIST RECRUITMENT LTD,"1,344.00",HRA Accountancy,Agency Staff,05-Sep-22,2223/06,LGE,Y,50%
10050662,HAYS SPECIALIST RECRUITMENT LTD,"1,169.36",Assets & Development,Agency Staff,05-Sep-22,2223/06,LGE,Y,50%
10050662,HAYS SPECIALIST RECRUITMENT LTD,292.34,General/Supervision & Mgmt,Agency Staff,05-Sep-22,2223/06,LGE,Y,50%
10050751,HAYS SPECIALIST RECRUITMENT LTD,356.4,Organisational Devt,Agency Staff,07-Sep-22,2223/06,LGE,Y,50%
10050752,HAYS SPECIALIST RECRUITMENT LTD,"1,166.91",ICT - Finance System,Agency Staff,07-Sep-22,2223/06,LGE,Y,50%
10050791,HAYS SPECIALIST RECRUITMENT LTD,"5,718.05",Organisational Devt,Recruitment,09-Sep-22,2223/06,LGE,Y,50%
10050897,HAYS SPECIALIST RECRUITMENT LTD,"1,870.98",Assets & Development,Agency Staff,12-Sep-22,2223/06,LGE,Y,50%
10050897,HAYS SPECIALIST RECRUITMENT LTD,467.74,General/Supervision & Mgmt,Agency Staff,12-Sep-22,2223/06,LGE,Y,50%
10050898,HAYS SPECIALIST RECRUITMENT LTD,"1,120.00",Financial Servs,Agency Staff,12-Sep-22,2223/06,LGE,Y,50%
10050898,HAYS SPECIALIST RECRUITMENT LTD,"1,680.00",HRA Accountancy,Agency Staff,12-Sep-22,2223/06,LGE,Y,50%
10050946,HAYS SPECIALIST RECRUITMENT LTD,"1,944.85",ICT - Finance System,Agency Staff,14-Sep-22,2223/06,LGE,Y,50%
10051041,HAYS SPECIALIST RECRUITMENT LTD,"1,120.00",Financial Servs,Agency Staff,20-Sep-22,2223/06,LGE,Y,50%
10051041,HAYS SPECIALIST RECRUITMENT LTD,"1,680.00",HRA Accountancy,Agency Staff,20-Sep-22,2223/06,LGE,Y,50%
10051098,HAYS SPECIALIST RECRUITMENT LTD,"1,262.90",Assets & Development,Agency Staff,22-Sep-22,2223/06,LGE,Y,50%
10051098,HAYS SPECIALIST RECRUITMENT LTD,315.73,General/Supervision & Mgmt,Agency Staff,22-Sep-22,2223/06,LGE,Y,50%
10051162,HAYS SPECIALIST RECRUITMENT LTD,"1,120.00",Financial Servs,Agency Staff,26-Sep-22,2223/06,LGE,Y,50%
10051162,HAYS SPECIALIST RECRUITMENT LTD,"1,680.00",HRA Accountancy,Agency Staff,26-Sep-22,2223/06,LGE,Y,50%
10050385,IDVERDE LIMITED,"11,781.71",Open Spaces,Grds Maint Contract,24-Aug-22,2223/06,SME,N,
10050631,PUBLIC SEWER SERVICES,286.61,Building Services,Repairs,31-Aug-22,2223/06,SME,N,
10050723,PUBLIC SEWER SERVICES,839.46,Building Services,Repairs,20-Jul-22,2223/06,SME,N,
10050724,PUBLIC SEWER SERVICES,"2,438.70",Sewage Treatment Works,Repairs,20-Jul-22,2223/06,SME,N,
10050725,PUBLIC SEWER SERVICES,"1,872.81",Building Services,Repairs,20-Jul-22,2223/06,SME,N,
10050733,PUBLIC SEWER SERVICES,"1,227.26",Sewage Treatment Works,Repairs,24-May-22,2223/06,SME,N,
10051014,PUBLIC SEWER SERVICES,"1,955.77",Building Services,Repairs,20-Sep-22,2223/06,SME,N,
10051015,PUBLIC SEWER SERVICES,"1,974.00",Building Services,Repairs,20-Sep-22,2223/06,SME,N,
10050582,THE STOWMARKET GLASS COMPANY LTD,274.46,Building Services,Repairs,18-Aug-22,2223/06,SME,N,
10050584,THE STOWMARKET GLASS COMPANY LTD,278.4,Building Services,Repairs,19-Aug-22,2223/06,SME,N,
10050750,ASPECT CONTRACTS LTD,"9,250.00",Asbestos,Improvements,31-Aug-22,2223/06,LGE,N,
10050916,NEIL ANDREW OFFICE SOLUTIONS LTD,576,Building Services,"Equipment, Tools & Materials",11-Aug-22,2223/06,SME,Y,50%
10050342,KNOWLES ASSOCIATES TFM LTD,"6,570.00",Building Services,Vehicle Hire,15-Aug-22,2223/06,SME,Y,50%
10050343,KNOWLES ASSOCIATES TFM LTD,"3,024.00",Building Services,Plant & Vehicle - Other costs,22-Aug-22,2223/06,SME,N,
10050969,KNOWLES ASSOCIATES TFM LTD,"4,290.00",Public Realm TransitionProject,"Equipment, Tools & Materials",08-Sep-22,2223/06,SME,N,
10050970,KNOWLES ASSOCIATES TFM LTD,"4,290.00",Public Realm TransitionProject,"Equipment, Tools & Materials",08-Sep-22,2223/06,SME,N,
10051031,KNOWLES ASSOCIATES TFM LTD,"6,110.71",Public Realm TransitionProject,"Equipment, Tools & Materials",22-Aug-22,2223/06,SME,N,
10051088,KNOWLES ASSOCIATES TFM LTD,"1,595.00",Public Realm TransitionProject,"Equipment, Tools & Materials",21-Sep-22,2223/06,SME,N,
10050422,NORTHUMBRIAN WATER LTD,"3,392.24",Sheltered Accommodation,Legionella Testing,25-Aug-22,2223/06,LGE,N,
10050483,NORTHUMBRIAN WATER LTD,69.51,Chilton Depot,Legionella Testing,30-Aug-22,2223/06,LGE,Y,50%
10050483,NORTHUMBRIAN WATER LTD,37.7,HQ Energy,Legionella Testing,30-Aug-22,2223/06,LGE,N,
10050483,NORTHUMBRIAN WATER LTD,293.68,Sheltered Accommodation,Legionella Testing,30-Aug-22,2223/06,LGE,N,
10050483,NORTHUMBRIAN WATER LTD,101.37,Temporary Accommodation,Legionella Testing,30-Aug-22,2223/06,LGE,N,
10050483,NORTHUMBRIAN WATER LTD,254.87,Tenancy Services,Legionella Testing,30-Aug-22,2223/06,LGE,N,
10050483,NORTHUMBRIAN WATER LTD,31.86,Wenham Depot,Legionella Testing,30-Aug-22,2223/06,LGE,Y,50%
10050923,STORETEC SERVICES LTD,775.02,ICT,"Equipment, Tools & Materials",31-Aug-22,2223/06,SME,Y,50%
10049764,GIPPING OCCUPATIONAL HEALTH LTD,867.86,Health & Safety,Contracted Services,22-Jul-22,2223/06,SME,Y,50%
10049878,GIPPING OCCUPATIONAL HEALTH LTD,"1,120.50",Health & Safety,Contracted Services,29-Jul-22,2223/06,SME,Y,50%
10050704,GIPPING OCCUPATIONAL HEALTH LTD,515.52,Health & Safety,Contracted Services,06-Sep-22,2223/06,SME,Y,50%
10050706,GIPPING OCCUPATIONAL HEALTH LTD,421.9,Health & Safety,Contracted Services,06-Sep-22,2223/06,SME,Y,50%
10050941,GIPPING OCCUPATIONAL HEALTH LTD,989.84,Health & Safety,Contracted Services,14-Sep-22,2223/06,SME,Y,50%
10050985,GIPPING OCCUPATIONAL HEALTH LTD,470,Health & Safety,Contracted Services,16-Sep-22,2223/06,SME,Y,50%
10050679,AIRMAX REMOTE LTD,437.88,Building Services,Plant & Vehicle - Other costs,31-Aug-22,2223/06,SME,N,
10050460,GRAVITAS RECRUITMENT GROUP LTD,"6,000.00",ICT,Agency Staff,26-Aug-22,2223/06,LGE,Y,50%
10050672,GRAVITAS RECRUITMENT GROUP LTD,"1,500.00",ICT,Agency Staff,06-Sep-22,2223/06,LGE,Y,50%
10050844,GRAVITAS RECRUITMENT GROUP LTD,"2,000.00",ICT,Agency Staff,12-Sep-22,2223/06,LGE,Y,50%
10051012,GRAVITAS RECRUITMENT GROUP LTD,"2,000.00",ICT,Agency Staff,20-Sep-22,2223/06,LGE,Y,50%
10051136,GRAVITAS RECRUITMENT GROUP LTD,"2,000.00",ICT,Agency Staff,26-Sep-22,2223/06,LGE,Y,50%
10050442,WS TRAINING LTD,"1,320.00",Building Services,Repairs,26-Aug-22,2223/06,SME,Y,50%
10050443,WS TRAINING LTD,"1,320.00",Building Services,Repairs,26-Aug-22,2223/06,SME,Y,50%
10050891,SUDBURYS,440,Guaranteed Rent Scheme,Rent Payable,15-Sep-22,2223/06,SME,N,
20028030,SUDBURYS,"3,300.00",Homeless Prevention Fund,Misc Supplies & Services Costs,01-Sep-22,2223/06,SME,N,
10050827,WILLIAM H BROWN ESTATE AGENTS - SUDBURY,725,Guaranteed Rent Scheme,Rent Payable,12-Sep-22,2223/06,SME,N,
10050560,PORTAL PLAN QUEST LTD,462,Devt Management -Applications,Planning Fees,02-Sep-22,2223/06,SME,N,
10050710,PORTAL PLAN QUEST LTD,462,Devt Management -Applications,Planning Fees,07-Sep-22,2223/06,SME,N,
10050521,ABBEYCROFT LEISURE,473.4,Holiday Activity Funding,"Equipment, Tools & Materials",30-Aug-22,2223/06,LGE,N,
10050522,ABBEYCROFT LEISURE,"1,620.00",Holiday Activity Funding,"Equipment, Tools & Materials",24-Aug-22,2223/06,LGE,N,
10050692,ABBEYCROFT LEISURE,"1,963.36",Suffolk Community Restart Fund,Grants,06-Sep-22,2223/06,LGE,N,
10050693,ABBEYCROFT LEISURE,"2,369.71",Suffolk Community Restart Fund,Grants,06-Sep-22,2223/06,LGE,N,
10050694,ABBEYCROFT LEISURE,"2,500.00",Suffolk Community Restart Fund,Grants,06-Sep-22,2223/06,LGE,N,
10051224,ABBEYCROFT LEISURE,"7,080.00",Holiday Activity Funding,"Equipment, Tools & Materials",28-Sep-22,2223/06,LGE,N,
10051226,ABBEYCROFT LEISURE,"8,564.76",Holiday Activity Funding,"Equipment, Tools & Materials",28-Sep-22,2223/06,LGE,N,
10050252,BELLWAY HOMES LIMITED (ESSEX DIVISION),"412,530.81",Bourne Hill Wherstead S106 acq,Prof & Consultancy Fees,10-Aug-22,2223/06,LGE,N,
10051159,BELLWAY HOMES LIMITED (ESSEX DIVISION),"114,551.86",Bourne Hill Wherstead S106 acq,Prof & Consultancy Fees,13-Sep-22,2223/06,LGE,N,
10050440,A C LEIGH (NORWICH) LTD,269.55,Building Services,"Equipment, Tools & Materials",23-Aug-22,2223/06,SME,N,
10051053,A C LEIGH (NORWICH) LTD,550.21,Building Services,"Equipment, Tools & Materials",15-Sep-22,2223/06,SME,N,
10050781,SUFFOLK POWER EQUIPMENT,465,Open Spaces,"Equipment, Tools & Materials",09-Sep-22,2223/06,ST,N,
20028077,BOXFORD PLAYING FIELDS MANAGEMENT COMMIT,344.42,Bring Sites,Contributions & Donations,28-Sep-22,2223/06,SME,N,
10050794,3 POINT PROPERTY MANAGEMENT LTD,550,Guaranteed Rent Scheme,Rent Payable,12-Sep-22,2223/06,SME,N,
10050784,EAST SUFFOLK COUNCIL,"33,725.00",Policy & Strategy (H & W),Contributions & Donations,09-Sep-22,2223/06,LGE,Y,50%
10051099,DG ACCESSIBLE DESIGNS,700,Mand Disabled Facilities Grant,Grants,20-Sep-22,2223/06,SME,N,
10050489,APTL ENTERPRISES LTD,"4,648.00",PV Panels,Repairs,31-Aug-22,2223/06,SME,N,
10051097,WASHCO LTD,366.76,Tenancy Services,Repairs,22-Sep-22,2223/06,SME,N,
10051046,ANGLIA COMMERCIAL FLOORING LTD,491.94,Building Services,Repairs,13-Sep-22,2223/06,SME,N,
10051047,ANGLIA COMMERCIAL FLOORING LTD,719.73,Building Services,Repairs,13-Sep-22,2223/06,SME,N,
10051048,ANGLIA COMMERCIAL FLOORING LTD,354.92,Building Services,Repairs,20-Sep-22,2223/06,SME,N,
10051119,ANGLIA COMMERCIAL FLOORING LTD,392.37,Building Services,Repairs,21-Sep-22,2223/06,SME,N,
10051120,ANGLIA COMMERCIAL FLOORING LTD,267,Building Services,Repairs,22-Sep-22,2223/06,SME,N,
10051121,ANGLIA COMMERCIAL FLOORING LTD,720.53,Building Services,Repairs,23-Sep-22,2223/06,SME,N,
10051122,ANGLIA COMMERCIAL FLOORING LTD,489.85,Building Services,Repairs,23-Sep-22,2223/06,SME,N,
10051123,ANGLIA COMMERCIAL FLOORING LTD,480.9,Building Services,Repairs,23-Sep-22,2223/06,SME,N,
10051124,ANGLIA COMMERCIAL FLOORING LTD,507.75,Building Services,Repairs,23-Sep-22,2223/06,SME,N,
10051148,ANGLIA COMMERCIAL FLOORING LTD,353.13,Building Services,Repairs,16-Jun-22,2223/06,SME,N,
10051150,ANGLIA COMMERCIAL FLOORING LTD,737.91,Building Services,Repairs,16-Jun-22,2223/06,SME,N,
20028034,ANGLIAN WATER BUS (NAT) LTD T/A WAVE,27.86,Belle Vue House,Water Rates - Metered,12-Sep-22,2223/06,LGE,N,
20028034,ANGLIAN WATER BUS (NAT) LTD T/A WAVE,72.55,C Parks General,Water Rates - Metered,12-Sep-22,2223/06,LGE,N,
20028034,ANGLIAN WATER BUS (NAT) LTD T/A WAVE,532.33,Chilton Depot,Water Rates - Metered,12-Sep-22,2223/06,LGE,Y,50%
20028034,ANGLIAN WATER BUS (NAT) LTD T/A WAVE,4.1,Friars Meadow Sudb,Water Rates - Metered,12-Sep-22,2223/06,LGE,N,
20028034,ANGLIAN WATER BUS (NAT) LTD T/A WAVE,43,General Rechargeable Works,Misc Supplies & Services Costs,12-Sep-22,2223/06,LGE,N,
20028034,ANGLIAN WATER BUS (NAT) LTD T/A WAVE,37.76,HQ Energy,Water Rates - Metered,12-Sep-22,2223/06,LGE,N,
20028034,ANGLIAN WATER BUS (NAT) LTD T/A WAVE,"-2,072.22",Public Conveniences,Water Rates - Metered,12-Sep-22,2223/06,LGE,N,
20028034,ANGLIAN WATER BUS (NAT) LTD T/A WAVE,"1,430.77",Sheltered Accommodation,Water Rates - Metered,12-Sep-22,2223/06,LGE,N,
20028034,ANGLIAN WATER BUS (NAT) LTD T/A WAVE,"4,224.17",Temporary Accommodation,Water Rates - Metered,12-Sep-22,2223/06,LGE,N,
10050689,THE STEVENSON CENTRE,890.4,Grants & Contrbns,Grants,06-Sep-22,2223/06,SME,N,
20028086,ST EDMUNDSBURY & IPSWICH DIOCESAN MAT,392.23,Bring Sites,Contributions & Donations,28-Sep-22,2223/06,LGE,N,
20028049,IMSERV EUROPE LTD,164,Kingfisher Leisure Centre,Electricity,22-Sep-22,2223/06,LGE,N,
20028049,IMSERV EUROPE LTD,239.41,Hadleigh Pool,Electricity,22-Sep-22,2223/06,LGE,N,
10050536,STUDLEY CAPITAL LIMITED,"4,275.00",Hamilton Road Regeneration,Prof & Consultancy Fees,01-Sep-22,2223/06,ST,N,
10050527,GREENACRE RECRUITMENT LTD,"2,857.50",Building Services,Prof & Consultancy Fees,01-Sep-22,2223/06,SME,Y,50%
10050528,GREENACRE RECRUITMENT LTD,"4,275.00",Management Team,Agency Staff,01-Sep-22,2223/06,SME,Y,50%
10050742,GREENACRE RECRUITMENT LTD,952.5,Management Team,Agency Staff,07-Sep-22,2223/06,SME,Y,50%
10050743,GREENACRE RECRUITMENT LTD,"4,061.25",Management Team,Agency Staff,07-Sep-22,2223/06,SME,Y,50%
10050936,GREENACRE RECRUITMENT LTD,"1,270.00",Management Team,Agency Staff,14-Sep-22,2223/06,SME,Y,50%
10050937,GREENACRE RECRUITMENT LTD,"4,275.00",Management Team,Agency Staff,14-Sep-22,2223/06,SME,Y,50%
10051067,GREENACRE RECRUITMENT LTD,"3,218.65",Management Team,Agency Staff,21-Sep-22,2223/06,SME,Y,50%
10051069,GREENACRE RECRUITMENT LTD,"4,275.00",Management Team,Agency Staff,21-Sep-22,2223/06,SME,Y,50%
20028061,HOLBROOK VILLAGE HALL,265.2,Bring Sites,Contributions & Donations,28-Sep-22,2223/06,SME,N,
10050541,TIAA LTD,"4,506.38",Internal Audit,Contracted Services,01-Sep-22,2223/06,SME,Y,50%
10050845,BYCHOICE LTD,"1,800.00","Angel Court, Hadleigh",Prof & Consultancy Fees,31-Aug-22,2223/06,SME,N,
10051152,BYCHOICE LTD,950,Guaranteed Rent Scheme,Rent Payable,26-Sep-22,2223/06,SME,N,
10050673,QUADIENT UK LIMITED,254.11,Central Postal Serv,Postage,29-Aug-22,2223/06,LGE,Y,50%
10051026,MAN WITH A VAN SUDBURY,995,Homeless Prevention Fund,Removal Expenses,13-Sep-22,2223/06,SME,N,
10050606,PINSENT MASONS LLP,772.53,Belle Vue Refurb/Rplcmt,Prof & Consultancy Fees,24-Aug-22,2223/06,LGE,N,
10051145,REEFER PROPERTIES LTD,695,Guaranteed Rent Scheme,Rent Payable,26-Sep-22,2223/06,SME,N,
10051225,HADLEIGH FOODBANK,"1,706.66",Holiday Activity Funding,"Equipment, Tools & Materials",28-Sep-22,2223/06,SME,N,
10050949,WADDINGTON BROWN LTD,"6,939.54",Organisational Devt,Agency Staff,05-Sep-22,2223/06,SME,Y,50%
10051028,WADDINGTON BROWN LTD,"5,417.10",Organisational Devt,Agency Staff,19-Sep-22,2223/06,SME,Y,50%
10051153,PRIVATE LANDLORD,515,Guaranteed Rent Scheme,Rent Payable,26-Sep-22,2223/06,SME,N,
10050823,PRIVATE LANDLORD,675,Guaranteed Rent Scheme,Rent Payable,12-Sep-22,2223/06,ST,N,
10051144,PRIVATE LANDLORD,675,Guaranteed Rent Scheme,Rent Payable,26-Sep-22,2223/06,ST,N,
10050933,PRIVATE LANDLORD,700,Guaranteed Rent Scheme,Rent Payable,15-Sep-22,2223/06,SME,N,
10051073,IPSWICH TOWN COMMUNITY TRUST,"3,900.00",Holiday Activity Funding,"Equipment, Tools & Materials",21-Sep-22,2223/06,SME,N,
10051029,PRIVATE LANDLORD,"1,198.00",Guaranteed Rent Scheme,Rent Payable,22-Aug-22,2223/06,ST,N,
10050700,BUCHER MUNICIPAL LTD,818.48,Street & Major Road Cleansing,"Equipment, Tools & Materials",06-Sep-22,2223/06,LGE,N,
10049748,PLUG-N-GO-LIMITED,412.47,Climate Change and Sustainabil,Misc Supplies & Services Costs,01-Jul-22,2223/06,SME,N,
10051143,SEQUENCE UK LTD (WILLIAM H BROWN),700,Guaranteed Rent Scheme,Rent Payable,26-Sep-22,2223/06,LGE,N,
10050894,PRIVATE LANDLORD,550,Guaranteed Rent Scheme,Rent Payable,15-Sep-22,2223/06,ST,N,
10051142,PRIVATE LANDLORD,700,Guaranteed Rent Scheme,Rent Payable,26-Sep-22,2223/06,ST,N,
10050603,PRIVATE LANDLORD,"1,320.00",Guaranteed Rent Scheme,Rent Payable,05-Sep-22,2223/06,SME,N,
10050887,SUFFOLK DOORS & WINDOWS LTD,"1,655.00",Major Imps,Improvements,12-Sep-22,2223/06,SME,N,
10050619,PRIVATE LANDLORD,786.5,Guaranteed Rent Scheme,Rent Payable,05-Sep-22,2223/06,ST,N,
10050701,DAVID BURR (LONG MELFORD) LTD,700,Guaranteed Rent Scheme,Rent Payable,07-Sep-22,2223/06,SME,N,
10050735,DUNMOW SKIPS LTD T/A DUNMOW GROUP,672.75,Jnt Waste Contract,Waste Disposal,28-Jul-22,2223/06,LGE,N,
10051110,DAVID KNIGHTS T/A DAVID BROWN,275,Assets & Development,Prof & Consultancy Fees,23-Sep-22,2223/06,ST,N,
10050799,PRIVATE LANDLORD,650,Guaranteed Rent Scheme,Rent Payable,12-Sep-22,2223/06,ST,N,
10050675,COUNTRYSTYLE RECYCLING LTD,"4,959.69",Bring Sites,Contracted Services,31-Aug-22,2223/06,SME,N,
10050122,ANDERSON DESIGN & BUILD LIMITED,"185,752.70",Waldingfield Rd S106 Andersons,Prof & Consultancy Fees,27-Jul-22,2223/06,SME,N,
10050609,PRIVATE LANDLORD,700,Guaranteed Rent Scheme,Rent Payable,05-Sep-22,2223/06,ST,N,
10050826,PRIVATE LANDLORD,800,Guaranteed Rent Scheme,Rent Payable,12-Sep-22,2223/06,ST,N,
10050795,PRIVATE LANDLORD,800,Guaranteed Rent Scheme,Rent Payable,12-Sep-22,2223/06,SME,N,
10049532,ARAN INSULATION LTD,"1,365.91",Insulation Imps,Repairs,12-Jun-22,2223/06,SME,N,
10050186,ARAN INSULATION LTD,"10,155.93",Insulation Imps,Improvements,15-Aug-22,2223/06,SME,N,
10050221,ARAN INSULATION LTD,"3,596.45",Insulation Imps,Improvements,16-Aug-22,2223/06,SME,N,
10050222,ARAN INSULATION LTD,"9,079.55",Insulation Imps,Improvements,16-Aug-22,2223/06,SME,N,
10050311,ARAN INSULATION LTD,817,Insulation Imps,Improvements,19-Aug-22,2223/06,SME,N,
10050341,ARAN INSULATION LTD,"3,965.19",Insulation Imps,Improvements,23-Aug-22,2223/06,SME,N,
10050625,ARAN INSULATION LTD,"5,649.50",Insulation Imps,Improvements,05-Sep-22,2223/06,SME,N,
10050626,ARAN INSULATION LTD,"3,470.56",Insulation Imps,Improvements,05-Sep-22,2223/06,SME,N,
10050670,ARAN INSULATION LTD,"14,660.88",Insulation Imps,Improvements,06-Sep-22,2223/06,SME,N,
10050918,ARAN INSULATION LTD,"9,073.05",Insulation Imps,Improvements,12-Sep-22,2223/06,SME,N,
10051042,ARAN INSULATION LTD,563.5,Insulation Imps,Improvements,21-Sep-22,2223/06,SME,N,
10051043,ARAN INSULATION LTD,588.16,Insulation Imps,Improvements,21-Sep-22,2223/06,SME,N,
10051044,ARAN INSULATION LTD,640.95,Insulation Imps,Improvements,21-Sep-22,2223/06,SME,N,
10051049,ARAN INSULATION LTD,"9,739.62",Insulation Imps,Improvements,12-Sep-22,2223/06,SME,N,
10051049,ARAN INSULATION LTD,"1,828.01",Stairlifts,Repairs,12-Sep-22,2223/06,SME,N,
10050446,PRIVATE LANDLORD,500,Guaranteed Rent Scheme,Rent Payable,26-Aug-22,2223/06,ST,N,
10050932,PRIVATE LANDLORD,580,Guaranteed Rent Scheme,Rent Payable,15-Sep-22,2223/06,ST,N,
10050890,IAN BOOTH CONSULTANT ENGINEER LTD,360,Roads and Paths,Improvements,25-Aug-22,2223/06,SME,Y,50%
10051141,PRIVATE LANDLORD,575,Guaranteed Rent Scheme,Rent Payable,26-Sep-22,2223/06,ST,N,
20028038,POLYSOLAR LTD,"153,407.83",Public Sector Decarbonisation,Contracted Services,25-Feb-22,2223/06,SME,N,
20028040,POLYSOLAR LTD,"76,951.97",Public Sector Decarbonisation,Contracted Services,28-Jan-22,2223/06,SME,N,
20028042,POLYSOLAR LTD,"118,897.21",Public Sector Decarbonisation,Contracted Services,21-Dec-21,2223/06,SME,N,
20028102,POLYSOLAR LTD,"120,956.78",Public Sector Decarbonisation,Contracted Services,01-Sep-21,2223/06,SME,N,
10050856,IPSERV LTD,"1,669.45",Communications,Commercial Printing,06-Sep-22,2223/06,SME,N,
10050856,IPSERV LTD,146,Central Printing,Commercial Printing,06-Sep-22,2223/06,SME,N,
10050931,BOND TURNER,"2,483.57",Building Services,Payments to Tenants,15-Sep-22,2223/06,SME,N,
10050787,FOURWAYS VEHICLE SOLUTIONS LTD,644,Building Services,Lease Cars - Payment,15-Aug-22,2223/06,SME,Y,50%
10050587,START AFRESH CLEANING LTD,430.67,Street & Major Road Cleansing,General Cleaning,31-Aug-22,2223/06,SME,N,
10050241,REGENCY GUARDING & EVENTS LTD,620,Open Spaces,Contracted Services,11-Aug-22,2223/06,SME,N,
10051008,REGENCY GUARDING & EVENTS LTD,630,Open Spaces,Contracted Services,19-Sep-22,2223/06,SME,N,
10050801,PRIVATE LANDLORD,715,Guaranteed Rent Scheme,Rent Payable,12-Sep-22,2223/06,SME,N,
10050629,SHJ HOMES LTD,"1,395.00",Guaranteed Rent Scheme,Misc Supplies & Services Costs,05-Sep-22,2223/06,SME,N,
10050842,SHJ HOMES LTD,550,Guaranteed Rent Scheme,Rent Payable,12-Sep-22,2223/06,SME,N,
10050892,PRIVATE LANDLORD,500,Guaranteed Rent Scheme,Rent Payable,15-Sep-22,2223/06,ST,N,
10050958,KEYS REMOVALS LTD,"1,200.00",Homeless Prevention Fund,Removal Expenses,14-Sep-22,2223/06,SME,N,
10051072,ANGLIA SPORTS MANAGEMENT LTD,"3,000.00",Holiday Activity Funding,"Equipment, Tools & Materials",21-Sep-22,2223/06,SME,N,
10050906,NAGELS UK LTD,"1,360.00",C Parks General,Stationery,13-Sep-22,2223/06,SME,N,
10050806,PRIVATE LANDLORD,675,Guaranteed Rent Scheme,Rent Payable,12-Sep-22,2223/06,ST,N,
10050824,PRIVATE LANDLORD,500,Guaranteed Rent Scheme,Rent Payable,12-Sep-22,2223/06,ST,N,
10050884,PROTECT AND DETECT SYSTEMS LTD,"1,842.28",Public Sector Decarbonisation,Prof & Consultancy Fees,24-Aug-22,2223/06,SME,N,
10050802,PRIVATE LANDLORD,650,Guaranteed Rent Scheme,Rent Payable,12-Sep-22,2223/06,ST,N,
10050893,PRIVATE LANDLORD,650,Guaranteed Rent Scheme,Rent Payable,15-Sep-22,2223/06,ST,N,
10049945,BELL CONTAINER TRADING LTD,695.27,Public Realm TransitionProject,"Equipment, Tools & Materials",26-Jul-22,2223/06,SME,N,
10050417,BELL CONTAINER TRADING LTD,695.27,Public Realm TransitionProject,"Equipment, Tools & Materials",25-Aug-22,2223/06,SME,N,
10050807,CHELMONDISTON PLAYING FIELDS COMMITTEE,"2,635.20",Comm Devt Grants,Grants,12-Sep-22,2223/06,SME,N,
10050840,CHELMONDISTON PLAYING FIELDS COMMITTEE,"2,948.40",S106 Open Spaces Expenditure,Grants,12-Sep-22,2223/06,SME,N,
10050696,MINI WASTE LTD,"1,280.00",Open Spaces,Waste Disposal,31-Aug-22,2223/06,SME,N,
10051074,MAXIM SPORTS COACHING,"1,120.00",Holiday Activity Funding,"Equipment, Tools & Materials",21-Sep-22,2223/06,SME,N,
10050825,PRIVATE LANDLORD,695,Guaranteed Rent Scheme,Rent Payable,12-Sep-22,2223/06,ST,N,
10050628,PRIVATE LANDLORD,312.5,Homeless Prevention Fund,Misc Supplies & Services Costs,05-Sep-22,2223/06,ST,N,
10049640,DPL GROUP LTD,"9,069.00",Kingfisher Leisure Centre,Repairs,22-Jul-22,2223/06,SME,N,
10050910,HAMILTON SMITH LETTINGS,670,Guaranteed Rent Scheme,Rent Payable,15-Sep-22,2223/06,SME,N,
10050604,JB PROPERTY SOLUTIONS (SUFFOLK) LTD T/A,455,Guaranteed Rent Scheme,Rent Payable,05-Sep-22,2223/06,SME,N,
10050841,KBM HOUSE SHARE & PROPERTY MANAGEMENT LT,550,Guaranteed Rent Scheme,Rent Payable,12-Sep-22,2223/06,SME,N,
10050656,PAY 360 LIMITED,"1,173.88",Bank Chgs,Bank Charges,05-Sep-22,2223/06,LGE,Y,50%
10050882,PAY 360 LIMITED,"4,354.25",Bank Chgs,Bank Charges,12-Sep-22,2223/06,LGE,N,
10050803,PRIVATE LANDLORD,550,Guaranteed Rent Scheme,Rent Payable,15-Aug-22,2223/06,SME,N,
10050911,FOOTBALL FUN FACTORY (COMMUNITY 019) LTD,"5,040.00",Holiday Activity Funding,"Equipment, Tools & Materials",13-Sep-22,2223/06,SME,N,
10051147,FOOTBALL FUN FACTORY (COMMUNITY 019) LTD,"2,520.00",Holiday Activity Funding,"Equipment, Tools & Materials",26-Sep-22,2223/06,SME,N,
10050934,PRIVATE LANDLORD,885,Guaranteed Rent Scheme,Rent Payable,15-Sep-22,2223/06,ST,N,
10050461,KAREN LOUISE DANCE CIC,500,Grants & Contrbns,Contributions & Donations,26-Aug-22,2223/06,SME,N,
10050668,KARCHER UK LTD,"87,692.16",Vehicle and Plant Renewals,Plant & Vehicle - Purchase,31-Aug-22,2223/06,LGE,N,
10050335,SUFFOLK FACE PAINTING,275,Holiday Activity Funding,"Equipment, Tools & Materials",16-Aug-22,2223/06,ST,N,
10050703,HENSTAN LOGISTICS,800,Guaranteed Rent Scheme,Rents (voids),07-Sep-22,2223/06,ST,N,
10050115,CHRISTOPHER BAKER,"1,200.00",Tenancy Services,Legal Expenses,11-Aug-22,2223/06,SME,Y,50%
10050538,LAVENHAM PROPERTIES SOLUTIONS LTD,"1,875.00",Renovation/Home Repair Grants,Grants,01-Sep-22,2223/06,SME,N,
10050800,PRIVATE LANDLORD,750,Guaranteed Rent Scheme,Rent Payable,12-Sep-22,2223/06,ST,N,
10050935,PRIVATE LANDLORD,575,Guaranteed Rent Scheme,Rent Payable,15-Sep-22,2223/06,ST,N,
20028026,PRIVATE LANDLORD,575,Guaranteed Rent Scheme,Rent Payable,31-Aug-22,2223/06,ST,N,
20028026,PRIVATE LANDLORD,750,Guaranteed Rent Scheme,Misc Supplies & Services Costs,31-Aug-22,2223/06,ST,N,
10050523,RESTOREO SURFACE REPAIRS LIMITED,350,Waldingfield Rd S106 Andersons,Prof & Consultancy Fees,27-Jul-22,2223/06,SME,N,
10050562,SUFFOLK AGAINST FOXHUNTING,600,Grants & Contrbns,Contributions & Donations,01-Sep-22,2223/06,SME,N,
10050540,CUBE INSTALLATIONS,"5,549.81",Mand Disabled Facilities Grant,Grants,01-Sep-22,2223/06,SME,N,
10050595,EMERALD LAW,"7,000.00",Building Services,BMBS Repairs Work,31-Aug-22,2223/06,SME,N,
10051090,EMERALD LAW,"1,220.00",Building Services,BMBS Repairs Work,22-Sep-22,2223/06,SME,N,
10050650,SUDBURY ART COLLECTIVE,460,Grants & Contrbns,Grants,05-Sep-22,2223/06,SME,N,
10050846,SUDBURY ART COLLECTIVE,388.32,Grants & Contrbns,Grants,12-Sep-22,2223/06,SME,N,
10050998,NEWSQUEST MEDIA GROUP,593.3,Devt Management -Applications,Advertising&mkting (non-staff),14-Sep-22,2223/06,LGE,N,
10051089,NEWSQUEST MEDIA GROUP,655.1,Devt Management -Applications,Advertising&mkting (non-staff),21-Sep-22,2223/06,LGE,N,
10050968,ANGLIAN WATER SERVICES LTD,"9,550.31","Schoolfield, Glemsford",Prof & Consultancy Fees,13-Sep-22,2223/06,LGE,N,
10051171,LUIS ELECTRICAL,395,Homeless Prevention Fund,Misc Supplies & Services Costs,23-Sep-22,2223/06,ST,N,
10051101,BARNES ROOFING,"3,650.00",Renovation/Home Repair Grants,Grants,23-Sep-22,2223/06,SME,N,
10051217,DAVID GRAY HEATING & PLUMBING,"6,762.00",Mand Disabled Facilities Grant,Grants,28-Sep-22,2223/06,ST,N,
10051265,P & T KELLING PROPERTY,850,Homeless Prevention Fund,Misc Supplies & Services Costs,29-Sep-22,2223/06,SME,N,
10050602,CLARKES OF WALSHAM LTD,-96.34,Building Services,Repairs,19-Aug-22,2223/06,SME,N,
10051167,REED SPECIALIST RECRUITMENT LTD,-20.72,Financial Servs,Agency Staff,15-Jul-22,2223/06,LGE,Y,50%
1038,PORTAL PLAN QUEST LTD,-34,Devt Management -Applications,Planning Fees,02-Sep-22,2223/06,SME,N,
20028037,POLYSOLAR LTD,"-153,407.83",Public Sector Decarbonisation,Contracted Services,25-Feb-22,2223/06,SME,N,
20028039,POLYSOLAR LTD,"-76,951.97",Public Sector Decarbonisation,Contracted Services,28-Jan-22,2223/06,SME,N,
20028041,POLYSOLAR LTD,"-118,897.21",Public Sector Decarbonisation,Contracted Services,21-Dec-21,2223/06,SME,N,
20028101,POLYSOLAR LTD,"-120,956.78",Public Sector Decarbonisation,Contracted Services,01-Sep-21,2223/06,SME,N,
10051083,PAY 360 LIMITED,-33.62,Bank Chgs,Bank Charges,22-Sep-22,2223/06,LGE,N,
